Department,Entity,Transaction Date,Expense Type,Expense Area,Supplier,Transaction No.,Amount
"Department for Business, Energy and Industrial Strategy",The Coal Authority,03/07/2020,Mileage Payments,Environment - Innovation Concept & Feasibility,Staff Expenses Control,87338,5.30
"Department for Business, Energy and Industrial Strategy",The Coal Authority,03/07/2020,Mileage Payments,Environment - Innovation Concept & Feasibility,Staff Expenses Control,87338,43.41
"Department for Business, Energy and Industrial Strategy",The Coal Authority,03/07/2020,Mileage Payments,Environment - Innovation Concept & Feasibility,Staff Expenses Control,87338,39.03
"Department for Business, Energy and Industrial Strategy",The Coal Authority,05/08/2020,Mileage Payments,Environment - Innovation Programme Delivery,Staff Expenses Control,87338,63.95
"Department for Business, Energy and Industrial Strategy",The Coal Authority,05/08/2020,Mileage Payments,Environment - Innovation Programme Delivery,Staff Expenses Control,87338,19.75
"Department for Business, Energy and Industrial Strategy",The Coal Authority,05/08/2020,Mileage Payments,Environment - Innovation Programme Delivery,Staff Expenses Control,87338,3.52
"Department for Business, Energy and Industrial Strategy",The Coal Authority,05/08/2020,Mileage Payments,Environment - Innovation Programme Delivery,Staff Expenses Control,87338,13.02
"Department for Business, Energy and Industrial Strategy",The Coal Authority,05/08/2020,Mileage Payments,Environment - Innovation Programme Delivery,Staff Expenses Control,87338,66.71
"Department for Business, Energy and Industrial Strategy",The Coal Authority,11/08/2020,Mileage Payments,Environment - Innovation Programme Delivery,Staff Expenses Control,87338,12.13
"Department for Business, Energy and Industrial Strategy",The Coal Authority,11/08/2020,Mileage Payments,Environment - Innovation Programme Delivery,Staff Expenses Control,87338,11.16
"Department for Business, Energy and Industrial Strategy",The Coal Authority,13/08/2020,Mileage Payments,Environment - Innovation Programme Delivery,Staff Expenses Control,87338,24.13
"Department for Business, Energy and Industrial Strategy",The Coal Authority,13/08/2020,Mileage Payments,Environment - Innovation Programme Delivery,Staff Expenses Control,87338,24.14
"Department for Business, Energy and Industrial Strategy",The Coal Authority,06/07/2020,Subsistence Allowances,Environment - Innovation Concept & Feasibility,Staff Expenses Control,87338,8.50
"Department for Business, Energy and Industrial Strategy",The Coal Authority,24/08/2020,CY - Non-coal Minewater - Additions,Environment - DEFRA - EA Programme,Veolia ES UK Ltd,87364,"12,360.18"
"Department for Business, Energy and Industrial Strategy",The Coal Authority,01/09/2020,CY - Non-coal Minewater - Additions,Environment - DEFRA - EA Programme,Veolia ES UK Ltd,87367,"-6,419.91"
"Department for Business, Energy and Industrial Strategy",The Coal Authority,21/08/2020,Site Services,Facilities,Biffa Waste Services Ltd,87374,24.00
"Department for Business, Energy and Industrial Strategy",The Coal Authority,21/08/2020,Site Services,Facilities,Biffa Waste Services Ltd,87374,26.00
"Department for Business, Energy and Industrial Strategy",The Coal Authority,21/08/2020,Site Services,Facilities,Biffa Waste Services Ltd,87375,96.00
"Department for Business, Energy and Industrial Strategy",The Coal Authority,21/08/2020,Site Services,Facilities,Biffa Waste Services Ltd,87375,104.00
"Department for Business, Energy and Industrial Strategy",The Coal Authority,30/06/2020,Site Repairs & Maintenance,Facilities,Ulyett Landscapes Ltd,87376,"1,010.66"
"Department for Business, Energy and Industrial Strategy",The Coal Authority,17/08/2020,Minewater Telecoms & Telemetry,Environment - Contract Management,KORE Wireless UK PLC,87415,35.00
"Department for Business, Energy and Industrial Strategy",The Coal Authority,20/08/2020,Temporary Contractors,Development - Property Management,Hays Specialist Recruitment,87439,926.72
"Department for Business, Energy and Industrial Strategy",The Coal Authority,24/08/2020,Temporary Contractors,Development - Property Management,Hays Specialist Recruitment,87440,911.27
"Department for Business, Energy and Industrial Strategy",The Coal Authority,12/08/2020,Fuel (Vehicle),Facilities,Allstar Business Solutions Ltd,87441,21.18
"Department for Business, Energy and Industrial Strategy",The Coal Authority,12/08/2020,Fuel (Vehicle),Facilities,Allstar Business Solutions Ltd,87441,29.17
"Department for Business, Energy and Industrial Strategy",The Coal Authority,12/08/2020,Fuel (Vehicle),Facilities,Allstar Business Solutions Ltd,87441,1.90
"Department for Business, Energy and Industrial Strategy",The Coal Authority,26/08/2020,Fuel (Vehicle),Facilities,Allstar Business Solutions Ltd,87442,47.89
"Department for Business, Energy and Industrial Strategy",The Coal Authority,19/08/2020,Fuel (Vehicle),Facilities,Allstar Business Solutions Ltd,87443,54.83
"Department for Business, Energy and Industrial Strategy",The Coal Authority,19/08/2020,Fuel (Vehicle),Facilities,Allstar Business Solutions Ltd,87443,3.80
"Department for Business, Energy and Industrial Strategy",The Coal Authority,04/08/2020,Surface Hazards - Contractor Costs,PS&S - General Claims,Llettyshenkin Cons Co Ltd,87446,332.50
"Department for Business, Energy and Industrial Strategy",The Coal Authority,04/08/2020,Surface Hazards - Contractor Costs,PS&S - General Claims,Llettyshenkin Cons Co Ltd,87446,450.00
"Department for Business, Energy and Industrial Strategy",The Coal Authority,01/09/2020,Surface Hazards - Contractor Costs,PS&S - General Claims,Thomas Menzies Builders Ltd,87448,270.00
"Department for Business, Energy and Industrial Strategy",The Coal Authority,31/08/2020,Membership Subscriptions,HR & OD,MyCSP Ltd,87453,45.49
"Department for Business, Energy and Industrial Strategy",The Coal Authority,02/09/2020,Subsidence - Contractor Costs,PS&S - General Claims,Cornerstone  Projects Ltd,87454,80.00
"Department for Business, Energy and Industrial Strategy",The Coal Authority,02/09/2020,Subsidence - Contractor Costs,PS&S - General Claims,Cornerstone  Projects Ltd,87455,309.00
"Department for Business, Energy and Industrial Strategy",The Coal Authority,02/09/2020,Surface Hazards - Contractor Costs,PS&S - General Claims,Cornerstone  Projects Ltd,87456,117.48
"Department for Business, Energy and Industrial Strategy",The Coal Authority,24/08/2020,External Agency / Introduction Fees,HR & OD,Advance TRS,87459,"4,950.00"
"Department for Business, Energy and Industrial Strategy",The Coal Authority,31/08/2020,Property Site Maintenance,Development - Historic Property Liabilities,Crimefighter Alarms Ltd,87460,"5,952.00"
"Department for Business, Energy and Industrial Strategy",The Coal Authority,31/08/2020,Property Site Maintenance,Development - Historic Property Liabilities,Ovenden Plant Hire Limited,87465,32.61
"Department for Business, Energy and Industrial Strategy",The Coal Authority,31/07/2020,Subsidence Pumping Maintenance - Planned,Environment - Contract Management,Doncaster East I D B,87471,176.61
"Department for Business, Energy and Industrial Strategy",The Coal Authority,31/07/2020,Subsidence Pumping Maintenance - Power,Environment - Contract Management,Doncaster East I D B,87471,781.11
"Department for Business, Energy and Industrial Strategy",The Coal Authority,02/09/2020,Surface Hazards - Contractor Costs,PS&S - General Claims,Whitehouse Construction,87566,63.21
"Department for Business, Energy and Industrial Strategy",The Coal Authority,02/09/2020,Surface Hazards - Contractor Costs,PS&S - General Claims,Whitehouse Construction,87566,185.55
"Department for Business, Energy and Industrial Strategy",The Coal Authority,31/08/2020,Property Site Maintenance,Development - Historic Property Liabilities,JMC Engineering Uk Ltd,87567,"1,177.15"
"Department for Business, Energy and Industrial Strategy",The Coal Authority,31/08/2020,Property Site Maintenance,Development - Property Management,JMC Engineering Uk Ltd,87568,620.25
"Department for Business, Energy and Industrial Strategy",The Coal Authority,02/09/2020,CY - Non-coal Minewater - Additions,Environment - DEFRA - EA Programme,Wear Rivers Trust,87569,896.10
"Department for Business, Energy and Industrial Strategy",The Coal Authority,28/08/2020,Surface Hazards - Contractor Costs,PS&S - General Claims,Jim Davies Civil Engineering,87576,760.00
"Department for Business, Energy and Industrial Strategy",The Coal Authority,28/08/2020,Surface Hazards - Contractor Costs,PS&S - General Claims,Jim Davies Civil Engineering,87576,130.00
"Department for Business, Energy and Industrial Strategy",The Coal Authority,28/08/2020,Surface Hazards - Contractor Costs,PS&S - General Claims,Jim Davies Civil Engineering,87576,"1,411.20"
"Department for Business, Energy and Industrial Strategy",The Coal Authority,28/08/2020,Surface Hazards - Contractor Costs,PS&S - General Claims,Jim Davies Civil Engineering,87576,64.71
"Department for Business, Energy and Industrial Strategy",The Coal Authority,28/08/2020,Surface Hazards - Contractor Costs,PS&S - General Claims,Jim Davies Civil Engineering,87576,137.20
"Department for Business, Energy and Industrial Strategy",The Coal Authority,28/08/2020,Surface Hazards - Contractor Costs,PS&S - General Claims,Jim Davies Civil Engineering,87576,277.60
"Department for Business, Energy and Industrial Strategy",The Coal Authority,28/08/2020,Surface Hazards - Contractor Costs,PS&S - General Claims,Jim Davies Civil Engineering,87576,405.00
"Department for Business, Energy and Industrial Strategy",The Coal Authority,28/08/2020,Surface Hazards - Contractor Costs,PS&S - General Claims,Jim Davies Civil Engineering,87576,280.00
"Department for Business, Energy and Industrial Strategy",The Coal Authority,28/08/2020,Surface Hazards - Contractor Costs,PS&S - General Claims,Jim Davies Civil Engineering,87577,"2,570.40"
"Department for Business, Energy and Industrial Strategy",The Coal Authority,28/08/2020,Surface Hazards - Contractor Costs,PS&S - General Claims,Jim Davies Civil Engineering,87577,"1,508.06"
"Department for Business, Energy and Industrial Strategy",The Coal Authority,28/08/2020,Surface Hazards - Contractor Costs,PS&S - General Claims,Jim Davies Civil Engineering,87577,990.00
"Department for Business, Energy and Industrial Strategy",The Coal Authority,28/08/2020,Surface Hazards - Contractor Costs,PS&S - General Claims,Jim Davies Civil Engineering,87577,332.15
"Department for Business, Energy and Industrial Strategy",The Coal Authority,28/08/2020,Surface Hazards - Contractor Costs,PS&S - General Claims,Jim Davies Civil Engineering,87577,"1,620.00"
"Department for Business, Energy and Industrial Strategy",The Coal Authority,28/08/2020,Surface Hazards - Contractor Costs,PS&S - General Claims,Jim Davies Civil Engineering,87577,100.80
"Department for Business, Energy and Industrial Strategy",The Coal Authority,28/08/2020,Surface Hazards - Contractor Costs,PS&S - General Claims,Jim Davies Civil Engineering,87577,340.00
"Department for Business, Energy and Industrial Strategy",The Coal Authority,28/08/2020,Surface Hazards - Contractor Costs,PS&S - General Claims,Jim Davies Civil Engineering,87577,21.71
"Department for Business, Energy and Industrial Strategy",The Coal Authority,28/08/2020,Surface Hazards - Contractor Costs,PS&S - General Claims,Jim Davies Civil Engineering,87577,"1,168.65"
"Department for Business, Energy and Industrial Strategy",The Coal Authority,28/08/2020,Surface Hazards - Contractor Costs,PS&S - General Claims,Jim Davies Civil Engineering,87577,18.92
"Department for Business, Energy and Industrial Strategy",The Coal Authority,28/08/2020,Surface Hazards - Contractor Costs,PS&S - General Claims,Jim Davies Civil Engineering,87577,13.90
"Department for Business, Energy and Industrial Strategy",The Coal Authority,28/08/2020,Surface Hazards - Contractor Costs,PS&S - General Claims,Jim Davies Civil Engineering,87577,"2,570.40"
"Department for Business, Energy and Industrial Strategy",The Coal Authority,28/08/2020,Surface Hazards - Contractor Costs,PS&S - General Claims,Jim Davies Civil Engineering,87577,182.80
"Department for Business, Energy and Industrial Strategy",The Coal Authority,28/08/2020,Surface Hazards - Contractor Costs,PS&S - General Claims,Jim Davies Civil Engineering,87577,"4,731.60"
"Department for Business, Energy and Industrial Strategy",The Coal Authority,28/08/2020,Surface Hazards - Contractor Costs,PS&S - General Claims,Jim Davies Civil Engineering,87577,"2,724.08"
"Department for Business, Energy and Industrial Strategy",The Coal Authority,28/08/2020,Surface Hazards - Contractor Costs,PS&S - General Claims,Jim Davies Civil Engineering,87577,150.00
"Department for Business, Energy and Industrial Strategy",The Coal Authority,28/08/2020,Surface Hazards - Contractor Costs,PS&S - General Claims,Jim Davies Civil Engineering,87577,12.00
"Department for Business, Energy and Industrial Strategy",The Coal Authority,28/08/2020,Surface Hazards - Contractor Costs,PS&S - General Claims,Jim Davies Civil Engineering,87577,75.44
"Department for Business, Energy and Industrial Strategy",The Coal Authority,28/08/2020,Surface Hazards - Contractor Costs,PS&S - General Claims,Jim Davies Civil Engineering,87577,"5,385.10"
"Department for Business, Energy and Industrial Strategy",The Coal Authority,28/08/2020,Surface Hazards - Contractor Costs,PS&S - General Claims,Jim Davies Civil Engineering,87577,716.04
"Department for Business, Energy and Industrial Strategy",The Coal Authority,28/08/2020,Surface Hazards - Contractor Costs,PS&S - General Claims,Jim Davies Civil Engineering,87577,"2,692.80"
"Department for Business, Energy and Industrial Strategy",The Coal Authority,28/08/2020,Surface Hazards - Contractor Costs,PS&S - General Claims,Jim Davies Civil Engineering,87577,"4,264.65"
"Department for Business, Energy and Industrial Strategy",The Coal Authority,28/08/2020,Surface Hazards - Contractor Costs,PS&S - General Claims,Jim Davies Civil Engineering,87577,"5,040.16"
"Department for Business, Energy and Industrial Strategy",The Coal Authority,28/08/2020,Surface Hazards - Contractor Costs,PS&S - General Claims,Jim Davies Civil Engineering,87577,48.00
"Department for Business, Energy and Industrial Strategy",The Coal Authority,28/08/2020,Surface Hazards - Contractor Costs,PS&S - General Claims,Jim Davies Civil Engineering,87577,66.00
"Department for Business, Energy and Industrial Strategy",The Coal Authority,28/08/2020,Surface Hazards - Contractor Costs,PS&S - General Claims,Jim Davies Civil Engineering,87577,0.57
"Department for Business, Energy and Industrial Strategy",The Coal Authority,28/08/2020,Surface Hazards - Contractor Costs,PS&S - General Claims,Jim Davies Civil Engineering,87577,665.76
"Department for Business, Energy and Industrial Strategy",The Coal Authority,28/08/2020,Surface Hazards - Contractor Costs,PS&S - General Claims,Jim Davies Civil Engineering,87577,100.80
"Department for Business, Energy and Industrial Strategy",The Coal Authority,28/08/2020,Surface Hazards - Contractor Costs,PS&S - General Claims,Jim Davies Civil Engineering,87577,30.72
"Department for Business, Energy and Industrial Strategy",The Coal Authority,28/08/2020,Surface Hazards - Contractor Costs,PS&S - General Claims,Jim Davies Civil Engineering,87577,149.28
"Department for Business, Energy and Industrial Strategy",The Coal Authority,11/05/2020,Electricity Usage,Facilities,British Gas Business,87578,"3,231.18"
"Department for Business, Energy and Industrial Strategy",The Coal Authority,11/05/2020,Minewater Power Costs,Environment - Contract Management,British Gas Business,87578,"3,249.02"
"Department for Business, Energy and Industrial Strategy",The Coal Authority,11/05/2020,Minewater Power Costs,Environment - Contract Management,British Gas Business,87578,771.99
"Department for Business, Energy and Industrial Strategy",The Coal Authority,11/05/2020,Minewater Power Costs,Environment - Contract Management,British Gas Business,87578,"4,035.33"
"Department for Business, Energy and Industrial Strategy",The Coal Authority,11/05/2020,Minewater Power Costs,Environment - Contract Management,British Gas Business,87578,27.92
"Department for Business, Energy and Industrial Strategy",The Coal Authority,11/05/2020,Minewater Power Costs,Environment - Contract Management,British Gas Business,87578,485.72
"Department for Business, Energy and Industrial Strategy",The Coal Authority,11/05/2020,Minewater Power Costs,Environment - Contract Management,British Gas Business,87578,926.41
"Department for Business, Energy and Industrial Strategy",The Coal Authority,11/05/2020,Minewater Power Costs,Environment - Contract Management,British Gas Business,87578,856.79
"Department for Business, Energy and Industrial Strategy",The Coal Authority,11/05/2020,Minewater Power Costs,Environment - Contract Management,British Gas Business,87578,9.58
"Department for Business, Energy and Industrial Strategy",The Coal Authority,11/05/2020,Minewater Power Costs,Environment - Contract Management,British Gas Business,87578,"1,689.33"
"Department for Business, Energy and Industrial Strategy",The Coal Authority,11/05/2020,Minewater Power Costs,Environment - Contract Management,British Gas Business,87578,330.63
"Department for Business, Energy and Industrial Strategy",The Coal Authority,11/05/2020,Minewater Power Costs,Environment - Contract Management,British Gas Business,87578,"1,040.27"
"Department for Business, Energy and Industrial Strategy",The Coal Authority,11/05/2020,Minewater Power Costs,Environment - Contract Management,British Gas Business,87578,"3,290.40"
"Department for Business, Energy and Industrial Strategy",The Coal Authority,11/05/2020,Minewater Power Costs,Environment - Contract Management,British Gas Business,87578,692.81
"Department for Business, Energy and Industrial Strategy",The Coal Authority,11/05/2020,Minewater Power Costs,Environment - Contract Management,British Gas Business,87578,"1,235.98"
"Department for Business, Energy and Industrial Strategy",The Coal Authority,11/05/2020,Minewater Power Costs,Environment - Contract Management,British Gas Business,87578,311.61
"Department for Business, Energy and Industrial Strategy",The Coal Authority,11/05/2020,Subsidence Pumping Maintenance - Power,Environment - Contract Management,British Gas Business,87578,60.44
"Department for Business, Energy and Industrial Strategy",The Coal Authority,11/05/2020,Subsidence Pumping Maintenance - Power,Environment - Contract Management,British Gas Business,87578,62.12
"Department for Business, Energy and Industrial Strategy",The Coal Authority,11/05/2020,Subsidence Pumping Maintenance - Power,Environment - Contract Management,British Gas Business,87578,312.28
"Department for Business, Energy and Industrial Strategy",The Coal Authority,11/05/2020,Subsidence Pumping Maintenance - Power,Environment - Contract Management,British Gas Business,87578,936.77
"Department for Business, Energy and Industrial Strategy",The Coal Authority,11/05/2020,Subsidence Pumping Maintenance - Power,Environment - Contract Management,British Gas Business,87578,449.16
"Department for Business, Energy and Industrial Strategy",The Coal Authority,11/05/2020,Subsidence Pumping Maintenance - Power,Environment - Contract Management,British Gas Business,87578,604.26
"Department for Business, Energy and Industrial Strategy",The Coal Authority,11/05/2020,Subsidence Pumping Maintenance - Power,Environment - Contract Management,British Gas Business,87578,55.84
"Department for Business, Energy and Industrial Strategy",The Coal Authority,11/05/2020,Subsidence Pumping Maintenance - Power,Environment - Contract Management,British Gas Business,87578,178.37
"Department for Business, Energy and Industrial Strategy",The Coal Authority,11/05/2020,Subsidence Pumping Maintenance - Power,Environment - Contract Management,British Gas Business,87578,160.21
"Department for Business, Energy and Industrial Strategy",The Coal Authority,28/08/2020,Surface Hazards - Contractor Costs,PS&S - General Claims,Jim Davies Civil Engineering,87579,262.61
"Department for Business, Energy and Industrial Strategy",The Coal Authority,28/08/2020,Surface Hazards - Contractor Costs,PS&S - General Claims,Jim Davies Civil Engineering,87579,633.60
"Department for Business, Energy and Industrial Strategy",The Coal Authority,28/08/2020,Surface Hazards - Contractor Costs,PS&S - General Claims,Jim Davies Civil Engineering,87579,37.80
"Department for Business, Energy and Industrial Strategy",The Coal Authority,28/08/2020,Surface Hazards - Contractor Costs,PS&S - General Claims,Jim Davies Civil Engineering,87579,405.00
"Department for Business, Energy and Industrial Strategy",The Coal Authority,28/08/2020,Surface Hazards - Contractor Costs,PS&S - General Claims,Jim Davies Civil Engineering,87579,75.60
"Department for Business, Energy and Industrial Strategy",The Coal Authority,28/08/2020,Surface Hazards - Contractor Costs,PS&S - General Claims,Jim Davies Civil Engineering,87579,33.62
"Department for Business, Energy and Industrial Strategy",The Coal Authority,28/08/2020,Surface Hazards - Contractor Costs,PS&S - General Claims,Jim Davies Civil Engineering,87579,399.12
"Department for Business, Energy and Industrial Strategy",The Coal Authority,28/08/2020,Surface Hazards - Contractor Costs,PS&S - General Claims,Jim Davies Civil Engineering,87579,604.80
"Department for Business, Energy and Industrial Strategy",The Coal Authority,28/08/2020,Surface Hazards - Contractor Costs,PS&S - General Claims,Jim Davies Civil Engineering,87579,"1,185.92"
"Department for Business, Energy and Industrial Strategy",The Coal Authority,28/08/2020,Surface Hazards - Contractor Costs,PS&S - General Claims,Jim Davies Civil Engineering,87579,604.80
"Department for Business, Energy and Industrial Strategy",The Coal Authority,28/08/2020,Surface Hazards - Contractor Costs,PS&S - General Claims,Jim Davies Civil Engineering,87579,44.10
"Department for Business, Energy and Industrial Strategy",The Coal Authority,28/08/2020,Surface Hazards - Contractor Costs,PS&S - General Claims,Jim Davies Civil Engineering,87579,91.40
"Department for Business, Energy and Industrial Strategy",The Coal Authority,28/08/2020,Surface Hazards - Contractor Costs,PS&S - General Claims,Jim Davies Civil Engineering,87579,6.38
"Department for Business, Energy and Industrial Strategy",The Coal Authority,28/08/2020,Tips - Maintenance,PS&S - Commercial Delivery,Jim Davies Civil Engineering,87580,60.00
"Department for Business, Energy and Industrial Strategy",The Coal Authority,28/08/2020,Tips - Maintenance,PS&S - Commercial Delivery,Jim Davies Civil Engineering,87580,"1,620.00"
"Department for Business, Energy and Industrial Strategy",The Coal Authority,28/08/2020,Tips - Maintenance,PS&S - Commercial Delivery,Jim Davies Civil Engineering,87580,480.00
"Department for Business, Energy and Industrial Strategy",The Coal Authority,28/08/2020,Tips - Maintenance,PS&S - Commercial Delivery,Jim Davies Civil Engineering,87580,555.20
"Department for Business, Energy and Industrial Strategy",The Coal Authority,28/08/2020,Temporary Contractors,Environment - Innovation Concept & Feasibility,Key Personnel Solutions Ltd,87588,"1,463.00"
"Department for Business, Energy and Industrial Strategy",The Coal Authority,02/09/2020,Minewater Telecoms & Telemetry,Environment - Contract Management,O2 (Uk) Limited,87589,12.50
"Department for Business, Energy and Industrial Strategy",The Coal Authority,02/09/2020,Minewater Telecoms & Telemetry,Environment - Contract Management,O2 (Uk) Limited,87590,12.50
"Department for Business, Energy and Industrial Strategy",The Coal Authority,02/09/2020,Minewater Telecoms & Telemetry,Environment - Contract Management,O2 (Uk) Limited,87591,12.50
"Department for Business, Energy and Industrial Strategy",The Coal Authority,27/08/2020,Legal - General,Development - Legal,Anderson Strathern,87592,26.00
"Department for Business, Energy and Industrial Strategy",The Coal Authority,27/08/2020,Legal - General,Development - Legal,Anderson Strathern,87593,702.00
"Department for Business, Energy and Industrial Strategy",The Coal Authority,28/08/2020,Surface Hazards - Contractor Costs,PS&S - General Claims,Alliance Contracting Solutions Ltd,87600,20.00
"Department for Business, Energy and Industrial Strategy",The Coal Authority,31/08/2020,Surface Hazards - Contractor Costs,PS&S - General Claims,Alliance Contracting Solutions Ltd,87601,243.60
"Department for Business, Energy and Industrial Strategy",The Coal Authority,02/09/2020,Innovation Costs,Environment - Innovation Concept & Feasibility,H2O WEM Ltd,87604,"2,400.00"
"Department for Business, Energy and Industrial Strategy",The Coal Authority,31/07/2020,Tips - Outsourced Management,PS&S - Commercial Delivery,Drone Evolution Ltd,87607,350.00
"Department for Business, Energy and Industrial Strategy",The Coal Authority,28/08/2020,Surface Hazards - Contractor Costs,PS&S - General Claims,Savills (Uk) Ltd,87608,"1,600.00"
"Department for Business, Energy and Industrial Strategy",The Coal Authority,31/08/2020,Subsidence - Contractor Costs,PS&S - General Claims,Luddon Construction Limited,87611,"72,569.25"
"Department for Business, Energy and Industrial Strategy",The Coal Authority,31/08/2020,Minewater Contractor Maint. Visits - Ops Site,Environment - Contract Management,National Coal Mining Museum,87612,"2,384.00"
"Department for Business, Energy and Industrial Strategy",The Coal Authority,31/08/2020,Minewater Water Charges,Environment - Contract Management,National Coal Mining Museum,87620,"2,264.11"
"Department for Business, Energy and Industrial Strategy",The Coal Authority,31/08/2020,Minewater Contractor Maint. Visits - Ops Site,Environment - Contract Management,National Coal Mining Museum,87621,"6,864.28"
"Department for Business, Energy and Industrial Strategy",The Coal Authority,01/09/2020,Surface Hazards - Contractor Costs,PS&S - General Claims,Thomas Menzies Builders Ltd,87622,"1,045.75"
"Department for Business, Energy and Industrial Strategy",The Coal Authority,01/09/2020,Surface Hazards - Contractor Costs,PS&S - General Claims,Thomas Menzies Builders Ltd,87622,570.24
"Department for Business, Energy and Industrial Strategy",The Coal Authority,01/09/2020,Surface Hazards - Contractor Costs,PS&S - General Claims,Thomas Menzies Builders Ltd,87622,"2,473.35"
"Department for Business, Energy and Industrial Strategy",The Coal Authority,01/09/2020,Surface Hazards - Contractor Costs,PS&S - General Claims,Thomas Menzies Builders Ltd,87622,420.00
"Department for Business, Energy and Industrial Strategy",The Coal Authority,01/09/2020,Surface Hazards - Contractor Costs,PS&S - General Claims,Thomas Menzies Builders Ltd,87622,432.00
"Department for Business, Energy and Industrial Strategy",The Coal Authority,01/09/2020,Surface Hazards - Contractor Costs,PS&S - General Claims,Thomas Menzies Builders Ltd,87622,777.00
"Department for Business, Energy and Industrial Strategy",The Coal Authority,01/09/2020,Surface Hazards - Contractor Costs,PS&S - General Claims,Thomas Menzies Builders Ltd,87622,543.84
"Department for Business, Energy and Industrial Strategy",The Coal Authority,01/09/2020,Surface Hazards - Contractor Costs,PS&S - General Claims,Thomas Menzies Builders Ltd,87622,"1,320.00"
"Department for Business, Energy and Industrial Strategy",The Coal Authority,01/09/2020,Surface Hazards - Contractor Costs,PS&S - General Claims,Thomas Menzies Builders Ltd,87622,"1,375.00"
"Department for Business, Energy and Industrial Strategy",The Coal Authority,01/09/2020,Surface Hazards - Contractor Costs,PS&S - General Claims,Thomas Menzies Builders Ltd,87622,49.26
"Department for Business, Energy and Industrial Strategy",The Coal Authority,01/09/2020,Surface Hazards - Contractor Costs,PS&S - General Claims,Thomas Menzies Builders Ltd,87622,564.00
"Department for Business, Energy and Industrial Strategy",The Coal Authority,01/09/2020,Surface Hazards - Contractor Costs,PS&S - General Claims,Thomas Menzies Builders Ltd,87622,295.10
"Department for Business, Energy and Industrial Strategy",The Coal Authority,01/09/2020,Surface Hazards - Contractor Costs,PS&S - General Claims,Thomas Menzies Builders Ltd,87622,138.33
"Department for Business, Energy and Industrial Strategy",The Coal Authority,01/09/2020,Surface Hazards - Contractor Costs,PS&S - General Claims,Thomas Menzies Builders Ltd,87622,60.00
"Department for Business, Energy and Industrial Strategy",The Coal Authority,01/09/2020,Surface Hazards - Contractor Costs,PS&S - General Claims,Thomas Menzies Builders Ltd,87622,675.00
"Department for Business, Energy and Industrial Strategy",The Coal Authority,01/09/2020,Surface Hazards - Contractor Costs,PS&S - General Claims,Thomas Menzies Builders Ltd,87622,"1,155.00"
"Department for Business, Energy and Industrial Strategy",The Coal Authority,01/09/2020,Surface Hazards - Contractor Costs,PS&S - General Claims,Thomas Menzies Builders Ltd,87622,551.52
"Department for Business, Energy and Industrial Strategy",The Coal Authority,01/09/2020,Surface Hazards - Contractor Costs,PS&S - General Claims,Thomas Menzies Builders Ltd,87622,180.00
"Department for Business, Energy and Industrial Strategy",The Coal Authority,01/09/2020,Surface Hazards - Contractor Costs,PS&S - General Claims,Thomas Menzies Builders Ltd,87622,"1,273.25"
"Department for Business, Energy and Industrial Strategy",The Coal Authority,28/08/2020,Subsidence - Contractor Costs,PS&S - Thoresby,Nal Plant Limited,87623,131.22
"Department for Business, Energy and Industrial Strategy",The Coal Authority,28/08/2020,Subsidence - Contractor Costs,PS&S - Thoresby,Nal Plant Limited,87623,159.21
"Department for Business, Energy and Industrial Strategy",The Coal Authority,28/08/2020,Subsidence - Contractor Costs,PS&S - Thoresby,Nal Plant Limited,87623,52.00
"Department for Business, Energy and Industrial Strategy",The Coal Authority,28/08/2020,Subsidence - Contractor Costs,PS&S - Thoresby,Nal Plant Limited,87623,35.00
"Department for Business, Energy and Industrial Strategy",The Coal Authority,28/08/2020,Subsidence - Contractor Costs,PS&S - Thoresby,Nal Plant Limited,87623,350.00
"Department for Business, Energy and Industrial Strategy",The Coal Authority,28/08/2020,Subsidence - Contractor Costs,PS&S - Thoresby,Nal Plant Limited,87623,360.00
"Department for Business, Energy and Industrial Strategy",The Coal Authority,28/08/2020,Subsidence - Contractor Costs,PS&S - Thoresby,Nal Plant Limited,87623,50.00
"Department for Business, Energy and Industrial Strategy",The Coal Authority,28/08/2020,Subsidence - Contractor Costs,PS&S - Thoresby,Nal Plant Limited,87624,547.02
"Department for Business, Energy and Industrial Strategy",The Coal Authority,28/08/2020,Subsidence - Contractor Costs,PS&S - Thoresby,Nal Plant Limited,87624,135.03
"Department for Business, Energy and Industrial Strategy",The Coal Authority,28/08/2020,Subsidence - Contractor Costs,PS&S - Thoresby,Nal Plant Limited,87624,600.00
"Department for Business, Energy and Industrial Strategy",The Coal Authority,28/08/2020,Subsidence - Contractor Costs,PS&S - Thoresby,Nal Plant Limited,87624,90.00
"Department for Business, Energy and Industrial Strategy",The Coal Authority,28/08/2020,Subsidence - Contractor Costs,PS&S - Thoresby,Nal Plant Limited,87624,860.00
"Department for Business, Energy and Industrial Strategy",The Coal Authority,28/08/2020,Subsidence - Contractor Costs,PS&S - Thoresby,Nal Plant Limited,87624,358.20
"Department for Business, Energy and Industrial Strategy",The Coal Authority,28/08/2020,Subsidence - Contractor Costs,PS&S - Thoresby,Nal Plant Limited,87624,41.26
"Department for Business, Energy and Industrial Strategy",The Coal Authority,28/08/2020,Subsidence - Contractor Costs,PS&S - Thoresby,Nal Plant Limited,87624,548.39
"Department for Business, Energy and Industrial Strategy",The Coal Authority,28/08/2020,Subsidence - Contractor Costs,PS&S - Thoresby,Nal Plant Limited,87624,90.27
"Department for Business, Energy and Industrial Strategy",The Coal Authority,28/08/2020,Subsidence - Contractor Costs,PS&S - Thoresby,Nal Plant Limited,87624,52.00
"Department for Business, Energy and Industrial Strategy",The Coal Authority,28/08/2020,Subsidence - Contractor Costs,PS&S - Thoresby,Nal Plant Limited,87624,49.28
"Department for Business, Energy and Industrial Strategy",The Coal Authority,28/08/2020,Subsidence - Contractor Costs,PS&S - Thoresby,Nal Plant Limited,87624,473.28
"Department for Business, Energy and Industrial Strategy",The Coal Authority,28/08/2020,Subsidence - Contractor Costs,PS&S - Thoresby,Nal Plant Limited,87624,50.00
"Department for Business, Energy and Industrial Strategy",The Coal Authority,28/08/2020,Subsidence - Contractor Costs,PS&S - Thoresby,Nal Plant Limited,87624,87.50
"Department for Business, Energy and Industrial Strategy",The Coal Authority,28/08/2020,Subsidence - Contractor Costs,PS&S - Thoresby,Nal Plant Limited,87624,131.22
"Department for Business, Energy and Industrial Strategy",The Coal Authority,28/08/2020,Subsidence - Contractor Costs,PS&S - Thoresby,Nal Plant Limited,87624,250.00
"Department for Business, Energy and Industrial Strategy",The Coal Authority,28/08/2020,Subsidence - Contractor Costs,PS&S - Thoresby,Nal Plant Limited,87624,558.00
"Department for Business, Energy and Industrial Strategy",The Coal Authority,31/07/2020,Subsidence Pumping - Management Fees,Environment - Contract Management,Doncaster East I D B,87629,224.35
"Department for Business, Energy and Industrial Strategy",The Coal Authority,31/07/2020,Subsidence Pumping Maintenance - Ad Hoc,Environment - Contract Management,Doncaster East I D B,87629,"1,198.98"
"Department for Business, Energy and Industrial Strategy",The Coal Authority,31/07/2020,Subsidence Pumping Maintenance - Ad Hoc,Environment - Contract Management,Doncaster East I D B,87629,100.00
"Department for Business, Energy and Industrial Strategy",The Coal Authority,31/07/2020,Subsidence Pumping Maintenance - Planned,Environment - Contract Management,Doncaster East I D B,87629,944.51
"Department for Business, Energy and Industrial Strategy",The Coal Authority,25/08/2020,Minewater Feasibility / Scoping,Environment - DEFRA - LEP Programme,Hydro-Logic Services Int Limited,87633,701.50
"Department for Business, Energy and Industrial Strategy",The Coal Authority,26/08/2020,Temporary Contractors,Finance,Cherry Professional Limited,87655,"1,787.10"
"Department for Business, Energy and Industrial Strategy",The Coal Authority,02/09/2020,Temporary Contractors,Finance,Cherry Professional Limited,87656,"1,787.10"
"Department for Business, Energy and Industrial Strategy",The Coal Authority,31/08/2020,Software Support & Maintenance - SaaS,Finance,Bottomline Technologies D/D,87657,155.35
"Department for Business, Energy and Industrial Strategy",The Coal Authority,01/09/2020,Legal - General,Development - Legal,Land Registry,87662,15.00
"Department for Business, Energy and Industrial Strategy",The Coal Authority,21/08/2020,Legal - General,Development - Legal,Land Registry,87663,42.00
"Department for Business, Energy and Industrial Strategy",The Coal Authority,26/08/2020,Legal - General,Development - Legal,Land Registry,87664,54.00
"Department for Business, Energy and Industrial Strategy",The Coal Authority,28/08/2020,Legal - General,Development - Legal,Land Registry,87665,12.00
"Department for Business, Energy and Industrial Strategy",The Coal Authority,27/08/2020,Minewater Monitoring & Flow Measurement,Environment - DEFRA - EA Programme,Socotec,87674,461.60
"Department for Business, Energy and Industrial Strategy",The Coal Authority,19/08/2020,Site Services,Facilities,Garry Dalton Window Cleaning Service Ltd,87675,660.00
"Department for Business, Energy and Industrial Strategy",The Coal Authority,25/08/2020,Minewater Monitoring & Flow Measurement,Environment - DEFRA - EA Programme,Hydro-Logic Services Int Limited,87680,276.85
"Department for Business, Energy and Industrial Strategy",The Coal Authority,26/08/2020,CY - Non-coal Minewater - Additions,Environment - DEFRA - LEP Programme,Turner and Townsend Project Management Ltd.,87681,"5,550.30"
"Department for Business, Energy and Industrial Strategy",The Coal Authority,26/08/2020,CY - Non-coal Minewater - Additions,Environment - DEFRA - LEP Programme,Turner and Townsend Project Management Ltd.,87681,0.02
"Department for Business, Energy and Industrial Strategy",The Coal Authority,28/08/2020,Minewater Site Investigations,Environment-Mine Prog Build Team (Coal&Metal),Cornerstone  Projects Ltd,87683,751.29
"Department for Business, Energy and Industrial Strategy",The Coal Authority,24/08/2020,Minewater Chemicals - Operational Sites,Environment - DEFRA - EA Programme,Veolia ES UK Ltd,87687,"10,680.93"
"Department for Business, Energy and Industrial Strategy",The Coal Authority,24/08/2020,Minewater Contractor Maint. Visits - Ops Site,Environment - DEFRA - EA Programme,Veolia ES UK Ltd,87687,"37,137.21"
"Department for Business, Energy and Industrial Strategy",The Coal Authority,24/08/2020,Minewater Power Costs,Environment - DEFRA - EA Programme,Veolia ES UK Ltd,87687,506.22
"Department for Business, Energy and Industrial Strategy",The Coal Authority,24/08/2020,Minewater Power Costs,Environment - DEFRA - EA Programme,Veolia ES UK Ltd,87687,"1,479.94"
"Department for Business, Energy and Industrial Strategy",The Coal Authority,24/08/2020,Minewater Power Costs,Environment - DEFRA - EA Programme,Veolia ES UK Ltd,87687,655.81
"Department for Business, Energy and Industrial Strategy",The Coal Authority,24/08/2020,Minewater Power Costs,Environment - DEFRA - EA Programme,Veolia ES UK Ltd,87687,"10,666.88"
"Department for Business, Energy and Industrial Strategy",The Coal Authority,24/08/2020,Minewater Sludge Disposal,Environment - DEFRA - EA Programme,Veolia ES UK Ltd,87687,"29,022.50"
"Department for Business, Energy and Industrial Strategy",The Coal Authority,07/09/2020,Minewater Power Costs,Environment - DEFRA - EA Programme,Veolia ES UK Ltd,87688,"-3,702.02"
"Department for Business, Energy and Industrial Strategy",The Coal Authority,07/09/2020,Minewater Sludge Disposal,Environment - DEFRA - EA Programme,Veolia ES UK Ltd,87688,-192.67
"Department for Business, Energy and Industrial Strategy",The Coal Authority,01/09/2020,Surface Hazards - Contractor Costs,PS&S - General Claims,Llettyshenkin Cons Co Ltd,87694,88.40
"Department for Business, Energy and Industrial Strategy",The Coal Authority,01/09/2020,Surface Hazards - Contractor Costs,PS&S - General Claims,Llettyshenkin Cons Co Ltd,87694,"5,790.72"
"Department for Business, Energy and Industrial Strategy",The Coal Authority,01/09/2020,Surface Hazards - Contractor Costs,PS&S - General Claims,Llettyshenkin Cons Co Ltd,87694,150.88
"Department for Business, Energy and Industrial Strategy",The Coal Authority,01/09/2020,Surface Hazards - Contractor Costs,PS&S - General Claims,Llettyshenkin Cons Co Ltd,87694,"2,460.64"
"Department for Business, Energy and Industrial Strategy",The Coal Authority,01/09/2020,Surface Hazards - Contractor Costs,PS&S - General Claims,Llettyshenkin Cons Co Ltd,87694,"5,460.00"
"Department for Business, Energy and Industrial Strategy",The Coal Authority,01/09/2020,Surface Hazards - Contractor Costs,PS&S - General Claims,Llettyshenkin Cons Co Ltd,87694,"4,740.00"
"Department for Business, Energy and Industrial Strategy",The Coal Authority,01/09/2020,Surface Hazards - Contractor Costs,PS&S - General Claims,Llettyshenkin Cons Co Ltd,87694,"3,900.00"
"Department for Business, Energy and Industrial Strategy",The Coal Authority,01/09/2020,Surface Hazards - Contractor Costs,PS&S - General Claims,Llettyshenkin Cons Co Ltd,87694,224.00
"Department for Business, Energy and Industrial Strategy",The Coal Authority,01/09/2020,Surface Hazards - Contractor Costs,PS&S - General Claims,Llettyshenkin Cons Co Ltd,87694,288.00
"Department for Business, Energy and Industrial Strategy",The Coal Authority,01/09/2020,Surface Hazards - Contractor Costs,PS&S - General Claims,Llettyshenkin Cons Co Ltd,87694,"2,970.00"
"Department for Business, Energy and Industrial Strategy",The Coal Authority,01/09/2020,Surface Hazards - Contractor Costs,PS&S - General Claims,Llettyshenkin Cons Co Ltd,87694,527.80
"Department for Business, Energy and Industrial Strategy",The Coal Authority,01/09/2020,Surface Hazards - Contractor Costs,PS&S - General Claims,Llettyshenkin Cons Co Ltd,87694,16.92
"Department for Business, Energy and Industrial Strategy",The Coal Authority,01/09/2020,Surface Hazards - Contractor Costs,PS&S - General Claims,Llettyshenkin Cons Co Ltd,87694,338.75
"Department for Business, Energy and Industrial Strategy",The Coal Authority,01/09/2020,Surface Hazards - Contractor Costs,PS&S - General Claims,Llettyshenkin Cons Co Ltd,87694,9.98
"Department for Business, Energy and Industrial Strategy",The Coal Authority,01/09/2020,Surface Hazards - Contractor Costs,PS&S - General Claims,Llettyshenkin Cons Co Ltd,87694,93.44
"Department for Business, Energy and Industrial Strategy",The Coal Authority,01/09/2020,Surface Hazards - Contractor Costs,PS&S - General Claims,Llettyshenkin Cons Co Ltd,87694,145.39
"Department for Business, Energy and Industrial Strategy",The Coal Authority,01/09/2020,Surface Hazards - Contractor Costs,PS&S - General Claims,Llettyshenkin Cons Co Ltd,87694,137.71
"Department for Business, Energy and Industrial Strategy",The Coal Authority,01/09/2020,Surface Hazards - Contractor Costs,PS&S - General Claims,Llettyshenkin Cons Co Ltd,87694,119.86
"Department for Business, Energy and Industrial Strategy",The Coal Authority,01/09/2020,Surface Hazards - Contractor Costs,PS&S - General Claims,Llettyshenkin Cons Co Ltd,87694,107.14
"Department for Business, Energy and Industrial Strategy",The Coal Authority,01/09/2020,Surface Hazards - Contractor Costs,PS&S - General Claims,Llettyshenkin Cons Co Ltd,87694,628.50
"Department for Business, Energy and Industrial Strategy",The Coal Authority,01/09/2020,Surface Hazards - Contractor Costs,PS&S - General Claims,Llettyshenkin Cons Co Ltd,87694,119.86
"Department for Business, Energy and Industrial Strategy",The Coal Authority,01/09/2020,Surface Hazards - Contractor Costs,PS&S - General Claims,Llettyshenkin Cons Co Ltd,87694,155.57
"Department for Business, Energy and Industrial Strategy",The Coal Authority,01/09/2020,Surface Hazards - Contractor Costs,PS&S - General Claims,Llettyshenkin Cons Co Ltd,87694,69.77
"Department for Business, Energy and Industrial Strategy",The Coal Authority,01/09/2020,Surface Hazards - Contractor Costs,PS&S - General Claims,Llettyshenkin Cons Co Ltd,87694,118.08
"Department for Business, Energy and Industrial Strategy",The Coal Authority,01/09/2020,Surface Hazards - Contractor Costs,PS&S - General Claims,Llettyshenkin Cons Co Ltd,87694,69.75
"Department for Business, Energy and Industrial Strategy",The Coal Authority,01/09/2020,Surface Hazards - Contractor Costs,PS&S - General Claims,Llettyshenkin Cons Co Ltd,87694,136.32
"Department for Business, Energy and Industrial Strategy",The Coal Authority,01/09/2020,Surface Hazards - Contractor Costs,PS&S - General Claims,Llettyshenkin Cons Co Ltd,87694,9.40
"Department for Business, Energy and Industrial Strategy",The Coal Authority,01/09/2020,Surface Hazards - Contractor Costs,PS&S - General Claims,Llettyshenkin Cons Co Ltd,87694,525.00
"Department for Business, Energy and Industrial Strategy",The Coal Authority,01/09/2020,Surface Hazards - Contractor Costs,PS&S - General Claims,Llettyshenkin Cons Co Ltd,87694,432.00
"Department for Business, Energy and Industrial Strategy",The Coal Authority,01/09/2020,Surface Hazards - Contractor Costs,PS&S - General Claims,Llettyshenkin Cons Co Ltd,87694,100.00
"Department for Business, Energy and Industrial Strategy",The Coal Authority,01/09/2020,Surface Hazards - Contractor Costs,PS&S - General Claims,Llettyshenkin Cons Co Ltd,87694,300.00
"Department for Business, Energy and Industrial Strategy",The Coal Authority,01/09/2020,Surface Hazards - Contractor Costs,PS&S - General Claims,Llettyshenkin Cons Co Ltd,87694,96.66
"Department for Business, Energy and Industrial Strategy",The Coal Authority,01/09/2020,Surface Hazards - Contractor Costs,PS&S - General Claims,Llettyshenkin Cons Co Ltd,87694,371.32
"Department for Business, Energy and Industrial Strategy",The Coal Authority,07/09/2020,Contract Hire Vehicles,PS&S - General Claims,Days Fleet,87695,"-4,739.04"
"Department for Business, Energy and Industrial Strategy",The Coal Authority,07/09/2020,Contract Hire Vehicles,PS&S - General Claims,Days Fleet,87695,-473.90
"Department for Business, Energy and Industrial Strategy",The Coal Authority,07/09/2020,Contract Hire Vehicles,PS&S - General Claims,Days Fleet,87695,-356.40
"Department for Business, Energy and Industrial Strategy",The Coal Authority,01/08/2020,Contract Hire Vehicles,PS&S - General Claims,Days Fleet,87696,"4,331.98"
"Department for Business, Energy and Industrial Strategy",The Coal Authority,01/08/2020,Contract Hire Vehicles,PS&S - General Claims,Days Fleet,87696,433.20
"Department for Business, Energy and Industrial Strategy",The Coal Authority,01/08/2020,Contract Hire Vehicles,PS&S - General Claims,Days Fleet,87696,465.00
"Department for Business, Energy and Industrial Strategy",The Coal Authority,01/08/2020,Contract Hire Vehicles,PS&S - General Claims,Days Fleet,87699,"4,739.04"
"Department for Business, Energy and Industrial Strategy",The Coal Authority,01/08/2020,Contract Hire Vehicles,PS&S - General Claims,Days Fleet,87699,356.40
"Department for Business, Energy and Industrial Strategy",The Coal Authority,01/08/2020,Contract Hire Vehicles,PS&S - General Claims,Days Fleet,87699,473.90
"Department for Business, Energy and Industrial Strategy",The Coal Authority,07/09/2020,Other Hosting / IaaS,Mining Reports Retail,Bytemark Limited,87700,-0.19
"Department for Business, Energy and Industrial Strategy",The Coal Authority,28/06/2020,Contract Hire Vehicles,PS&S - Commercial Delivery,Lex Autolease Ltd,87705,356.70
"Department for Business, Energy and Industrial Strategy",The Coal Authority,28/06/2020,Contract Hire Vehicles,PS&S - Commercial Delivery,Lex Autolease Ltd,87705,35.67
"Department for Business, Energy and Industrial Strategy",The Coal Authority,28/06/2020,Contract Hire Vehicles,PS&S - Commercial Delivery,Lex Autolease Ltd,87705,94.99
"Department for Business, Energy and Industrial Strategy",The Coal Authority,28/07/2020,Contract Hire Vehicles,PS&S - Commercial Delivery,Lex Autolease Ltd,87706,356.70
"Department for Business, Energy and Industrial Strategy",The Coal Authority,28/07/2020,Contract Hire Vehicles,PS&S - Commercial Delivery,Lex Autolease Ltd,87706,94.99
"Department for Business, Energy and Industrial Strategy",The Coal Authority,28/07/2020,Contract Hire Vehicles,PS&S - Commercial Delivery,Lex Autolease Ltd,87706,35.67
"Department for Business, Energy and Industrial Strategy",The Coal Authority,31/07/2020,Mileage Payments,Environment - Contract Management,Staff Expenses Control,87707,1.80
"Department for Business, Energy and Industrial Strategy",The Coal Authority,31/07/2020,Mileage Payments,Environment-Mine Prog Build Team (Coal&Metal),Staff Expenses Control,87707,67.05
"Department for Business, Energy and Industrial Strategy",The Coal Authority,31/07/2020,Mileage Payments,Environment-Mine Prog Build Team (Coal&Metal),Staff Expenses Control,87707,67.05
"Department for Business, Energy and Industrial Strategy",The Coal Authority,12/08/2020,Mileage Payments,Mining Information,Staff Expenses Control,87707,8.10
"Department for Business, Energy and Industrial Strategy",The Coal Authority,18/08/2020,Mileage Payments,PS&S - General Claims,Staff Expenses Control,87707,35.25
"Department for Business, Energy and Industrial Strategy",The Coal Authority,18/08/2020,Mileage Payments,PS&S - General Claims,Staff Expenses Control,87707,35.19
"Department for Business, Energy and Industrial Strategy",The Coal Authority,27/07/2020,Mileage Payments,PS&S - Industry Claims,Staff Expenses Control,87707,19.80
"Department for Business, Energy and Industrial Strategy",The Coal Authority,29/07/2020,Mileage Payments,PS&S - Industry Claims,Staff Expenses Control,87707,51.30
"Department for Business, Energy and Industrial Strategy",The Coal Authority,05/08/2020,Mileage Payments,PS&S - Industry Claims,Staff Expenses Control,87707,53.10
"Department for Business, Energy and Industrial Strategy",The Coal Authority,19/08/2020,Mileage Payments,PS&S - Industry Claims,Staff Expenses Control,87707,53.10
"Department for Business, Energy and Industrial Strategy",The Coal Authority,20/08/2020,Mileage Payments,PS&S - Industry Claims,Staff Expenses Control,87707,18.00
"Department for Business, Energy and Industrial Strategy",The Coal Authority,21/08/2020,Mileage Payments,PS&S - Industry Claims,Staff Expenses Control,87707,19.80
"Department for Business, Energy and Industrial Strategy",The Coal Authority,26/08/2020,Mileage Payments,PS&S - Industry Claims,Staff Expenses Control,87707,53.10
"Department for Business, Energy and Industrial Strategy",The Coal Authority,07/08/2020,Mileage Payments,PS&S - Management,Staff Expenses Control,87707,89.07
"Department for Business, Energy and Industrial Strategy",The Coal Authority,07/08/2020,Mileage Payments,PS&S - Management,Staff Expenses Control,87707,89.54
"Department for Business, Energy and Industrial Strategy",The Coal Authority,19/08/2020,Mileage Payments,PS&S - Management,Staff Expenses Control,87707,72.18
"Department for Business, Energy and Industrial Strategy",The Coal Authority,19/08/2020,Mileage Payments,PS&S - Management,Staff Expenses Control,87707,72.90
"Department for Business, Energy and Industrial Strategy",The Coal Authority,07/09/2020,Postage & Couriers,Customer Strategy,Staff Expenses Control,87707,20.38
"Department for Business, Energy and Industrial Strategy",The Coal Authority,04/09/2020,Stationery,Finance,Staff Expenses Control,87707,39.51
"Department for Business, Energy and Industrial Strategy",The Coal Authority,28/08/2020,Hardware Support,Infrastructure Management,European Electronique Ltd,87711,"9,665.00"
"Department for Business, Energy and Industrial Strategy",The Coal Authority,21/08/2020,Postage & Couriers,Customer Services,FedEx Express UK Transportaion Limited,87717,35.92
"Department for Business, Energy and Industrial Strategy",The Coal Authority,28/08/2020,Postage & Couriers,Customer Services,FedEx Express UK Transportaion Limited,87718,86.43
"Department for Business, Energy and Industrial Strategy",The Coal Authority,04/09/2020,Subsidence - Contractor Costs,PS&S - General Claims,Whitehouse Construction,87721,49.39
"Department for Business, Energy and Industrial Strategy",The Coal Authority,04/09/2020,Subsidence - Contractor Costs,PS&S - General Claims,Whitehouse Construction,87721,309.25
"Department for Business, Energy and Industrial Strategy",The Coal Authority,07/09/2020,Surface Hazards - Contractor Costs,PS&S - General Claims,Cornerstone  Projects Ltd,87725,265.70
"Department for Business, Energy and Industrial Strategy",The Coal Authority,03/07/2020,Tips - Maintenance,PS&S - Commercial Delivery,Jim Davies Civil Engineering,87726,600.00
"Department for Business, Energy and Industrial Strategy",The Coal Authority,03/07/2020,Tips - Maintenance,PS&S - Commercial Delivery,Jim Davies Civil Engineering,87726,810.00
"Department for Business, Energy and Industrial Strategy",The Coal Authority,03/07/2020,Tips - Maintenance,PS&S - Commercial Delivery,Jim Davies Civil Engineering,87726,150.00
"Department for Business, Energy and Industrial Strategy",The Coal Authority,03/07/2020,Tips - Maintenance,PS&S - Commercial Delivery,Jim Davies Civil Engineering,87726,805.80
"Department for Business, Energy and Industrial Strategy",The Coal Authority,03/07/2020,Tips - Maintenance,PS&S - Commercial Delivery,Jim Davies Civil Engineering,87726,"3,240.00"
"Department for Business, Energy and Industrial Strategy",The Coal Authority,03/07/2020,Tips - Maintenance,PS&S - Commercial Delivery,Jim Davies Civil Engineering,87726,120.87
"Department for Business, Energy and Industrial Strategy",The Coal Authority,03/07/2020,Tips - Maintenance,PS&S - Commercial Delivery,Jim Davies Civil Engineering,87726,600.00
"Department for Business, Energy and Industrial Strategy",The Coal Authority,03/07/2020,Tips - Maintenance,PS&S - Commercial Delivery,Jim Davies Civil Engineering,87726,392.00
"Department for Business, Energy and Industrial Strategy",The Coal Authority,03/07/2020,Tips - Maintenance,PS&S - Commercial Delivery,Jim Davies Civil Engineering,87726,"1,388.00"
"Department for Business, Energy and Industrial Strategy",The Coal Authority,04/09/2020,Subsidence - Contractor Costs,PS&S - Thoresby,Compensation Payment,87729,"3,448.60"
"Department for Business, Energy and Industrial Strategy",The Coal Authority,07/08/2020,Subsidence - Contractor Costs,PS&S - General Claims,Compensation Payment,87730,350.00
"Department for Business, Energy and Industrial Strategy",The Coal Authority,02/09/2020,Subsidence - Contractor Costs,PS&S - General Claims,Compensation Payment,87736,614.68
"Department for Business, Energy and Industrial Strategy",The Coal Authority,28/08/2020,Subsidence - Contractor Costs,PS&S - Kellingley,M H Poskitt Ltd,87737,859.90
"Department for Business, Energy and Industrial Strategy",The Coal Authority,28/08/2020,Subsidence - Contractor Costs,PS&S - Kellingley,M H Poskitt Ltd,87737,"9,663.28"
"Department for Business, Energy and Industrial Strategy",The Coal Authority,02/09/2020,Surface Hazards - Contractor Costs,PS&S - General Claims,Compensation Payment,87738,700.00
"Department for Business, Energy and Industrial Strategy",The Coal Authority,31/08/2020,Subsidence - Contractor Costs,PS&S - General Claims,Luddon Construction Limited,87739,476.99
"Department for Business, Energy and Industrial Strategy",The Coal Authority,20/08/2020,Minewater Monitoring & Flow Measurement,Environment - DEFRA - EA Programme,Hydro-Logic Services Int Limited,87747,209.00
"Department for Business, Energy and Industrial Strategy",The Coal Authority,03/09/2020,Other Hosting / IaaS,Service Management,Amazon Web Services EMEA SARL,87748,0.05
"Department for Business, Energy and Industrial Strategy",The Coal Authority,21/08/2020,Minewater Sampling - Operational Sites,Environment - Contract Management,Socotec,87749,421.32
"Department for Business, Energy and Industrial Strategy",The Coal Authority,13/08/2020,Training & Education,Business Analysis,Assist Knowledge Development Ltd,87756,"1,215.00"
"Department for Business, Energy and Industrial Strategy",The Coal Authority,27/07/2020,Payroll Processing Fees,Finance,Cgi It Uk Ltd,87757,"1,166.29"
"Department for Business, Energy and Industrial Strategy",The Coal Authority,31/08/2020,Minewater Site Surveys,Environment - DEFRA - LEP Programme,Enviro Centre,87758,"3,495.00"
"Department for Business, Energy and Industrial Strategy",The Coal Authority,21/08/2020,Payroll Processing Fees,Finance,Cgi It Uk Ltd,87759,"1,090.59"
"Department for Business, Energy and Industrial Strategy",The Coal Authority,25/08/2020,Minewater Pump Overhauls,Environment - Contract Management,National Coal Mining Museum,87762,"89,895.61"
"Department for Business, Energy and Industrial Strategy",The Coal Authority,27/08/2020,Surface Hazards - Contractor Costs,PS&S - General Claims,RPS Consulting Services Limited,87768,957.50
"Department for Business, Energy and Industrial Strategy",The Coal Authority,28/08/2020,Surface Hazards - Contractor Costs,PS&S - General Claims,Jim Davies Civil Engineering,87769,202.50
"Department for Business, Energy and Industrial Strategy",The Coal Authority,28/08/2020,Surface Hazards - Contractor Costs,PS&S - General Claims,Alliance Contracting Solutions Ltd,87770,177.15
"Department for Business, Energy and Industrial Strategy",The Coal Authority,25/08/2020,Surface Hazards - Contractor Costs,PS&S - General Claims,Alliance Contracting Solutions Ltd,87771,"5,506.12"
"Department for Business, Energy and Industrial Strategy",The Coal Authority,25/08/2020,Surface Hazards - Contractor Costs,PS&S - General Claims,Alliance Contracting Solutions Ltd,87771,"1,991.89"
"Department for Business, Energy and Industrial Strategy",The Coal Authority,25/08/2020,Surface Hazards - Contractor Costs,PS&S - General Claims,Alliance Contracting Solutions Ltd,87771,"1,900.00"
"Department for Business, Energy and Industrial Strategy",The Coal Authority,25/08/2020,Surface Hazards - Contractor Costs,PS&S - General Claims,Alliance Contracting Solutions Ltd,87771,"3,260.16"
"Department for Business, Energy and Industrial Strategy",The Coal Authority,25/08/2020,Surface Hazards - Contractor Costs,PS&S - General Claims,Alliance Contracting Solutions Ltd,87771,640.00
"Department for Business, Energy and Industrial Strategy",The Coal Authority,25/08/2020,Surface Hazards - Contractor Costs,PS&S - General Claims,Alliance Contracting Solutions Ltd,87771,850.00
"Department for Business, Energy and Industrial Strategy",The Coal Authority,25/08/2020,Surface Hazards - Contractor Costs,PS&S - General Claims,Alliance Contracting Solutions Ltd,87771,284.25
"Department for Business, Energy and Industrial Strategy",The Coal Authority,25/08/2020,Surface Hazards - Contractor Costs,PS&S - General Claims,Alliance Contracting Solutions Ltd,87771,"2,071.44"
"Department for Business, Energy and Industrial Strategy",The Coal Authority,25/08/2020,Surface Hazards - Contractor Costs,PS&S - General Claims,Alliance Contracting Solutions Ltd,87771,"4,122.72"
"Department for Business, Energy and Industrial Strategy",The Coal Authority,25/08/2020,Surface Hazards - Contractor Costs,PS&S - General Claims,Alliance Contracting Solutions Ltd,87771,120.00
"Department for Business, Energy and Industrial Strategy",The Coal Authority,07/09/2020,Software Support & Maintenance - SaaS,Infrastructure Management,Gradian Systems Ltd.,87785,"-1,991.00"
"Department for Business, Energy and Industrial Strategy",The Coal Authority,02/09/2020,Subsidence - Contractor Costs,PS&S - General Claims,PMC Surveys,87793,"3,300.00"
"Department for Business, Energy and Industrial Strategy",The Coal Authority,07/09/2020,Property Rents Payable,Development - Historic Property Liabilities,Trustees Of The Plumtree Child Trust,87794,"55,738.37"
"Department for Business, Energy and Industrial Strategy",The Coal Authority,07/09/2020,Minewater Rent,Environment - Contract Management,Tom Horsfield,87795,"1,057.56"
"Department for Business, Energy and Industrial Strategy",The Coal Authority,07/09/2020,Minewater Rent,Environment - Contract Management,Rental Payment,87796,"3,000.00"
"Department for Business, Energy and Industrial Strategy",The Coal Authority,07/09/2020,Minewater Rent,Environment-Mine Prog Build Team (Coal&Metal),P M Quigley & Sons,87797,"2,750.00"
"Department for Business, Energy and Industrial Strategy",The Coal Authority,30/04/2020,Minewater Discharge Consents,Environment - Contract Management,Natural Resources Wales,87803,139.67
"Department for Business, Energy and Industrial Strategy",The Coal Authority,30/04/2020,Minewater Discharge Consents,Environment - Contract Management,Natural Resources Wales,87804,"1,026.00"
"Department for Business, Energy and Industrial Strategy",The Coal Authority,30/04/2020,Minewater Discharge Consents,Environment - Contract Management,Natural Resources Wales,87805,"1,026.00"
"Department for Business, Energy and Industrial Strategy",The Coal Authority,30/04/2020,Minewater Discharge Consents,Environment - Contract Management,Natural Resources Wales,87806,342.00
"Department for Business, Energy and Industrial Strategy",The Coal Authority,30/04/2020,Minewater Discharge Consents,Environment - Contract Management,Natural Resources Wales,87806,684.00
"Department for Business, Energy and Industrial Strategy",The Coal Authority,07/09/2020,Bridgewater - Contractor Costs,PS&S - General Claims,The Bridgewater Canal Co Ltd,87810,"16,322.02"
"Department for Business, Energy and Industrial Strategy",The Coal Authority,02/09/2020,Fuel (Vehicle),PS&S - Commercial Delivery,Allstar Business Solutions Ltd,87824,21.28
"Department for Business, Energy and Industrial Strategy",The Coal Authority,02/09/2020,Fuel (Vehicle),PS&S - Commercial Delivery,Allstar Business Solutions Ltd,87824,40.09
"Department for Business, Energy and Industrial Strategy",The Coal Authority,02/09/2020,Fuel (Vehicle),PS&S - General Claims,Allstar Business Solutions Ltd,87824,28.33
"Department for Business, Energy and Industrial Strategy",The Coal Authority,02/09/2020,Fuel (Vehicle),PS&S - General Claims,Allstar Business Solutions Ltd,87824,24.68
"Department for Business, Energy and Industrial Strategy",The Coal Authority,02/09/2020,Fuel (Vehicle),PS&S - General Claims,Allstar Business Solutions Ltd,87824,16.68
"Department for Business, Energy and Industrial Strategy",The Coal Authority,02/09/2020,Fuel (Vehicle),PS&S - General Claims,Allstar Business Solutions Ltd,87824,44.04
"Department for Business, Energy and Industrial Strategy",The Coal Authority,02/09/2020,Fuel (Vehicle),PS&S - General Claims,Allstar Business Solutions Ltd,87824,80.51
"Department for Business, Energy and Industrial Strategy",The Coal Authority,02/09/2020,Fuel (Vehicle),PS&S - General Claims,Allstar Business Solutions Ltd,87824,34.73
"Department for Business, Energy and Industrial Strategy",The Coal Authority,02/09/2020,Fuel (Vehicle),PS&S - General Claims,Allstar Business Solutions Ltd,87824,11.40
"Department for Business, Energy and Industrial Strategy",The Coal Authority,12/08/2020,Water Charges,Facilities,Water Plus Limited,87831,363.01
"Department for Business, Energy and Industrial Strategy",The Coal Authority,31/08/2020,Site Repairs & Maintenance,Facilities,Ulyett Landscapes Ltd,87832,"1,010.66"
"Department for Business, Energy and Industrial Strategy",The Coal Authority,27/08/2020,Plant Maintenance,Facilities,Briggs & Forrester Building Services Maintenance L,87833,"2,220.08"
"Department for Business, Energy and Industrial Strategy",The Coal Authority,31/08/2020,Plant Maintenance,Facilities,Briggs & Forrester Building Services Maintenance L,87834,"1,106.57"
"Department for Business, Energy and Industrial Strategy",The Coal Authority,31/08/2020,Plant Maintenance,Facilities,Briggs & Forrester Building Services Maintenance L,87834,116.90
"Department for Business, Energy and Industrial Strategy",The Coal Authority,30/04/2020,Outsourced Security Staff,Facilities,Regent Office Care Ltd T/A Regent Samsic,87845,"6,469.64"
"Department for Business, Energy and Industrial Strategy",The Coal Authority,30/04/2020,Outsourced Security Staff,Facilities,Regent Office Care Ltd T/A Regent Samsic,87845,498.11
"Department for Business, Energy and Industrial Strategy",The Coal Authority,30/04/2020,Outsourced Security Staff,Facilities,Regent Office Care Ltd T/A Regent Samsic,87845,"2,201.49"
"Department for Business, Energy and Industrial Strategy",The Coal Authority,02/09/2020,Fuel (Vehicle),Environment-Mine Prog Build Team (Coal&Metal),Allstar Business Solutions Ltd,87846,26.12
"Department for Business, Energy and Industrial Strategy",The Coal Authority,31/08/2020,Outsourced Security Staff,Facilities,Regent Office Care Ltd T/A Regent Samsic,87847,"6,469.64"
"Department for Business, Energy and Industrial Strategy",The Coal Authority,31/08/2020,Outsourced Security Staff,Facilities,Regent Office Care Ltd T/A Regent Samsic,87847,498.11
"Department for Business, Energy and Industrial Strategy",The Coal Authority,18/08/2020,Plant Maintenance,Facilities,Maintech Power Ltd,87848,800.00
"Department for Business, Energy and Industrial Strategy",The Coal Authority,28/08/2020,Works Projects,Facilities,Lindum Group Ltd,87849,"1,228.50"
"Department for Business, Energy and Industrial Strategy",The Coal Authority,28/08/2020,Works Projects,Facilities,Lindum Group Ltd,87849,441.00
"Department for Business, Energy and Industrial Strategy",The Coal Authority,21/08/2020,Office Furniture,Facilities,Office Essentials Limited,87853,72.50
"Department for Business, Energy and Industrial Strategy",The Coal Authority,21/08/2020,Office Furniture,Facilities,Office Essentials Limited,87854,93.00
"Department for Business, Energy and Industrial Strategy",The Coal Authority,04/09/2020,Electricity Usage,Facilities,Edf Energy,87856,"9,200.53"
"Department for Business, Energy and Industrial Strategy",The Coal Authority,04/09/2020,Minewater Power Costs,Environment - Contract Management,Edf Energy,87856,"3,032.34"
"Department for Business, Energy and Industrial Strategy",The Coal Authority,04/09/2020,Minewater Power Costs,Environment - Contract Management,Edf Energy,87856,779.76
"Department for Business, Energy and Industrial Strategy",The Coal Authority,04/09/2020,Minewater Power Costs,Environment - Contract Management,Edf Energy,87856,"1,500.26"
"Department for Business, Energy and Industrial Strategy",The Coal Authority,04/09/2020,Minewater Power Costs,Environment - Contract Management,Edf Energy,87856,"6,392.18"
"Department for Business, Energy and Industrial Strategy",The Coal Authority,04/09/2020,Minewater Power Costs,Environment - Contract Management,Edf Energy,87856,"3,929.60"
"Department for Business, Energy and Industrial Strategy",The Coal Authority,04/09/2020,Minewater Power Costs,Environment - Contract Management,Edf Energy,87856,"9,384.37"
"Department for Business, Energy and Industrial Strategy",The Coal Authority,04/09/2020,Minewater Power Costs,Environment - Contract Management,Edf Energy,87856,"11,076.04"
"Department for Business, Energy and Industrial Strategy",The Coal Authority,04/09/2020,Minewater Power Costs,Environment - Contract Management,Edf Energy,87856,"21,929.41"
"Department for Business, Energy and Industrial Strategy",The Coal Authority,04/09/2020,Minewater Power Costs,Environment - Contract Management,Edf Energy,87856,675.81
"Department for Business, Energy and Industrial Strategy",The Coal Authority,04/09/2020,Minewater Power Costs,Environment - Contract Management,Edf Energy,87856,"2,203.08"
"Department for Business, Energy and Industrial Strategy",The Coal Authority,04/09/2020,Minewater Power Costs,Environment - Contract Management,Edf Energy,87856,"6,623.26"
"Department for Business, Energy and Industrial Strategy",The Coal Authority,04/09/2020,Minewater Power Costs,Environment - Contract Management,Edf Energy,87856,"7,722.99"
"Department for Business, Energy and Industrial Strategy",The Coal Authority,04/09/2020,Minewater Power Costs,Environment - Contract Management,Edf Energy,87856,"11,112.53"
"Department for Business, Energy and Industrial Strategy",The Coal Authority,04/09/2020,Minewater Power Costs,Environment - Contract Management,Edf Energy,87856,"15,371.59"
"Department for Business, Energy and Industrial Strategy",The Coal Authority,04/09/2020,Minewater Power Costs,Environment - Contract Management,Edf Energy,87856,"18,609.21"
"Department for Business, Energy and Industrial Strategy",The Coal Authority,04/09/2020,Minewater Power Costs,Environment - Contract Management,Edf Energy,87856,272.69
"Department for Business, Energy and Industrial Strategy",The Coal Authority,04/09/2020,Minewater Power Costs,Environment - Contract Management,Edf Energy,87856,833.80
"Department for Business, Energy and Industrial Strategy",The Coal Authority,04/09/2020,Minewater Power Costs,Environment - Contract Management,Edf Energy,87856,"12,152.06"
"Department for Business, Energy and Industrial Strategy",The Coal Authority,04/09/2020,Minewater Power Costs,Environment - Contract Management,Edf Energy,87856,"1,009.94"
"Department for Business, Energy and Industrial Strategy",The Coal Authority,04/09/2020,Minewater Power Costs,Environment - Contract Management,Edf Energy,87856,"6,079.84"
"Department for Business, Energy and Industrial Strategy",The Coal Authority,04/09/2020,Minewater Power Costs,Environment - Contract Management,Edf Energy,87856,79.58
"Department for Business, Energy and Industrial Strategy",The Coal Authority,04/09/2020,Minewater Power Costs,Environment - Contract Management,Edf Energy,87856,"1,872.93"
"Department for Business, Energy and Industrial Strategy",The Coal Authority,04/09/2020,Minewater Power Costs,Environment - Contract Management,Edf Energy,87856,"2,352.82"
"Department for Business, Energy and Industrial Strategy",The Coal Authority,04/09/2020,Minewater Power Costs,Environment - Contract Management,Edf Energy,87856,"14,192.09"
"Department for Business, Energy and Industrial Strategy",The Coal Authority,04/09/2020,Minewater Power Costs,Environment - Contract Management,Edf Energy,87856,"1,992.35"
"Department for Business, Energy and Industrial Strategy",The Coal Authority,04/09/2020,Minewater Power Costs,Environment - Contract Management,Edf Energy,87856,"13,124.62"
"Department for Business, Energy and Industrial Strategy",The Coal Authority,04/09/2020,Minewater Power Costs,Environment - Contract Management,Edf Energy,87856,"2,316.82"
"Department for Business, Energy and Industrial Strategy",The Coal Authority,04/09/2020,Minewater Power Costs,Environment - Contract Management,Edf Energy,87856,859.53
"Department for Business, Energy and Industrial Strategy",The Coal Authority,04/09/2020,Minewater Power Costs,Environment - Contract Management,Edf Energy,87856,"9,836.85"
"Department for Business, Energy and Industrial Strategy",The Coal Authority,04/09/2020,Minewater Power Costs,Environment - Contract Management,Edf Energy,87856,"4,504.63"
"Department for Business, Energy and Industrial Strategy",The Coal Authority,04/09/2020,Minewater Power Costs,Environment - Contract Management,Edf Energy,87856,709.77
"Department for Business, Energy and Industrial Strategy",The Coal Authority,04/09/2020,Minewater Power Costs,Environment - Contract Management,Edf Energy,87856,"3,246.23"
"Department for Business, Energy and Industrial Strategy",The Coal Authority,04/09/2020,Minewater Power Costs,Environment - Contract Management,Edf Energy,87856,451.08
"Department for Business, Energy and Industrial Strategy",The Coal Authority,04/09/2020,Minewater Power Costs,Environment - Contract Management,Edf Energy,87856,"17,662.38"
"Department for Business, Energy and Industrial Strategy",The Coal Authority,04/09/2020,Minewater Power Costs,Environment - Contract Management,Edf Energy,87856,"1,868.08"
"Department for Business, Energy and Industrial Strategy",The Coal Authority,04/09/2020,Minewater Power Costs,Environment - DEFRA - EA Programme,Edf Energy,87856,"2,239.01"
"Department for Business, Energy and Industrial Strategy",The Coal Authority,04/09/2020,Minewater Power Costs,Environment - DEFRA - EA Programme,Edf Energy,87856,"29,569.02"
"Department for Business, Energy and Industrial Strategy",The Coal Authority,04/09/2020,Minewater Pumping Tests,Environment-Mine Prog Build Team (Coal&Metal),Edf Energy,87856,"3,129.92"
"Department for Business, Energy and Industrial Strategy",The Coal Authority,04/09/2020,Subsidence Pumping Maintenance - Power,Environment - Contract Management,Edf Energy,87856,354.98
"Department for Business, Energy and Industrial Strategy",The Coal Authority,04/09/2020,Subsidence Pumping Maintenance - Power,Environment - Contract Management,Edf Energy,87856,184.34
"Department for Business, Energy and Industrial Strategy",The Coal Authority,04/09/2020,Subsidence Pumping Maintenance - Power,Environment - Contract Management,Edf Energy,87856,288.75
"Department for Business, Energy and Industrial Strategy",The Coal Authority,04/09/2020,Subsidence Pumping Maintenance - Power,Environment - Contract Management,Edf Energy,87856,341.30
"Department for Business, Energy and Industrial Strategy",The Coal Authority,04/09/2020,Subsidence Pumping Maintenance - Power,Environment - Contract Management,Edf Energy,87856,189.87
"Department for Business, Energy and Industrial Strategy",The Coal Authority,04/09/2020,Subsidence Pumping Maintenance - Power,Environment - Contract Management,Edf Energy,87856,53.65
"Department for Business, Energy and Industrial Strategy",The Coal Authority,04/09/2020,Subsidence Pumping Maintenance - Power,Environment - Contract Management,Edf Energy,87856,426.81
"Department for Business, Energy and Industrial Strategy",The Coal Authority,04/09/2020,Subsidence Pumping Maintenance - Power,Environment - Contract Management,Edf Energy,87856,872.80
"Department for Business, Energy and Industrial Strategy",The Coal Authority,04/09/2020,Subsidence Pumping Maintenance - Power,Environment - Contract Management,Edf Energy,87856,402.57
"Department for Business, Energy and Industrial Strategy",The Coal Authority,04/09/2020,Subsidence Pumping Maintenance - Power,Environment - Contract Management,Edf Energy,87856,145.01
"Department for Business, Energy and Industrial Strategy",The Coal Authority,04/09/2020,Legal - General,Development - Legal,Dla Piper Uk Llp,87870,"4,054.28"
"Department for Business, Energy and Industrial Strategy",The Coal Authority,04/09/2020,Legal - General,Development - Legal,Dla Piper Uk Llp,87870,143.81
"Department for Business, Energy and Industrial Strategy",The Coal Authority,04/09/2020,Legal - General,Development - Legal,Dla Piper Uk Llp,87870,"1,527.56"
"Department for Business, Energy and Industrial Strategy",The Coal Authority,04/09/2020,Legal - General,Development - Legal,Dla Piper Uk Llp,87870,"1,272.68"
"Department for Business, Energy and Industrial Strategy",The Coal Authority,04/09/2020,Legal - General,Development - Legal,Dla Piper Uk Llp,87870,973.88
"Department for Business, Energy and Industrial Strategy",The Coal Authority,04/09/2020,Legal - General,Development - Legal,Dla Piper Uk Llp,87870,"2,344.67"
"Department for Business, Energy and Industrial Strategy",The Coal Authority,04/09/2020,Legal - General,Development - Legal,Dla Piper Uk Llp,87870,731.65
"Department for Business, Energy and Industrial Strategy",The Coal Authority,28/08/2020,Surface Hazards - Contractor Costs,PS&S - General Claims,Jim Davies Civil Engineering,87876,200.00
"Department for Business, Energy and Industrial Strategy",The Coal Authority,07/09/2020,CY - Non-coal Minewater - Additions,Environment - DEFRA - EA Programme,Wear Rivers Trust,87880,"1,354.53"
"Department for Business, Energy and Industrial Strategy",The Coal Authority,01/09/2020,Temporary Contractors,Development - Property Management,Hays Specialist Recruitment,87882,"1,142.95"
"Department for Business, Energy and Industrial Strategy",The Coal Authority,09/09/2020,Fuel (Vehicle),PS&S - Commercial Delivery,PM - VAT on private mileage,87885,13.60
"Department for Business, Energy and Industrial Strategy",The Coal Authority,09/09/2020,Fuel (Vehicle),PS&S - General Claims,PM - VAT on private mileage,87885,0.42
"Department for Business, Energy and Industrial Strategy",The Coal Authority,09/09/2020,Fuel (Vehicle),PS&S - General Claims,PM - VAT on private mileage,87885,10.26
"Department for Business, Energy and Industrial Strategy",The Coal Authority,09/09/2020,Fuel (Vehicle),PS&S - Industry Claims,PM - VAT on private mileage,87885,3.35
"Department for Business, Energy and Industrial Strategy",The Coal Authority,26/07/2020,Temporary Contractors,Procurement,Macildowie Associates,87893,"2,000.00"
"Department for Business, Energy and Industrial Strategy",The Coal Authority,31/08/2020,Site Repairs & Maintenance,Facilities,total integrated solutions,87896,"20,000.00"
"Department for Business, Energy and Industrial Strategy",The Coal Authority,07/09/2020,CY - Non-coal Minewater - Additions,Environment - DEFRA - EA Programme,Wear Rivers Trust,87897,"8,893.67"
"Department for Business, Energy and Industrial Strategy",The Coal Authority,09/09/2020,CY - Minewater Scheme - Additions,Environment-Mine Prog Build Team (Coal&Metal),Addleshaw Goddard LLP Office Account,87956,"10,312.71"
"Department for Business, Energy and Industrial Strategy",The Coal Authority,28/08/2020,Bank Charges,Finance,National Westminster Bank Plc,87963,72.64
"Department for Business, Energy and Industrial Strategy",The Coal Authority,04/09/2020,Minewater Rent,Environment - DEFRA - EA Programme,The National Trust,87964,10.00
"Department for Business, Energy and Industrial Strategy",The Coal Authority,01/09/2020,Minewater Rent,Environment - Contract Management,Fisher German,87967,700.00
"Department for Business, Energy and Industrial Strategy",The Coal Authority,01/09/2020,Minewater Rent,Environment - Contract Management,Fisher German,87970,700.00
"Department for Business, Energy and Industrial Strategy",The Coal Authority,09/09/2020,Surface Hazards - Contractor Costs,PS&S - General Claims,Alliance Contracting Solutions Ltd,87980,"2,350.40"
"Department for Business, Energy and Industrial Strategy",The Coal Authority,09/09/2020,Surface Hazards - Contractor Costs,PS&S - General Claims,Alliance Contracting Solutions Ltd,87980,"1,408.40"
"Department for Business, Energy and Industrial Strategy",The Coal Authority,09/09/2020,Surface Hazards - Contractor Costs,PS&S - General Claims,Alliance Contracting Solutions Ltd,87980,687.00
"Department for Business, Energy and Industrial Strategy",The Coal Authority,09/09/2020,Surface Hazards - Contractor Costs,PS&S - General Claims,Alliance Contracting Solutions Ltd,87980,303.50
"Department for Business, Energy and Industrial Strategy",The Coal Authority,09/09/2020,Surface Hazards - Contractor Costs,PS&S - General Claims,Alliance Contracting Solutions Ltd,87980,"3,919.60"
"Department for Business, Energy and Industrial Strategy",The Coal Authority,09/09/2020,Surface Hazards - Contractor Costs,PS&S - General Claims,Alliance Contracting Solutions Ltd,87980,"2,071.44"
"Department for Business, Energy and Industrial Strategy",The Coal Authority,09/09/2020,Surface Hazards - Contractor Costs,PS&S - General Claims,Alliance Contracting Solutions Ltd,87980,565.68
"Department for Business, Energy and Industrial Strategy",The Coal Authority,09/09/2020,Surface Hazards - Contractor Costs,PS&S - General Claims,Alliance Contracting Solutions Ltd,87980,"5,984.16"
"Department for Business, Energy and Industrial Strategy",The Coal Authority,09/09/2020,Surface Hazards - Contractor Costs,PS&S - General Claims,Alliance Contracting Solutions Ltd,87980,"1,131.36"
"Department for Business, Energy and Industrial Strategy",The Coal Authority,09/09/2020,Surface Hazards - Contractor Costs,PS&S - General Claims,Alliance Contracting Solutions Ltd,87980,443.00
"Department for Business, Energy and Industrial Strategy",The Coal Authority,09/09/2020,Surface Hazards - Contractor Costs,PS&S - General Claims,Alliance Contracting Solutions Ltd,87980,800.00
"Department for Business, Energy and Industrial Strategy",The Coal Authority,09/09/2020,Surface Hazards - Contractor Costs,PS&S - General Claims,Alliance Contracting Solutions Ltd,87980,600.00
"Department for Business, Energy and Industrial Strategy",The Coal Authority,09/09/2020,Surface Hazards - Contractor Costs,PS&S - General Claims,Alliance Contracting Solutions Ltd,87980,"2,000.00"
"Department for Business, Energy and Industrial Strategy",The Coal Authority,09/09/2020,Surface Hazards - Contractor Costs,PS&S - General Claims,Alliance Contracting Solutions Ltd,87980,206.43
"Department for Business, Energy and Industrial Strategy",The Coal Authority,09/09/2020,Surface Hazards - Contractor Costs,PS&S - General Claims,Alliance Contracting Solutions Ltd,87980,520.37
"Department for Business, Energy and Industrial Strategy",The Coal Authority,09/09/2020,Surface Hazards - Contractor Costs,PS&S - General Claims,Alliance Contracting Solutions Ltd,87980,20.00
"Department for Business, Energy and Industrial Strategy",The Coal Authority,09/09/2020,Surface Hazards - Contractor Costs,PS&S - General Claims,Alliance Contracting Solutions Ltd,87980,27.80
"Department for Business, Energy and Industrial Strategy",The Coal Authority,09/09/2020,Surface Hazards - Contractor Costs,PS&S - General Claims,Alliance Contracting Solutions Ltd,87980,696.00
"Department for Business, Energy and Industrial Strategy",The Coal Authority,09/09/2020,Surface Hazards - Contractor Costs,PS&S - General Claims,Alliance Contracting Solutions Ltd,87980,450.00
"Department for Business, Energy and Industrial Strategy",The Coal Authority,09/09/2020,Surface Hazards - Contractor Costs,PS&S - General Claims,Alliance Contracting Solutions Ltd,87980,456.00
"Department for Business, Energy and Industrial Strategy",The Coal Authority,09/09/2020,Surface Hazards - Contractor Costs,PS&S - General Claims,Alliance Contracting Solutions Ltd,87980,260.00
"Department for Business, Energy and Industrial Strategy",The Coal Authority,09/09/2020,Surface Hazards - Contractor Costs,PS&S - General Claims,Alliance Contracting Solutions Ltd,87980,650.00
"Department for Business, Energy and Industrial Strategy",The Coal Authority,09/09/2020,Surface Hazards - Contractor Costs,PS&S - General Claims,Alliance Contracting Solutions Ltd,87980,360.00
"Department for Business, Energy and Industrial Strategy",The Coal Authority,09/09/2020,Surface Hazards - Contractor Costs,PS&S - General Claims,Alliance Contracting Solutions Ltd,87980,16.00
"Department for Business, Energy and Industrial Strategy",The Coal Authority,09/09/2020,Surface Hazards - Contractor Costs,PS&S - General Claims,Alliance Contracting Solutions Ltd,87980,16.00
"Department for Business, Energy and Industrial Strategy",The Coal Authority,09/09/2020,Surface Hazards - Contractor Costs,PS&S - General Claims,Alliance Contracting Solutions Ltd,87980,44.20
"Department for Business, Energy and Industrial Strategy",The Coal Authority,09/09/2020,Surface Hazards - Contractor Costs,PS&S - General Claims,Alliance Contracting Solutions Ltd,87980,"1,746.67"
"Department for Business, Energy and Industrial Strategy",The Coal Authority,09/09/2020,Surface Hazards - Contractor Costs,PS&S - General Claims,Alliance Contracting Solutions Ltd,87980,72.00
"Department for Business, Energy and Industrial Strategy",The Coal Authority,09/09/2020,Surface Hazards - Contractor Costs,PS&S - General Claims,Alliance Contracting Solutions Ltd,87980,35.30
"Department for Business, Energy and Industrial Strategy",The Coal Authority,09/09/2020,Surface Hazards - Contractor Costs,PS&S - General Claims,Alliance Contracting Solutions Ltd,87980,18.06
"Department for Business, Energy and Industrial Strategy",The Coal Authority,09/09/2020,Surface Hazards - Contractor Costs,PS&S - General Claims,Alliance Contracting Solutions Ltd,87980,5.80
"Department for Business, Energy and Industrial Strategy",The Coal Authority,09/09/2020,Surface Hazards - Contractor Costs,PS&S - General Claims,Alliance Contracting Solutions Ltd,87980,249.04
"Department for Business, Energy and Industrial Strategy",The Coal Authority,09/09/2020,Surface Hazards - Contractor Costs,PS&S - General Claims,Alliance Contracting Solutions Ltd,87980,382.42
"Department for Business, Energy and Industrial Strategy",The Coal Authority,09/09/2020,Surface Hazards - Contractor Costs,PS&S - General Claims,Alliance Contracting Solutions Ltd,87980,108.40
"Department for Business, Energy and Industrial Strategy",The Coal Authority,09/09/2020,Surface Hazards - Contractor Costs,PS&S - General Claims,Alliance Contracting Solutions Ltd,87980,"2,056.31"
"Department for Business, Energy and Industrial Strategy",The Coal Authority,10/09/2020,Surface Hazards - Contractor Costs,PS&S - General Claims,Cornerstone  Projects Ltd,87981,235.70
"Department for Business, Energy and Industrial Strategy",The Coal Authority,02/09/2020,Subsidence Pumping - Management Fees,Environment - Contract Management,Danvm Drainage Commissioners,87984,"8,451.23"
"Department for Business, Energy and Industrial Strategy",The Coal Authority,02/09/2020,Subsidence Pumping Maintenance - Ad Hoc,Environment - Contract Management,Danvm Drainage Commissioners,87984,"2,943.60"
"Department for Business, Energy and Industrial Strategy",The Coal Authority,02/09/2020,Subsidence Pumping Maintenance - Ad Hoc,Environment - Contract Management,Danvm Drainage Commissioners,87984,"3,945.00"
"Department for Business, Energy and Industrial Strategy",The Coal Authority,02/09/2020,Subsidence Pumping Maintenance - Ad Hoc,Environment - Contract Management,Danvm Drainage Commissioners,87984,"2,718.75"
"Department for Business, Energy and Industrial Strategy",The Coal Authority,02/09/2020,Subsidence Pumping Maintenance - Ad Hoc,Environment - Contract Management,Danvm Drainage Commissioners,87984,"4,463.40"
"Department for Business, Energy and Industrial Strategy",The Coal Authority,02/09/2020,Subsidence Pumping Maintenance - Ad Hoc,Environment - Contract Management,Danvm Drainage Commissioners,87984,"2,730.00"
"Department for Business, Energy and Industrial Strategy",The Coal Authority,02/09/2020,Subsidence Pumping Maintenance - Planned,Environment - Contract Management,Danvm Drainage Commissioners,87984,211.54
"Department for Business, Energy and Industrial Strategy",The Coal Authority,02/09/2020,Subsidence Pumping Maintenance - Planned,Environment - Contract Management,Danvm Drainage Commissioners,87984,351.54
"Department for Business, Energy and Industrial Strategy",The Coal Authority,02/09/2020,Subsidence Pumping Maintenance - Planned,Environment - Contract Management,Danvm Drainage Commissioners,87984,504.03
"Department for Business, Energy and Industrial Strategy",The Coal Authority,02/09/2020,Subsidence Pumping Maintenance - Planned,Environment - Contract Management,Danvm Drainage Commissioners,87984,211.54
"Department for Business, Energy and Industrial Strategy",The Coal Authority,02/09/2020,Subsidence Pumping Maintenance - Planned,Environment - Contract Management,Danvm Drainage Commissioners,87984,246.54
"Department for Business, Energy and Industrial Strategy",The Coal Authority,02/09/2020,Subsidence Pumping Maintenance - Planned,Environment - Contract Management,Danvm Drainage Commissioners,87984,211.54
"Department for Business, Energy and Industrial Strategy",The Coal Authority,02/09/2020,Subsidence Pumping Maintenance - Planned,Environment - Contract Management,Danvm Drainage Commissioners,87984,241.51
"Department for Business, Energy and Industrial Strategy",The Coal Authority,02/09/2020,Subsidence Pumping Maintenance - Planned,Environment - Contract Management,Danvm Drainage Commissioners,87984,"1,171.78"
"Department for Business, Energy and Industrial Strategy",The Coal Authority,02/09/2020,Subsidence Pumping Maintenance - Planned,Environment - Contract Management,Danvm Drainage Commissioners,87984,246.54
"Department for Business, Energy and Industrial Strategy",The Coal Authority,02/09/2020,Subsidence Pumping Maintenance - Planned,Environment - Contract Management,Danvm Drainage Commissioners,87984,816.19
"Department for Business, Energy and Industrial Strategy",The Coal Authority,02/09/2020,Subsidence Pumping Maintenance - Planned,Environment - Contract Management,Danvm Drainage Commissioners,87984,596.54
"Department for Business, Energy and Industrial Strategy",The Coal Authority,02/09/2020,Subsidence Pumping Maintenance - Planned,Environment - Contract Management,Danvm Drainage Commissioners,87984,412.79
"Department for Business, Energy and Industrial Strategy",The Coal Authority,02/09/2020,Subsidence Pumping Maintenance - Planned,Environment - Contract Management,Danvm Drainage Commissioners,87984,211.54
"Department for Business, Energy and Industrial Strategy",The Coal Authority,02/09/2020,Subsidence Pumping Maintenance - Planned,Environment - Contract Management,Danvm Drainage Commissioners,87984,763.69
"Department for Business, Energy and Industrial Strategy",The Coal Authority,02/09/2020,Subsidence Pumping Maintenance - Planned,Environment - Contract Management,Danvm Drainage Commissioners,87984,211.54
"Department for Business, Energy and Industrial Strategy",The Coal Authority,02/09/2020,Subsidence Pumping Maintenance - Planned,Environment - Contract Management,Danvm Drainage Commissioners,87984,211.54
"Department for Business, Energy and Industrial Strategy",The Coal Authority,02/09/2020,Subsidence Pumping Maintenance - Planned,Environment - Contract Management,Danvm Drainage Commissioners,87984,211.54
"Department for Business, Energy and Industrial Strategy",The Coal Authority,02/09/2020,Subsidence Pumping Maintenance - Planned,Environment - Contract Management,Danvm Drainage Commissioners,87984,"1,554.86"
"Department for Business, Energy and Industrial Strategy",The Coal Authority,02/09/2020,Subsidence Pumping Maintenance - Planned,Environment - Contract Management,Danvm Drainage Commissioners,87984,211.54
"Department for Business, Energy and Industrial Strategy",The Coal Authority,02/09/2020,Subsidence Pumping Maintenance - Planned,Environment - Contract Management,Danvm Drainage Commissioners,87984,761.83
"Department for Business, Energy and Industrial Strategy",The Coal Authority,02/09/2020,Subsidence Pumping Maintenance - Planned,Environment - Contract Management,Danvm Drainage Commissioners,87984,583.75
"Department for Business, Energy and Industrial Strategy",The Coal Authority,02/09/2020,Subsidence Pumping Maintenance - Planned,Environment - Contract Management,Danvm Drainage Commissioners,87984,264.04
"Department for Business, Energy and Industrial Strategy",The Coal Authority,02/09/2020,Subsidence Pumping Maintenance - Planned,Environment - Contract Management,Danvm Drainage Commissioners,87984,"1,145.53"
"Department for Business, Energy and Industrial Strategy",The Coal Authority,02/09/2020,Subsidence Pumping Maintenance - Planned,Environment - Contract Management,Danvm Drainage Commissioners,87984,211.54
"Department for Business, Energy and Industrial Strategy",The Coal Authority,02/09/2020,Subsidence Pumping Maintenance - Planned,Environment - Contract Management,Danvm Drainage Commissioners,87984,211.54
"Department for Business, Energy and Industrial Strategy",The Coal Authority,02/09/2020,Subsidence Pumping Maintenance - Planned,Environment - Contract Management,Danvm Drainage Commissioners,87984,769.98
"Department for Business, Energy and Industrial Strategy",The Coal Authority,02/09/2020,Subsidence Pumping Maintenance - Planned,Environment - Contract Management,Danvm Drainage Commissioners,87984,840.31
"Department for Business, Energy and Industrial Strategy",The Coal Authority,02/09/2020,Subsidence Pumping Maintenance - Planned,Environment - Contract Management,Danvm Drainage Commissioners,87984,"1,382.70"
"Department for Business, Energy and Industrial Strategy",The Coal Authority,02/09/2020,Subsidence Pumping Maintenance - Planned,Environment - Contract Management,Danvm Drainage Commissioners,87984,211.54
"Department for Business, Energy and Industrial Strategy",The Coal Authority,02/09/2020,Subsidence Pumping Maintenance - Planned,Environment - Contract Management,Danvm Drainage Commissioners,87984,211.54
"Department for Business, Energy and Industrial Strategy",The Coal Authority,02/09/2020,Subsidence Pumping Maintenance - Planned,Environment - Contract Management,Danvm Drainage Commissioners,87984,246.54
"Department for Business, Energy and Industrial Strategy",The Coal Authority,02/09/2020,Subsidence Pumping Maintenance - Planned,Environment - Contract Management,Danvm Drainage Commissioners,87984,211.54
"Department for Business, Energy and Industrial Strategy",The Coal Authority,02/09/2020,Subsidence Pumping Maintenance - Planned,Environment - Contract Management,Danvm Drainage Commissioners,87984,649.04
"Department for Business, Energy and Industrial Strategy",The Coal Authority,02/09/2020,Subsidence Pumping Maintenance - Planned,Environment - Contract Management,Danvm Drainage Commissioners,87984,"2,824.79"
"Department for Business, Energy and Industrial Strategy",The Coal Authority,02/09/2020,Subsidence Pumping Maintenance - Planned,Environment - Contract Management,Danvm Drainage Commissioners,87984,621.76
"Department for Business, Energy and Industrial Strategy",The Coal Authority,02/09/2020,Subsidence Pumping Maintenance - Planned,Environment - Contract Management,Danvm Drainage Commissioners,87984,-0.03
"Department for Business, Energy and Industrial Strategy",The Coal Authority,02/09/2020,Subsidence Pumping Maintenance - Power,Environment - Contract Management,Danvm Drainage Commissioners,87984,286.63
"Department for Business, Energy and Industrial Strategy",The Coal Authority,02/09/2020,Subsidence Pumping Maintenance - Power,Environment - Contract Management,Danvm Drainage Commissioners,87984,359.88
"Department for Business, Energy and Industrial Strategy",The Coal Authority,02/09/2020,Subsidence Pumping Maintenance - Power,Environment - Contract Management,Danvm Drainage Commissioners,87984,97.57
"Department for Business, Energy and Industrial Strategy",The Coal Authority,02/09/2020,Subsidence Pumping Maintenance - Power,Environment - Contract Management,Danvm Drainage Commissioners,87984,"2,506.91"
"Department for Business, Energy and Industrial Strategy",The Coal Authority,02/09/2020,Subsidence Pumping Maintenance - Power,Environment - Contract Management,Danvm Drainage Commissioners,87984,"2,468.55"
"Department for Business, Energy and Industrial Strategy",The Coal Authority,02/09/2020,Subsidence Pumping Maintenance - Power,Environment - Contract Management,Danvm Drainage Commissioners,87984,404.93
"Department for Business, Energy and Industrial Strategy",The Coal Authority,02/09/2020,Subsidence Pumping Maintenance - Power,Environment - Contract Management,Danvm Drainage Commissioners,87984,424.26
"Department for Business, Energy and Industrial Strategy",The Coal Authority,02/09/2020,Subsidence Pumping Maintenance - Power,Environment - Contract Management,Danvm Drainage Commissioners,87984,266.50
"Department for Business, Energy and Industrial Strategy",The Coal Authority,02/09/2020,Subsidence Pumping Maintenance - Power,Environment - Contract Management,Danvm Drainage Commissioners,87984,406.83
"Department for Business, Energy and Industrial Strategy",The Coal Authority,02/09/2020,Subsidence Pumping Maintenance - Power,Environment - Contract Management,Danvm Drainage Commissioners,87984,"2,201.99"
"Department for Business, Energy and Industrial Strategy",The Coal Authority,02/09/2020,Subsidence Pumping Maintenance - Power,Environment - Contract Management,Danvm Drainage Commissioners,87984,468.31
"Department for Business, Energy and Industrial Strategy",The Coal Authority,02/09/2020,Subsidence Pumping Maintenance - Power,Environment - Contract Management,Danvm Drainage Commissioners,87984,587.68
"Department for Business, Energy and Industrial Strategy",The Coal Authority,02/09/2020,Subsidence Pumping Maintenance - Power,Environment - Contract Management,Danvm Drainage Commissioners,87984,"4,129.93"
"Department for Business, Energy and Industrial Strategy",The Coal Authority,02/09/2020,Subsidence Pumping Maintenance - Power,Environment - Contract Management,Danvm Drainage Commissioners,87984,980.43
"Department for Business, Energy and Industrial Strategy",The Coal Authority,02/09/2020,Subsidence Pumping Maintenance - Power,Environment - Contract Management,Danvm Drainage Commissioners,87984,"2,012.78"
"Department for Business, Energy and Industrial Strategy",The Coal Authority,02/09/2020,Subsidence Pumping Maintenance - Power,Environment - Contract Management,Danvm Drainage Commissioners,87984,"2,191.33"
"Department for Business, Energy and Industrial Strategy",The Coal Authority,09/09/2020,Surface Hazards - Contractor Costs,PS&S - General Claims,Whitehouse Construction,87985,519.60
"Department for Business, Energy and Industrial Strategy",The Coal Authority,09/09/2020,Surface Hazards - Contractor Costs,PS&S - General Claims,Whitehouse Construction,87985,704.40
"Department for Business, Energy and Industrial Strategy",The Coal Authority,09/09/2020,Surface Hazards - Contractor Costs,PS&S - General Claims,Whitehouse Construction,87985,683.76
"Department for Business, Energy and Industrial Strategy",The Coal Authority,09/09/2020,Surface Hazards - Contractor Costs,PS&S - General Claims,Whitehouse Construction,87985,441.84
"Department for Business, Energy and Industrial Strategy",The Coal Authority,09/09/2020,Surface Hazards - Contractor Costs,PS&S - General Claims,Whitehouse Construction,87985,135.60
"Department for Business, Energy and Industrial Strategy",The Coal Authority,09/09/2020,Surface Hazards - Contractor Costs,PS&S - General Claims,Whitehouse Construction,87985,172.59
"Department for Business, Energy and Industrial Strategy",The Coal Authority,09/09/2020,Surface Hazards - Contractor Costs,PS&S - General Claims,Whitehouse Construction,87985,279.38
"Department for Business, Energy and Industrial Strategy",The Coal Authority,09/09/2020,Surface Hazards - Contractor Costs,PS&S - General Claims,Whitehouse Construction,87985,223.69
"Department for Business, Energy and Industrial Strategy",The Coal Authority,09/09/2020,Surface Hazards - Contractor Costs,PS&S - General Claims,Whitehouse Construction,87985,21.00
"Department for Business, Energy and Industrial Strategy",The Coal Authority,09/09/2020,Surface Hazards - Contractor Costs,PS&S - General Claims,Whitehouse Construction,87985,390.00
"Department for Business, Energy and Industrial Strategy",The Coal Authority,09/09/2020,Surface Hazards - Contractor Costs,PS&S - General Claims,Whitehouse Construction,87985,47.20
"Department for Business, Energy and Industrial Strategy",The Coal Authority,09/09/2020,Surface Hazards - Contractor Costs,PS&S - General Claims,Whitehouse Construction,87985,104.00
"Department for Business, Energy and Industrial Strategy",The Coal Authority,09/09/2020,Surface Hazards - Contractor Costs,PS&S - General Claims,Whitehouse Construction,87985,67.46
"Department for Business, Energy and Industrial Strategy",The Coal Authority,09/09/2020,Surface Hazards - Contractor Costs,PS&S - General Claims,Whitehouse Construction,87990,207.52
"Department for Business, Energy and Industrial Strategy",The Coal Authority,09/09/2020,Surface Hazards - Contractor Costs,PS&S - General Claims,Whitehouse Construction,87990,140.88
"Department for Business, Energy and Industrial Strategy",The Coal Authority,09/09/2020,Surface Hazards - Contractor Costs,PS&S - General Claims,Whitehouse Construction,87990,227.92
"Department for Business, Energy and Industrial Strategy",The Coal Authority,09/09/2020,Surface Hazards - Contractor Costs,PS&S - General Claims,Whitehouse Construction,87990,147.28
"Department for Business, Energy and Industrial Strategy",The Coal Authority,09/09/2020,Surface Hazards - Contractor Costs,PS&S - General Claims,Whitehouse Construction,87990,135.60
"Department for Business, Energy and Industrial Strategy",The Coal Authority,09/09/2020,Surface Hazards - Contractor Costs,PS&S - General Claims,Whitehouse Construction,87990,57.53
"Department for Business, Energy and Industrial Strategy",The Coal Authority,09/09/2020,Surface Hazards - Contractor Costs,PS&S - General Claims,Whitehouse Construction,87990,93.13
"Department for Business, Energy and Industrial Strategy",The Coal Authority,09/09/2020,Surface Hazards - Contractor Costs,PS&S - General Claims,Whitehouse Construction,87990,184.46
"Department for Business, Energy and Industrial Strategy",The Coal Authority,09/09/2020,Surface Hazards - Contractor Costs,PS&S - General Claims,Whitehouse Construction,87990,7.00
"Department for Business, Energy and Industrial Strategy",The Coal Authority,09/09/2020,Surface Hazards - Contractor Costs,PS&S - General Claims,Whitehouse Construction,87990,90.00
"Department for Business, Energy and Industrial Strategy",The Coal Authority,09/09/2020,Surface Hazards - Contractor Costs,PS&S - General Claims,Whitehouse Construction,87990,295.00
"Department for Business, Energy and Industrial Strategy",The Coal Authority,09/09/2020,Surface Hazards - Contractor Costs,PS&S - General Claims,Whitehouse Construction,87990,47.20
"Department for Business, Energy and Industrial Strategy",The Coal Authority,09/09/2020,Surface Hazards - Contractor Costs,PS&S - General Claims,Whitehouse Construction,87990,81.25
"Department for Business, Energy and Industrial Strategy",The Coal Authority,09/09/2020,Surface Hazards - Contractor Costs,PS&S - General Claims,Whitehouse Construction,87990,43.00
"Department for Business, Energy and Industrial Strategy",The Coal Authority,09/09/2020,Surface Hazards - Contractor Costs,PS&S - General Claims,Whitehouse Construction,87990,67.61
"Department for Business, Energy and Industrial Strategy",The Coal Authority,09/09/2020,Surface Hazards - Contractor Costs,PS&S - General Claims,Whitehouse Construction,87991,99.60
"Department for Business, Energy and Industrial Strategy",The Coal Authority,09/09/2020,Surface Hazards - Contractor Costs,PS&S - General Claims,Whitehouse Construction,87991,81.12
"Department for Business, Energy and Industrial Strategy",The Coal Authority,09/09/2020,Surface Hazards - Contractor Costs,PS&S - General Claims,Whitehouse Construction,87991,140.88
"Department for Business, Energy and Industrial Strategy",The Coal Authority,09/09/2020,Surface Hazards - Contractor Costs,PS&S - General Claims,Whitehouse Construction,87991,227.92
"Department for Business, Energy and Industrial Strategy",The Coal Authority,09/09/2020,Surface Hazards - Contractor Costs,PS&S - General Claims,Whitehouse Construction,87991,147.28
"Department for Business, Energy and Industrial Strategy",The Coal Authority,09/09/2020,Surface Hazards - Contractor Costs,PS&S - General Claims,Whitehouse Construction,87991,135.60
"Department for Business, Energy and Industrial Strategy",The Coal Authority,09/09/2020,Surface Hazards - Contractor Costs,PS&S - General Claims,Whitehouse Construction,87991,57.53
"Department for Business, Energy and Industrial Strategy",The Coal Authority,09/09/2020,Surface Hazards - Contractor Costs,PS&S - General Claims,Whitehouse Construction,87991,7.00
"Department for Business, Energy and Industrial Strategy",The Coal Authority,09/09/2020,Surface Hazards - Contractor Costs,PS&S - General Claims,Whitehouse Construction,87991,78.00
"Department for Business, Energy and Industrial Strategy",The Coal Authority,09/09/2020,Surface Hazards - Contractor Costs,PS&S - General Claims,Whitehouse Construction,87991,22.13
"Department for Business, Energy and Industrial Strategy",The Coal Authority,09/09/2020,Surface Hazards - Contractor Costs,PS&S - General Claims,Whitehouse Construction,87991,37.38
"Department for Business, Energy and Industrial Strategy",The Coal Authority,09/09/2020,Surface Hazards - Contractor Costs,PS&S - General Claims,Whitehouse Construction,87991,234.00
"Department for Business, Energy and Industrial Strategy",The Coal Authority,09/09/2020,Surface Hazards - Contractor Costs,PS&S - General Claims,Whitehouse Construction,87991,45.42
"Department for Business, Energy and Industrial Strategy",The Coal Authority,04/09/2020,CY - Non-coal Minewater - Additions,Environment - DEFRA - LEP Programme,Tyne Rivers Trust,87992,"17,295.60"
"Department for Business, Energy and Industrial Strategy",The Coal Authority,03/09/2020,Legal - General,Development - Legal,Dentons UK and Middle East LLP,87994,50.00
"Department for Business, Energy and Industrial Strategy",The Coal Authority,02/09/2020,Legal - General,PS&S - General Claims,Milburns,87996,"127,097.53"
"Department for Business, Energy and Industrial Strategy",The Coal Authority,04/09/2020,Legal - General,Development - Legal,Land Registry,88000,19.00
"Department for Business, Energy and Industrial Strategy",The Coal Authority,31/08/2020,Minewater Feasibility / Scoping,Environment - DEFRA - LEP Programme,Enviro Centre,88020,"4,265.00"
"Department for Business, Energy and Industrial Strategy",The Coal Authority,31/08/2020,Outsourced Security Staff,Facilities,Regent Office Care Ltd T/A Regent Samsic,88040,"2,147.36"
"Department for Business, Energy and Industrial Strategy",The Coal Authority,07/09/2020,Site Services,Facilities,Restore Datashred,88041,180.18
"Department for Business, Energy and Industrial Strategy",The Coal Authority,01/09/2020,Plant Maintenance,Facilities,Stannah Lift Services Limited,88042,179.25
"Department for Business, Energy and Industrial Strategy",The Coal Authority,02/09/2020,Other Hosting / IaaS,Service Management,Amazon Web Services EMEA SARL,88043,975.22
"Department for Business, Energy and Industrial Strategy",The Coal Authority,09/09/2020,Surface Hazards - Contractor Costs,PS&S - General Claims,Cornerstone  Projects Ltd,88053,165.04
"Department for Business, Energy and Industrial Strategy",The Coal Authority,09/09/2020,Surface Hazards - Contractor Costs,PS&S - General Claims,Cornerstone  Projects Ltd,88054,316.70
"Department for Business, Energy and Industrial Strategy",The Coal Authority,25/08/2020,Canteen Equipment,Facilities,Eden Springs UK LTD,88055,141.60
"Department for Business, Energy and Industrial Strategy",The Coal Authority,08/09/2020,Tips - Maintenance,PS&S - Commercial Delivery,Jim Davies Civil Engineering,88060,"16,384.60"
"Department for Business, Energy and Industrial Strategy",The Coal Authority,08/09/2020,Tips - Maintenance,PS&S - Commercial Delivery,Jim Davies Civil Engineering,88060,24.00
"Department for Business, Energy and Industrial Strategy",The Coal Authority,08/09/2020,Tips - Maintenance,PS&S - Commercial Delivery,Jim Davies Civil Engineering,88060,"4,118.40"
"Department for Business, Energy and Industrial Strategy",The Coal Authority,08/09/2020,Tips - Maintenance,PS&S - Commercial Delivery,Jim Davies Civil Engineering,88060,416.40
"Department for Business, Energy and Industrial Strategy",The Coal Authority,08/09/2020,Tips - Maintenance,PS&S - Commercial Delivery,Jim Davies Civil Engineering,88060,"6,433.44"
"Department for Business, Energy and Industrial Strategy",The Coal Authority,08/09/2020,Tips - Maintenance,PS&S - Commercial Delivery,Jim Davies Civil Engineering,88060,63.48
"Department for Business, Energy and Industrial Strategy",The Coal Authority,08/09/2020,Tips - Maintenance,PS&S - Commercial Delivery,Jim Davies Civil Engineering,88060,100.80
"Department for Business, Energy and Industrial Strategy",The Coal Authority,08/09/2020,Tips - Maintenance,PS&S - Commercial Delivery,Jim Davies Civil Engineering,88060,23.81
"Department for Business, Energy and Industrial Strategy",The Coal Authority,08/09/2020,Tips - Maintenance,PS&S - Commercial Delivery,Jim Davies Civil Engineering,88060,936.00
"Department for Business, Energy and Industrial Strategy",The Coal Authority,08/09/2020,Tips - Maintenance,PS&S - Commercial Delivery,Jim Davies Civil Engineering,88060,"3,931.20"
"Department for Business, Energy and Industrial Strategy",The Coal Authority,08/09/2020,Tips - Maintenance,PS&S - Commercial Delivery,Jim Davies Civil Engineering,88060,252.00
"Department for Business, Energy and Industrial Strategy",The Coal Authority,08/09/2020,Tips - Maintenance,PS&S - Commercial Delivery,Jim Davies Civil Engineering,88060,90.50
"Department for Business, Energy and Industrial Strategy",The Coal Authority,08/09/2020,Tips - Maintenance,PS&S - Commercial Delivery,Jim Davies Civil Engineering,88060,62.00
"Department for Business, Energy and Industrial Strategy",The Coal Authority,08/09/2020,Tips - Maintenance,PS&S - Commercial Delivery,Jim Davies Civil Engineering,88060,0.18
"Department for Business, Energy and Industrial Strategy",The Coal Authority,08/09/2020,Tips - Maintenance,PS&S - Commercial Delivery,Jim Davies Civil Engineering,88060,"1,908.90"
"Department for Business, Energy and Industrial Strategy",The Coal Authority,08/09/2020,Tips - Maintenance,PS&S - Commercial Delivery,Jim Davies Civil Engineering,88060,"3,097.28"
"Department for Business, Energy and Industrial Strategy",The Coal Authority,08/09/2020,Tips - Maintenance,PS&S - Commercial Delivery,Jim Davies Civil Engineering,88060,79.41
"Department for Business, Energy and Industrial Strategy",The Coal Authority,08/09/2020,Tips - Maintenance,PS&S - Commercial Delivery,Jim Davies Civil Engineering,88060,301.76
"Department for Business, Energy and Industrial Strategy",The Coal Authority,08/09/2020,Tips - Maintenance,PS&S - Commercial Delivery,Jim Davies Civil Engineering,88060,0.11
"Department for Business, Energy and Industrial Strategy",The Coal Authority,08/09/2020,Tips - Maintenance,PS&S - Commercial Delivery,Jim Davies Civil Engineering,88060,164.16
"Department for Business, Energy and Industrial Strategy",The Coal Authority,08/09/2020,Tips - Maintenance,PS&S - Commercial Delivery,Jim Davies Civil Engineering,88060,51.48
"Department for Business, Energy and Industrial Strategy",The Coal Authority,08/09/2020,Tips - Maintenance,PS&S - Commercial Delivery,Jim Davies Civil Engineering,88060,"1,449.36"
"Department for Business, Energy and Industrial Strategy",The Coal Authority,08/09/2020,Tips - Maintenance,PS&S - Commercial Delivery,Jim Davies Civil Engineering,88060,168.15
"Department for Business, Energy and Industrial Strategy",The Coal Authority,08/09/2020,Tips - Maintenance,PS&S - Commercial Delivery,Jim Davies Civil Engineering,88060,63.35
"Department for Business, Energy and Industrial Strategy",The Coal Authority,08/09/2020,Tips - Maintenance,PS&S - Commercial Delivery,Jim Davies Civil Engineering,88060,498.40
"Department for Business, Energy and Industrial Strategy",The Coal Authority,08/09/2020,Tips - Maintenance,PS&S - Commercial Delivery,Jim Davies Civil Engineering,88060,56.80
"Department for Business, Energy and Industrial Strategy",The Coal Authority,08/09/2020,Tips - Maintenance,PS&S - Commercial Delivery,Jim Davies Civil Engineering,88060,"1,152.90"
"Department for Business, Energy and Industrial Strategy",The Coal Authority,08/09/2020,Tips - Maintenance,PS&S - Commercial Delivery,Jim Davies Civil Engineering,88060,359.88
"Department for Business, Energy and Industrial Strategy",The Coal Authority,08/09/2020,Tips - Maintenance,PS&S - Commercial Delivery,Jim Davies Civil Engineering,88060,716.04
"Department for Business, Energy and Industrial Strategy",The Coal Authority,08/09/2020,Tips - Maintenance,PS&S - Commercial Delivery,Jim Davies Civil Engineering,88060,27.45
"Department for Business, Energy and Industrial Strategy",The Coal Authority,08/09/2020,Tips - Maintenance,PS&S - Commercial Delivery,Jim Davies Civil Engineering,88060,"5,222.88"
"Department for Business, Energy and Industrial Strategy",The Coal Authority,08/09/2020,Tips - Maintenance,PS&S - Commercial Delivery,Jim Davies Civil Engineering,88060,262.20
"Department for Business, Energy and Industrial Strategy",The Coal Authority,08/09/2020,Tips - Maintenance,PS&S - Commercial Delivery,Jim Davies Civil Engineering,88060,"2,025.00"
"Department for Business, Energy and Industrial Strategy",The Coal Authority,08/09/2020,Tips - Maintenance,PS&S - Commercial Delivery,Jim Davies Civil Engineering,88060,90.50
"Department for Business, Energy and Industrial Strategy",The Coal Authority,08/09/2020,Tips - Maintenance,PS&S - Commercial Delivery,Jim Davies Civil Engineering,88060,"4,384.80"
"Department for Business, Energy and Industrial Strategy",The Coal Authority,08/09/2020,Tips - Maintenance,PS&S - Commercial Delivery,Jim Davies Civil Engineering,88060,"3,459.04"
"Department for Business, Energy and Industrial Strategy",The Coal Authority,08/09/2020,Tips - Maintenance,PS&S - Commercial Delivery,Jim Davies Civil Engineering,88060,149.12
"Department for Business, Energy and Industrial Strategy",The Coal Authority,08/09/2020,Tips - Maintenance,PS&S - Commercial Delivery,Jim Davies Civil Engineering,88060,200.00
"Department for Business, Energy and Industrial Strategy",The Coal Authority,08/09/2020,Tips - Maintenance,PS&S - Commercial Delivery,Jim Davies Civil Engineering,88060,"2,391.30"
"Department for Business, Energy and Industrial Strategy",The Coal Authority,08/09/2020,Tips - Maintenance,PS&S - Commercial Delivery,Jim Davies Civil Engineering,88060,133.68
"Department for Business, Energy and Industrial Strategy",The Coal Authority,08/09/2020,Tips - Maintenance,PS&S - Commercial Delivery,Jim Davies Civil Engineering,88060,110.40
"Department for Business, Energy and Industrial Strategy",The Coal Authority,08/09/2020,Tips - Maintenance,PS&S - Commercial Delivery,Jim Davies Civil Engineering,88060,90.50
"Department for Business, Energy and Industrial Strategy",The Coal Authority,08/09/2020,Tips - Maintenance,PS&S - Commercial Delivery,Jim Davies Civil Engineering,88060,"1,721.16"
"Department for Business, Energy and Industrial Strategy",The Coal Authority,08/09/2020,Tips - Maintenance,PS&S - Commercial Delivery,Jim Davies Civil Engineering,88060,171.11
"Department for Business, Energy and Industrial Strategy",The Coal Authority,08/09/2020,Tips - Maintenance,PS&S - Commercial Delivery,Jim Davies Civil Engineering,88060,1.92
"Department for Business, Energy and Industrial Strategy",The Coal Authority,08/09/2020,Tips - Maintenance,PS&S - Commercial Delivery,Jim Davies Civil Engineering,88060,9.72
"Department for Business, Energy and Industrial Strategy",The Coal Authority,08/09/2020,Tips - Maintenance,PS&S - Commercial Delivery,Jim Davies Civil Engineering,88060,216.00
"Department for Business, Energy and Industrial Strategy",The Coal Authority,08/09/2020,Tips - Maintenance,PS&S - Commercial Delivery,Jim Davies Civil Engineering,88060,424.80
"Department for Business, Energy and Industrial Strategy",The Coal Authority,08/09/2020,Tips - Maintenance,PS&S - Commercial Delivery,Jim Davies Civil Engineering,88060,639.80
"Department for Business, Energy and Industrial Strategy",The Coal Authority,08/09/2020,Tips - Maintenance,PS&S - Commercial Delivery,Jim Davies Civil Engineering,88060,262.20
"Department for Business, Energy and Industrial Strategy",The Coal Authority,08/09/2020,Tips - Maintenance,PS&S - Commercial Delivery,Jim Davies Civil Engineering,88060,32.52
"Department for Business, Energy and Industrial Strategy",The Coal Authority,08/09/2020,Tips - Maintenance,PS&S - Commercial Delivery,Jim Davies Civil Engineering,88060,247.23
"Department for Business, Energy and Industrial Strategy",The Coal Authority,02/09/2020,Minewater Power Costs,Environment - Contract Management,British Gas Business,88061,215.91
"Department for Business, Energy and Industrial Strategy",The Coal Authority,03/09/2020,Minewater Power Costs,Environment - Contract Management,British Gas Business,88062,"1,792.69"
"Department for Business, Energy and Industrial Strategy",The Coal Authority,02/09/2020,Minewater Power Costs,Environment - Contract Management,British Gas Business,88063,"1,234.14"
"Department for Business, Energy and Industrial Strategy",The Coal Authority,08/09/2020,Temporary Contractors,Development - Property Management,Hays Specialist Recruitment,88069,911.27
"Department for Business, Energy and Industrial Strategy",The Coal Authority,25/04/2020,Canteen Equipment,Facilities,Eden Springs UK LTD,88070,273.88
"Department for Business, Energy and Industrial Strategy",The Coal Authority,25/07/2020,Canteen Equipment,Facilities,Eden Springs UK LTD,88071,121.60
"Department for Business, Energy and Industrial Strategy",The Coal Authority,25/05/2020,Canteen Equipment,Facilities,Eden Springs UK LTD,88072,121.60
"Department for Business, Energy and Industrial Strategy",The Coal Authority,26/06/2020,Canteen Equipment,Facilities,Eden Springs UK LTD,88073,20.00
"Department for Business, Energy and Industrial Strategy",The Coal Authority,19/08/2020,Fuel (Vehicle),PS&S - Commercial Delivery,Allstar Business Solutions Ltd,88080,64.84
"Department for Business, Energy and Industrial Strategy",The Coal Authority,19/08/2020,Fuel (Vehicle),PS&S - Commercial Delivery,Allstar Business Solutions Ltd,88080,41.92
"Department for Business, Energy and Industrial Strategy",The Coal Authority,19/08/2020,Fuel (Vehicle),PS&S - General Claims,Allstar Business Solutions Ltd,88080,27.34
"Department for Business, Energy and Industrial Strategy",The Coal Authority,19/08/2020,Fuel (Vehicle),PS&S - General Claims,Allstar Business Solutions Ltd,88080,59.17
"Department for Business, Energy and Industrial Strategy",The Coal Authority,19/08/2020,Fuel (Vehicle),PS&S - General Claims,Allstar Business Solutions Ltd,88080,41.13
"Department for Business, Energy and Industrial Strategy",The Coal Authority,19/08/2020,Fuel (Vehicle),PS&S - General Claims,Allstar Business Solutions Ltd,88080,27.99
"Department for Business, Energy and Industrial Strategy",The Coal Authority,19/08/2020,Fuel (Vehicle),PS&S - General Claims,Allstar Business Solutions Ltd,88080,33.00
"Department for Business, Energy and Industrial Strategy",The Coal Authority,19/08/2020,Fuel (Vehicle),PS&S - General Claims,Allstar Business Solutions Ltd,88080,41.67
"Department for Business, Energy and Industrial Strategy",The Coal Authority,19/08/2020,Fuel (Vehicle),PS&S - General Claims,Allstar Business Solutions Ltd,88080,15.20
"Department for Business, Energy and Industrial Strategy",The Coal Authority,19/08/2020,Fuel (Vehicle),PS&S - General Claims,Allstar Business Solutions Ltd,88080,53.76
"Department for Business, Energy and Industrial Strategy",The Coal Authority,19/08/2020,Fuel (Vehicle),PS&S - General Claims,Allstar Business Solutions Ltd,88080,51.20
"Department for Business, Energy and Industrial Strategy",The Coal Authority,19/08/2020,Fuel (Vehicle),PS&S - General Claims,Allstar Business Solutions Ltd,88080,34.58
"Department for Business, Energy and Industrial Strategy",The Coal Authority,26/08/2020,Fuel (Vehicle),PS&S - Commercial Delivery,Allstar Business Solutions Ltd,88081,42.73
"Department for Business, Energy and Industrial Strategy",The Coal Authority,26/08/2020,Fuel (Vehicle),PS&S - Commercial Delivery,Allstar Business Solutions Ltd,88081,87.35
"Department for Business, Energy and Industrial Strategy",The Coal Authority,26/08/2020,Fuel (Vehicle),PS&S - General Claims,Allstar Business Solutions Ltd,88081,43.87
"Department for Business, Energy and Industrial Strategy",The Coal Authority,26/08/2020,Fuel (Vehicle),PS&S - General Claims,Allstar Business Solutions Ltd,88081,29.91
"Department for Business, Energy and Industrial Strategy",The Coal Authority,26/08/2020,Fuel (Vehicle),PS&S - General Claims,Allstar Business Solutions Ltd,88081,47.56
"Department for Business, Energy and Industrial Strategy",The Coal Authority,26/08/2020,Fuel (Vehicle),PS&S - General Claims,Allstar Business Solutions Ltd,88081,34.60
"Department for Business, Energy and Industrial Strategy",The Coal Authority,26/08/2020,Fuel (Vehicle),PS&S - General Claims,Allstar Business Solutions Ltd,88081,7.60
"Department for Business, Energy and Industrial Strategy",The Coal Authority,26/08/2020,Fuel (Vehicle),PS&S - General Claims,Allstar Business Solutions Ltd,88081,23.75
"Department for Business, Energy and Industrial Strategy",The Coal Authority,12/08/2020,Fuel (Vehicle),PS&S - Commercial Delivery,Allstar Business Solutions Ltd,88082,33.08
"Department for Business, Energy and Industrial Strategy",The Coal Authority,12/08/2020,Fuel (Vehicle),PS&S - Commercial Delivery,Allstar Business Solutions Ltd,88082,42.03
"Department for Business, Energy and Industrial Strategy",The Coal Authority,12/08/2020,Fuel (Vehicle),PS&S - General Claims,Allstar Business Solutions Ltd,88082,43.22
"Department for Business, Energy and Industrial Strategy",The Coal Authority,12/08/2020,Fuel (Vehicle),PS&S - General Claims,Allstar Business Solutions Ltd,88082,74.80
"Department for Business, Energy and Industrial Strategy",The Coal Authority,12/08/2020,Fuel (Vehicle),PS&S - General Claims,Allstar Business Solutions Ltd,88082,29.84
"Department for Business, Energy and Industrial Strategy",The Coal Authority,12/08/2020,Fuel (Vehicle),PS&S - General Claims,Allstar Business Solutions Ltd,88082,41.68
"Department for Business, Energy and Industrial Strategy",The Coal Authority,12/08/2020,Fuel (Vehicle),PS&S - General Claims,Allstar Business Solutions Ltd,88082,54.26
"Department for Business, Energy and Industrial Strategy",The Coal Authority,12/08/2020,Fuel (Vehicle),PS&S - General Claims,Allstar Business Solutions Ltd,88082,9.50
"Department for Business, Energy and Industrial Strategy",The Coal Authority,12/08/2020,Fuel (Vehicle),PS&S - General Claims,Allstar Business Solutions Ltd,88082,32.50
"Department for Business, Energy and Industrial Strategy",The Coal Authority,09/09/2020,Fuel (Vehicle),PS&S - Commercial Delivery,Allstar Business Solutions Ltd,88086,43.26
"Department for Business, Energy and Industrial Strategy",The Coal Authority,09/09/2020,Fuel (Vehicle),PS&S - Commercial Delivery,Allstar Business Solutions Ltd,88086,39.11
"Department for Business, Energy and Industrial Strategy",The Coal Authority,09/09/2020,Fuel (Vehicle),PS&S - General Claims,Allstar Business Solutions Ltd,88086,59.16
"Department for Business, Energy and Industrial Strategy",The Coal Authority,09/09/2020,Fuel (Vehicle),PS&S - General Claims,Allstar Business Solutions Ltd,88086,46.30
"Department for Business, Energy and Industrial Strategy",The Coal Authority,09/09/2020,Fuel (Vehicle),PS&S - General Claims,Allstar Business Solutions Ltd,88086,33.78
"Department for Business, Energy and Industrial Strategy",The Coal Authority,09/09/2020,Fuel (Vehicle),PS&S - General Claims,Allstar Business Solutions Ltd,88086,30.27
"Department for Business, Energy and Industrial Strategy",The Coal Authority,09/09/2020,Fuel (Vehicle),PS&S - General Claims,Allstar Business Solutions Ltd,88086,40.88
"Department for Business, Energy and Industrial Strategy",The Coal Authority,09/09/2020,Fuel (Vehicle),PS&S - General Claims,Allstar Business Solutions Ltd,88086,38.38
"Department for Business, Energy and Industrial Strategy",The Coal Authority,09/09/2020,Fuel (Vehicle),PS&S - General Claims,Allstar Business Solutions Ltd,88086,9.50
"Department for Business, Energy and Industrial Strategy",The Coal Authority,26/06/2020,CY - Non-coal Minewater - Additions,Environment - DEFRA - EA Programme,AECOM Ltd,88092,"4,870.81"
"Department for Business, Energy and Industrial Strategy",The Coal Authority,26/06/2020,CY - Non-coal Minewater - Additions,Environment - DEFRA - EA Programme,AECOM Ltd,88092,771.69
"Department for Business, Energy and Industrial Strategy",The Coal Authority,09/09/2020,Fuel (Vehicle),Facilities,Allstar Business Solutions Ltd,88093,50.95
"Department for Business, Energy and Industrial Strategy",The Coal Authority,01/09/2020,Surface Hazards - Contractor Costs,PS&S - General Claims,Thomas Menzies Builders Ltd,88096,16.00
"Department for Business, Energy and Industrial Strategy",The Coal Authority,01/09/2020,Surface Hazards - Contractor Costs,PS&S - General Claims,Thomas Menzies Builders Ltd,88096,360.00
"Department for Business, Energy and Industrial Strategy",The Coal Authority,01/09/2020,Surface Hazards - Contractor Costs,PS&S - General Claims,Thomas Menzies Builders Ltd,88096,2.00
"Department for Business, Energy and Industrial Strategy",The Coal Authority,17/01/2020,Office Telephony - Call Charges,Service Management,Reconcilliation Journal 811DA11,88097,0.01
"Department for Business, Energy and Industrial Strategy",The Coal Authority,11/09/2020,Office Telephony - Call Charges,Service Management,Reconcilliation Journal 811DA11,88098,-0.01
"Department for Business, Energy and Industrial Strategy",The Coal Authority,17/01/2020,Office Telephony - Call Charges,Service Management,Reconcilliation Journal 811DA11,88100,-0.01
"Department for Business, Energy and Industrial Strategy",The Coal Authority,03/09/2020,Property Rates Payable,Development - Historic Property Liabilities,British Gas Business,88103,41.89
"Department for Business, Energy and Industrial Strategy",The Coal Authority,31/08/2020,Staff Medicals,HR & OD,David Barber (OH) Ltd,88109,300.00
"Department for Business, Energy and Industrial Strategy",The Coal Authority,10/09/2020,Surface Hazards - Contractor Costs,PS&S - General Claims,Whitehouse Construction,88110,57.53
"Department for Business, Energy and Industrial Strategy",The Coal Authority,10/09/2020,Surface Hazards - Contractor Costs,PS&S - General Claims,Whitehouse Construction,88110,81.12
"Department for Business, Energy and Industrial Strategy",The Coal Authority,10/09/2020,Surface Hazards - Contractor Costs,PS&S - General Claims,Whitehouse Construction,88110,29.50
"Department for Business, Energy and Industrial Strategy",The Coal Authority,10/09/2020,Surface Hazards - Contractor Costs,PS&S - General Claims,Whitehouse Construction,88110,79.44
"Department for Business, Energy and Industrial Strategy",The Coal Authority,10/09/2020,Surface Hazards - Contractor Costs,PS&S - General Claims,Whitehouse Construction,88110,8.48
"Department for Business, Energy and Industrial Strategy",The Coal Authority,10/09/2020,Surface Hazards - Contractor Costs,PS&S - General Claims,Whitehouse Construction,88110,140.88
"Department for Business, Energy and Industrial Strategy",The Coal Authority,10/09/2020,Surface Hazards - Contractor Costs,PS&S - General Claims,Whitehouse Construction,88110,78.00
"Department for Business, Energy and Industrial Strategy",The Coal Authority,10/09/2020,Surface Hazards - Contractor Costs,PS&S - General Claims,Whitehouse Construction,88110,17.64
"Department for Business, Energy and Industrial Strategy",The Coal Authority,10/09/2020,Surface Hazards - Contractor Costs,PS&S - General Claims,Whitehouse Construction,88110,7.00
"Department for Business, Energy and Industrial Strategy",The Coal Authority,10/09/2020,Surface Hazards - Contractor Costs,PS&S - General Claims,Whitehouse Construction,88110,135.60
"Department for Business, Energy and Industrial Strategy",The Coal Authority,10/09/2020,Surface Hazards - Contractor Costs,PS&S - General Claims,Whitehouse Construction,88110,23.52
"Department for Business, Energy and Industrial Strategy",The Coal Authority,10/09/2020,Surface Hazards - Contractor Costs,PS&S - General Claims,Whitehouse Construction,88110,147.28
"Department for Business, Energy and Industrial Strategy",The Coal Authority,10/09/2020,Surface Hazards - Contractor Costs,PS&S - General Claims,Whitehouse Construction,88110,32.50
"Department for Business, Energy and Industrial Strategy",The Coal Authority,10/09/2020,Surface Hazards - Contractor Costs,PS&S - General Claims,Whitehouse Construction,88110,227.92
"Department for Business, Energy and Industrial Strategy",The Coal Authority,10/09/2020,Surface Hazards - Contractor Costs,PS&S - General Claims,Whitehouse Construction,88111,7.00
"Department for Business, Energy and Industrial Strategy",The Coal Authority,10/09/2020,Surface Hazards - Contractor Costs,PS&S - General Claims,Whitehouse Construction,88111,135.60
"Department for Business, Energy and Industrial Strategy",The Coal Authority,10/09/2020,Surface Hazards - Contractor Costs,PS&S - General Claims,Whitehouse Construction,88111,31.56
"Department for Business, Energy and Industrial Strategy",The Coal Authority,10/09/2020,Surface Hazards - Contractor Costs,PS&S - General Claims,Whitehouse Construction,88111,56.88
"Department for Business, Energy and Industrial Strategy",The Coal Authority,10/09/2020,Surface Hazards - Contractor Costs,PS&S - General Claims,Whitehouse Construction,88111,147.50
"Department for Business, Energy and Industrial Strategy",The Coal Authority,10/09/2020,Surface Hazards - Contractor Costs,PS&S - General Claims,Whitehouse Construction,88111,154.94
"Department for Business, Energy and Industrial Strategy",The Coal Authority,10/09/2020,Surface Hazards - Contractor Costs,PS&S - General Claims,Whitehouse Construction,88111,227.92
"Department for Business, Energy and Industrial Strategy",The Coal Authority,10/09/2020,Surface Hazards - Contractor Costs,PS&S - General Claims,Whitehouse Construction,88111,140.88
"Department for Business, Energy and Industrial Strategy",The Coal Authority,10/09/2020,Surface Hazards - Contractor Costs,PS&S - General Claims,Whitehouse Construction,88111,57.53
"Department for Business, Energy and Industrial Strategy",The Coal Authority,10/09/2020,Surface Hazards - Contractor Costs,PS&S - General Claims,Whitehouse Construction,88111,51.63
"Department for Business, Energy and Industrial Strategy",The Coal Authority,10/09/2020,Surface Hazards - Contractor Costs,PS&S - General Claims,Whitehouse Construction,88111,147.28
"Department for Business, Energy and Industrial Strategy",The Coal Authority,10/09/2020,Surface Hazards - Contractor Costs,PS&S - General Claims,Whitehouse Construction,88111,93.13
"Department for Business, Energy and Industrial Strategy",The Coal Authority,10/09/2020,Surface Hazards - Contractor Costs,PS&S - General Claims,Whitehouse Construction,88111,136.00
"Department for Business, Energy and Industrial Strategy",The Coal Authority,10/09/2020,Surface Hazards - Contractor Costs,PS&S - General Claims,Nal Plant Limited,88112,201.60
"Department for Business, Energy and Industrial Strategy",The Coal Authority,10/09/2020,Surface Hazards - Contractor Costs,PS&S - General Claims,Nal Plant Limited,88112,167.07
"Department for Business, Energy and Industrial Strategy",The Coal Authority,10/09/2020,Surface Hazards - Contractor Costs,PS&S - General Claims,Nal Plant Limited,88112,45.00
"Department for Business, Energy and Industrial Strategy",The Coal Authority,10/09/2020,Surface Hazards - Contractor Costs,PS&S - General Claims,Nal Plant Limited,88118,42.48
"Department for Business, Energy and Industrial Strategy",The Coal Authority,10/09/2020,Surface Hazards - Contractor Costs,PS&S - General Claims,Nal Plant Limited,88118,100.00
"Department for Business, Energy and Industrial Strategy",The Coal Authority,10/09/2020,Surface Hazards - Contractor Costs,PS&S - General Claims,Nal Plant Limited,88118,119.40
"Department for Business, Energy and Industrial Strategy",The Coal Authority,10/09/2020,Surface Hazards - Contractor Costs,PS&S - General Claims,Nal Plant Limited,88118,243.12
"Department for Business, Energy and Industrial Strategy",The Coal Authority,10/09/2020,Surface Hazards - Contractor Costs,PS&S - General Claims,Nal Plant Limited,88118,25.38
"Department for Business, Energy and Industrial Strategy",The Coal Authority,10/09/2020,Surface Hazards - Contractor Costs,PS&S - General Claims,Nal Plant Limited,88118,50.00
"Department for Business, Energy and Industrial Strategy",The Coal Authority,10/09/2020,Surface Hazards - Contractor Costs,PS&S - General Claims,Nal Plant Limited,88118,111.36
"Department for Business, Energy and Industrial Strategy",The Coal Authority,10/09/2020,Surface Hazards - Contractor Costs,PS&S - General Claims,Nal Plant Limited,88118,20.63
"Department for Business, Energy and Industrial Strategy",The Coal Authority,10/09/2020,Surface Hazards - Contractor Costs,PS&S - General Claims,Nal Plant Limited,88118,320.00
"Department for Business, Energy and Industrial Strategy",The Coal Authority,10/09/2020,Surface Hazards - Contractor Costs,PS&S - General Claims,Nal Plant Limited,88119,4.00
"Department for Business, Energy and Industrial Strategy",The Coal Authority,10/09/2020,Surface Hazards - Contractor Costs,PS&S - General Claims,Nal Plant Limited,88119,141.52
"Department for Business, Energy and Industrial Strategy",The Coal Authority,10/09/2020,Surface Hazards - Contractor Costs,PS&S - General Claims,Nal Plant Limited,88119,160.00
"Department for Business, Energy and Industrial Strategy",The Coal Authority,10/09/2020,Surface Hazards - Contractor Costs,PS&S - General Claims,Nal Plant Limited,88119,144.00
"Department for Business, Energy and Industrial Strategy",The Coal Authority,10/09/2020,Surface Hazards - Contractor Costs,PS&S - General Claims,Nal Plant Limited,88119,40.00
"Department for Business, Energy and Industrial Strategy",The Coal Authority,08/09/2020,External Agency / Introduction Fees,HR & OD,Distinct Recruitment,88121,"4,000.00"
"Department for Business, Energy and Industrial Strategy",The Coal Authority,28/07/2020,Central Training,PS&S - Industry Claims,Staff Expenses Control,88122,25.00
"Department for Business, Energy and Industrial Strategy",The Coal Authority,05/08/2020,Mileage Payments,Environment-Mine Prog Build Team (Coal&Metal),Staff Expenses Control,88122,21.49
"Department for Business, Energy and Industrial Strategy",The Coal Authority,05/08/2020,Mileage Payments,Environment-Mine Prog Build Team (Coal&Metal),Staff Expenses Control,88122,21.48
"Department for Business, Energy and Industrial Strategy",The Coal Authority,10/08/2020,Mileage Payments,Environment-Mine Prog Build Team (Coal&Metal),Staff Expenses Control,88122,31.50
"Department for Business, Energy and Industrial Strategy",The Coal Authority,10/08/2020,Mileage Payments,Environment-Mine Prog Build Team (Coal&Metal),Staff Expenses Control,88122,20.25
"Department for Business, Energy and Industrial Strategy",The Coal Authority,13/08/2020,Mileage Payments,Environment-Mine Prog Build Team (Coal&Metal),Staff Expenses Control,88122,40.50
"Department for Business, Energy and Industrial Strategy",The Coal Authority,17/08/2020,Mileage Payments,Environment-Mine Prog Build Team (Coal&Metal),Staff Expenses Control,88122,99.00
"Department for Business, Energy and Industrial Strategy",The Coal Authority,18/08/2020,Mileage Payments,Environment-Mine Prog Build Team (Coal&Metal),Staff Expenses Control,88122,40.50
"Department for Business, Energy and Industrial Strategy",The Coal Authority,20/08/2020,Mileage Payments,Environment-Mine Prog Build Team (Coal&Metal),Staff Expenses Control,88122,40.50
"Department for Business, Energy and Industrial Strategy",The Coal Authority,25/08/2020,Mileage Payments,Environment-Mine Prog Build Team (Coal&Metal),Staff Expenses Control,88122,40.50
"Department for Business, Energy and Industrial Strategy",The Coal Authority,28/08/2020,Mileage Payments,Environment-Mine Prog Build Team (Coal&Metal),Staff Expenses Control,88122,40.50
"Department for Business, Energy and Industrial Strategy",The Coal Authority,14/07/2020,Mileage Payments,PS&S - Industry Claims,Staff Expenses Control,88122,27.90
"Department for Business, Energy and Industrial Strategy",The Coal Authority,17/07/2020,Mileage Payments,PS&S - Industry Claims,Staff Expenses Control,88122,12.60
"Department for Business, Energy and Industrial Strategy",The Coal Authority,22/07/2020,Mileage Payments,PS&S - Industry Claims,Staff Expenses Control,88122,27.90
"Department for Business, Energy and Industrial Strategy",The Coal Authority,29/07/2020,Mileage Payments,PS&S - Industry Claims,Staff Expenses Control,88122,4.75
"Department for Business, Energy and Industrial Strategy",The Coal Authority,29/07/2020,Mileage Payments,PS&S - Industry Claims,Staff Expenses Control,88122,6.75
"Department for Business, Energy and Industrial Strategy",The Coal Authority,30/07/2020,Mileage Payments,PS&S - Industry Claims,Staff Expenses Control,88122,27.90
"Department for Business, Energy and Industrial Strategy",The Coal Authority,31/07/2020,Mileage Payments,PS&S - Industry Claims,Staff Expenses Control,88122,27.90
"Department for Business, Energy and Industrial Strategy",The Coal Authority,03/08/2020,Mileage Payments,PS&S - Industry Claims,Staff Expenses Control,88122,20.82
"Department for Business, Energy and Industrial Strategy",The Coal Authority,03/08/2020,Mileage Payments,PS&S - Industry Claims,Staff Expenses Control,88122,20.55
"Department for Business, Energy and Industrial Strategy",The Coal Authority,04/08/2020,Mileage Payments,PS&S - Industry Claims,Staff Expenses Control,88122,9.00
"Department for Business, Energy and Industrial Strategy",The Coal Authority,05/08/2020,Mileage Payments,PS&S - Industry Claims,Staff Expenses Control,88122,27.90
"Department for Business, Energy and Industrial Strategy",The Coal Authority,05/08/2020,Mileage Payments,PS&S - Industry Claims,Staff Expenses Control,88122,27.90
"Department for Business, Energy and Industrial Strategy",The Coal Authority,06/08/2020,Mileage Payments,PS&S - Industry Claims,Staff Expenses Control,88122,4.74
"Department for Business, Energy and Industrial Strategy",The Coal Authority,06/08/2020,Mileage Payments,PS&S - Industry Claims,Staff Expenses Control,88122,4.76
"Department for Business, Energy and Industrial Strategy",The Coal Authority,07/08/2020,Mileage Payments,PS&S - Industry Claims,Staff Expenses Control,88122,27.90
"Department for Business, Energy and Industrial Strategy",The Coal Authority,10/08/2020,Mileage Payments,PS&S - Industry Claims,Staff Expenses Control,88122,13.95
"Department for Business, Energy and Industrial Strategy",The Coal Authority,12/08/2020,Mileage Payments,PS&S - Industry Claims,Staff Expenses Control,88122,27.90
"Department for Business, Energy and Industrial Strategy",The Coal Authority,12/08/2020,Mileage Payments,PS&S - Industry Claims,Staff Expenses Control,88122,27.90
"Department for Business, Energy and Industrial Strategy",The Coal Authority,18/08/2020,Mileage Payments,PS&S - Industry Claims,Staff Expenses Control,88122,9.00
"Department for Business, Energy and Industrial Strategy",The Coal Authority,19/08/2020,Mileage Payments,PS&S - Industry Claims,Staff Expenses Control,88122,7.65
"Department for Business, Energy and Industrial Strategy",The Coal Authority,20/08/2020,Mileage Payments,PS&S - Industry Claims,Staff Expenses Control,88122,7.20
"Department for Business, Energy and Industrial Strategy",The Coal Authority,21/08/2020,Mileage Payments,PS&S - Industry Claims,Staff Expenses Control,88122,9.00
"Department for Business, Energy and Industrial Strategy",The Coal Authority,24/08/2020,Mileage Payments,PS&S - Industry Claims,Staff Expenses Control,88122,7.20
"Department for Business, Energy and Industrial Strategy",The Coal Authority,26/08/2020,Mileage Payments,PS&S - Industry Claims,Staff Expenses Control,88122,27.90
"Department for Business, Energy and Industrial Strategy",The Coal Authority,28/08/2020,Mileage Payments,PS&S - Industry Claims,Staff Expenses Control,88122,4.74
"Department for Business, Energy and Industrial Strategy",The Coal Authority,28/08/2020,Mileage Payments,PS&S - Industry Claims,Staff Expenses Control,88122,4.75
"Department for Business, Energy and Industrial Strategy",The Coal Authority,07/09/2020,Minewater Land Agents (Acquisitions),Environment - DEFRA - LEP Programme,Staff Expenses Control,88122,136.83
"Department for Business, Energy and Industrial Strategy",The Coal Authority,07/09/2020,Peripherals / Consumables (MEP),Mining Information,Staff Expenses Control,88122,16.65
"Department for Business, Energy and Industrial Strategy",The Coal Authority,24/07/2020,Postage & Couriers,PS&S - Industry Claims,Staff Expenses Control,88122,12.99
"Department for Business, Energy and Industrial Strategy",The Coal Authority,27/07/2020,Postage & Couriers,PS&S - Industry Claims,Staff Expenses Control,88122,8.99
"Department for Business, Energy and Industrial Strategy",The Coal Authority,07/09/2020,Professional Subscriptions,Mining Information,Staff Expenses Control,88122,228.90
"Department for Business, Energy and Industrial Strategy",The Coal Authority,03/09/2020,Stationery,PS&S - Commercial Delivery,Staff Expenses Control,88122,9.91
"Department for Business, Energy and Industrial Strategy",The Coal Authority,25/06/2020,Stationery,PS&S - Industry Claims,Staff Expenses Control,88122,2.91
"Department for Business, Energy and Industrial Strategy",The Coal Authority,24/07/2020,Stationery,PS&S - Industry Claims,Staff Expenses Control,88122,3.49
"Department for Business, Energy and Industrial Strategy",The Coal Authority,24/07/2020,Stationery,PS&S - Industry Claims,Staff Expenses Control,88122,7.82
"Department for Business, Energy and Industrial Strategy",The Coal Authority,28/07/2020,Stationery,PS&S - Industry Claims,Staff Expenses Control,88122,20.00
"Department for Business, Energy and Industrial Strategy",The Coal Authority,27/08/2020,Stationery,PS&S - Industry Claims,Staff Expenses Control,88122,3.49
"Department for Business, Energy and Industrial Strategy",The Coal Authority,24/06/2020,Research & Development (Non BEIS Funded),Environment - DEFRA - EA Programme,AECOM Ltd,88132,"5,043.22"
"Department for Business, Energy and Industrial Strategy",The Coal Authority,10/09/2020,Research & Development (Non BEIS Funded),Environment - DEFRA - EA Programme,AECOM Ltd,88133,"3,937.18"
"Department for Business, Energy and Industrial Strategy",The Coal Authority,07/08/2020,Legal - General,Development - Legal,Browne Jacobson Llp Client Account,88134,"2,450.00"
"Department for Business, Energy and Industrial Strategy",The Coal Authority,28/08/2020,Legal - General,Development - Legal,Browne Jacobson Llp Client Account,88135,256.00
"Department for Business, Energy and Industrial Strategy",The Coal Authority,10/09/2020,Legal - General,Development - Legal,Browne Jacobson Llp Client Account,88136,968.50
"Department for Business, Energy and Industrial Strategy",The Coal Authority,27/08/2020,Training & Education,Procurement,West Nottinghamshire College,88138,83.00
"Department for Business, Energy and Industrial Strategy",The Coal Authority,09/09/2020,Fuel (Vehicle),Environment-Mine Prog Build Team (Coal&Metal),Allstar Business Solutions Ltd,88141,25.18
"Department for Business, Energy and Industrial Strategy",The Coal Authority,26/08/2020,Contract Hire Vehicles,PS&S - General Claims,Lex Autolease Ltd,88144,794.96
"Department for Business, Energy and Industrial Strategy",The Coal Authority,31/08/2020,Fares - Public Transport,Customer Strategy,Ace Of Mansfield Ltd,88145,7.18
"Department for Business, Energy and Industrial Strategy",The Coal Authority,01/08/2020,eCommerce Commission Charges,Development � Permissions,Worldpay Limited,88148,1.26
"Department for Business, Energy and Industrial Strategy",The Coal Authority,01/08/2020,Outsourced Cleaning Staff,Facilities,Regent Office Care Ltd T/A Regent Samsic,88149,"5,961.60"
"Department for Business, Energy and Industrial Strategy",The Coal Authority,31/08/2020,eCommerce Commission Charges,Development � Permissions,Worldpay,88153,25.00
"Department for Business, Energy and Industrial Strategy",The Coal Authority,31/08/2020,eCommerce Commission Charges,Development � Permissions,Worldpay,88153,506.82
"Department for Business, Energy and Industrial Strategy",The Coal Authority,31/08/2020,eCommerce Commission Charges,Mining Reports Retail,Worldpay,88153,959.70
"Department for Business, Energy and Industrial Strategy",The Coal Authority,31/08/2020,eCommerce Commission Charges,Records,Worldpay,88153,15.00
"Department for Business, Energy and Industrial Strategy",The Coal Authority,01/05/2020,Minewater Rent,Environment - Contract Management,Wentworth Joint Estates,88159,300.00
"Department for Business, Energy and Industrial Strategy",The Coal Authority,20/03/2020,Minewater Rent,Environment - Contract Management,Forest Enterprise Scotland,88161,"3,101.20"
"Department for Business, Energy and Industrial Strategy",The Coal Authority,04/09/2020,Subsidence - Contractor Costs,PS&S - General Claims,Landmark Information Group Ltd,88167,154.00
"Department for Business, Energy and Industrial Strategy",The Coal Authority,09/09/2020,Surface Hazards - Contractor Costs,PS&S - General Claims,Llettyshenkin Cons Co Ltd,88168,442.00
"Department for Business, Energy and Industrial Strategy",The Coal Authority,09/09/2020,Surface Hazards - Contractor Costs,PS&S - General Claims,Llettyshenkin Cons Co Ltd,88168,380.00
"Department for Business, Energy and Industrial Strategy",The Coal Authority,09/09/2020,Surface Hazards - Contractor Costs,PS&S - General Claims,Llettyshenkin Cons Co Ltd,88168,"1,596.00"
"Department for Business, Energy and Industrial Strategy",The Coal Authority,09/09/2020,Surface Hazards - Contractor Costs,PS&S - General Claims,Llettyshenkin Cons Co Ltd,88168,120.67
"Department for Business, Energy and Industrial Strategy",The Coal Authority,09/09/2020,Surface Hazards - Contractor Costs,PS&S - General Claims,Llettyshenkin Cons Co Ltd,88168,37.72
"Department for Business, Energy and Industrial Strategy",The Coal Authority,09/09/2020,Surface Hazards - Contractor Costs,PS&S - General Claims,Llettyshenkin Cons Co Ltd,88168,810.00
"Department for Business, Energy and Industrial Strategy",The Coal Authority,09/09/2020,Surface Hazards - Contractor Costs,PS&S - General Claims,Llettyshenkin Cons Co Ltd,88168,301.60
"Department for Business, Energy and Industrial Strategy",The Coal Authority,09/09/2020,Surface Hazards - Contractor Costs,PS&S - General Claims,Llettyshenkin Cons Co Ltd,88168,"1,140.00"
"Department for Business, Energy and Industrial Strategy",The Coal Authority,09/09/2020,Surface Hazards - Contractor Costs,PS&S - General Claims,Llettyshenkin Cons Co Ltd,88168,"1,380.00"
"Department for Business, Energy and Industrial Strategy",The Coal Authority,09/09/2020,Surface Hazards - Contractor Costs,PS&S - General Claims,Llettyshenkin Cons Co Ltd,88168,128.00
"Department for Business, Energy and Industrial Strategy",The Coal Authority,09/09/2020,Surface Hazards - Contractor Costs,PS&S - General Claims,Llettyshenkin Cons Co Ltd,88168,"1,038.96"
"Department for Business, Energy and Industrial Strategy",The Coal Authority,09/09/2020,Surface Hazards - Contractor Costs,PS&S - General Claims,Llettyshenkin Cons Co Ltd,88168,306.00
"Department for Business, Energy and Industrial Strategy",The Coal Authority,09/09/2020,Surface Hazards - Contractor Costs,PS&S - General Claims,Llettyshenkin Cons Co Ltd,88168,"2,004.48"
"Department for Business, Energy and Industrial Strategy",The Coal Authority,09/09/2020,Surface Hazards - Contractor Costs,PS&S - General Claims,Llettyshenkin Cons Co Ltd,88168,78.72
"Department for Business, Energy and Industrial Strategy",The Coal Authority,31/08/2020,Surface Hazards - Contractor Costs,PS&S - General Claims,Alliance Contracting Solutions Ltd,88169,"1,217.68"
"Department for Business, Energy and Industrial Strategy",The Coal Authority,31/08/2020,Surface Hazards - Contractor Costs,PS&S - General Claims,Alliance Contracting Solutions Ltd,88169,310.87
"Department for Business, Energy and Industrial Strategy",The Coal Authority,31/08/2020,Surface Hazards - Contractor Costs,PS&S - General Claims,Alliance Contracting Solutions Ltd,88169,133.92
"Department for Business, Energy and Industrial Strategy",The Coal Authority,27/08/2019,CY - Tangible IT - Additions,Infrastructure Management,Daisy Communications Ltd,88186,120.00
"Department for Business, Energy and Industrial Strategy",The Coal Authority,27/08/2019,CY - Tangible IT - Additions,Infrastructure Management,Daisy Communications Ltd,88186,98.00
"Department for Business, Energy and Industrial Strategy",The Coal Authority,27/08/2019,CY - Tangible IT - Additions,Infrastructure Management,Daisy Communications Ltd,88186,70.00
"Department for Business, Energy and Industrial Strategy",The Coal Authority,02/09/2020,Subsidence - Contractor Costs,PS&S - General Claims,Compensation Payment,88194,187.50
"Department for Business, Energy and Industrial Strategy",The Coal Authority,31/08/2020,Subsidence - Contractor Costs,PS&S - General Claims,Luddon Construction Limited,88195,"2,529.52"
"Department for Business, Energy and Industrial Strategy",The Coal Authority,14/09/2020,Surface Hazards - Contractor Costs,PS&S - General Claims,Thomas Menzies Builders Ltd,88196,165.06
"Department for Business, Energy and Industrial Strategy",The Coal Authority,14/09/2020,Surface Hazards - Contractor Costs,PS&S - General Claims,Thomas Menzies Builders Ltd,88196,714.00
"Department for Business, Energy and Industrial Strategy",The Coal Authority,14/09/2020,Surface Hazards - Contractor Costs,PS&S - General Claims,Thomas Menzies Builders Ltd,88196,539.42
"Department for Business, Energy and Industrial Strategy",The Coal Authority,14/09/2020,Surface Hazards - Contractor Costs,PS&S - General Claims,Thomas Menzies Builders Ltd,88196,243.60
"Department for Business, Energy and Industrial Strategy",The Coal Authority,14/09/2020,Surface Hazards - Contractor Costs,PS&S - General Claims,Thomas Menzies Builders Ltd,88196,460.40
"Department for Business, Energy and Industrial Strategy",The Coal Authority,14/09/2020,Surface Hazards - Contractor Costs,PS&S - General Claims,Thomas Menzies Builders Ltd,88196,250.00
"Department for Business, Energy and Industrial Strategy",The Coal Authority,14/09/2020,Surface Hazards - Contractor Costs,PS&S - General Claims,Thomas Menzies Builders Ltd,88196,902.85
"Department for Business, Energy and Industrial Strategy",The Coal Authority,14/09/2020,Surface Hazards - Contractor Costs,PS&S - General Claims,Thomas Menzies Builders Ltd,88196,"1,034.31"
"Department for Business, Energy and Industrial Strategy",The Coal Authority,14/09/2020,Surface Hazards - Contractor Costs,PS&S - General Claims,Thomas Menzies Builders Ltd,88196,531.07
"Department for Business, Energy and Industrial Strategy",The Coal Authority,14/09/2020,Surface Hazards - Contractor Costs,PS&S - General Claims,Thomas Menzies Builders Ltd,88196,388.47
"Department for Business, Energy and Industrial Strategy",The Coal Authority,14/09/2020,Surface Hazards - Contractor Costs,PS&S - General Claims,Thomas Menzies Builders Ltd,88196,230.55
"Department for Business, Energy and Industrial Strategy",The Coal Authority,14/09/2020,Surface Hazards - Contractor Costs,PS&S - General Claims,Thomas Menzies Builders Ltd,88196,86.84
"Department for Business, Energy and Industrial Strategy",The Coal Authority,14/09/2020,Surface Hazards - Contractor Costs,PS&S - General Claims,Thomas Menzies Builders Ltd,88196,264.00
"Department for Business, Energy and Industrial Strategy",The Coal Authority,14/09/2020,Surface Hazards - Contractor Costs,PS&S - General Claims,Thomas Menzies Builders Ltd,88196,819.00
"Department for Business, Energy and Industrial Strategy",The Coal Authority,14/09/2020,Surface Hazards - Contractor Costs,PS&S - General Claims,Thomas Menzies Builders Ltd,88196,460.13
"Department for Business, Energy and Industrial Strategy",The Coal Authority,14/09/2020,Surface Hazards - Contractor Costs,PS&S - General Claims,Thomas Menzies Builders Ltd,88196,26.40
"Department for Business, Energy and Industrial Strategy",The Coal Authority,14/09/2020,Surface Hazards - Contractor Costs,PS&S - General Claims,Thomas Menzies Builders Ltd,88196,231.00
"Department for Business, Energy and Industrial Strategy",The Coal Authority,14/09/2020,Surface Hazards - Contractor Costs,PS&S - General Claims,Thomas Menzies Builders Ltd,88196,82.10
"Department for Business, Energy and Industrial Strategy",The Coal Authority,14/09/2020,Surface Hazards - Contractor Costs,PS&S - General Claims,Thomas Menzies Builders Ltd,88196,46.80
"Department for Business, Energy and Industrial Strategy",The Coal Authority,14/09/2020,Surface Hazards - Contractor Costs,PS&S - General Claims,Thomas Menzies Builders Ltd,88196,975.00
"Department for Business, Energy and Industrial Strategy",The Coal Authority,14/09/2020,Surface Hazards - Contractor Costs,PS&S - General Claims,Thomas Menzies Builders Ltd,88196,861.08
"Department for Business, Energy and Industrial Strategy",The Coal Authority,14/09/2020,Surface Hazards - Contractor Costs,PS&S - General Claims,Thomas Menzies Builders Ltd,88196,30.28
"Department for Business, Energy and Industrial Strategy",The Coal Authority,14/09/2020,Surface Hazards - Contractor Costs,PS&S - General Claims,Thomas Menzies Builders Ltd,88196,438.84
"Department for Business, Energy and Industrial Strategy",The Coal Authority,08/09/2020,Surface Hazards - Contractor Costs,PS&S - General Claims,PMC Surveys,88197,750.00
"Department for Business, Energy and Industrial Strategy",The Coal Authority,14/09/2020,Consultancy - Town Planning,Development - Planning & Local Authority Liaison,Fife Council,88198,401.00
"Department for Business, Energy and Industrial Strategy",The Coal Authority,31/08/2020,Surface Hazards - Contractor Costs,PS&S - General Claims,Luddon Construction Limited,88199,"3,519.52"
"Department for Business, Energy and Industrial Strategy",The Coal Authority,31/08/2020,Subsidence - Contractor Costs,PS&S - General Claims,Luddon Construction Limited,88200,"9,920.51"
"Department for Business, Energy and Industrial Strategy",The Coal Authority,29/02/2020,Financial Assurance / Credit Checks,Finance,Experian Ltd,88213,3.00
"Department for Business, Energy and Industrial Strategy",The Coal Authority,30/04/2020,Financial Assurance / Credit Checks,Finance,Experian Ltd,88214,9.00
"Department for Business, Energy and Industrial Strategy",The Coal Authority,30/06/2020,Financial Assurance / Credit Checks,Finance,Experian Ltd,88215,3.00
"Department for Business, Energy and Industrial Strategy",The Coal Authority,07/09/2020,Subsidence - Contractor Costs,PS&S - Thoresby,Compensation Payment,88216,"1,053.90"
"Department for Business, Energy and Industrial Strategy",The Coal Authority,31/07/2020,Financial Assurance / Credit Checks,Finance,Experian Ltd,88217,20.00
"Department for Business, Energy and Industrial Strategy",The Coal Authority,14/09/2020,Subsidence - Contractor Costs,PS&S - General Claims,Compensation Payment,88218,25.44
"Department for Business, Energy and Industrial Strategy",The Coal Authority,10/09/2020,Subsidence - Contractor Costs,PS&S - General Claims,Compensation Payment,88219,825.00
"Department for Business, Energy and Industrial Strategy",The Coal Authority,10/09/2020,Surface Hazards - Contractor Costs,PS&S - General Claims,Compensation Payment,88220,"3,000.00"
"Department for Business, Energy and Industrial Strategy",The Coal Authority,08/09/2020,Surface Hazards - Contractor Costs,PS&S - General Claims,Compensation Payment,88221,200.00
"Department for Business, Energy and Industrial Strategy",The Coal Authority,15/09/2020,Mobiles Phones - Call Charges,Service Management,Daisy Corporate Services Trading Services Ltd,88224,"-8,534.59"
"Department for Business, Energy and Industrial Strategy",The Coal Authority,01/08/2020,Mobiles Phones - Call Charges,Service Management,Daisy Corporate Services Trading Services Ltd,88234,"8,874.63"
"Department for Business, Energy and Industrial Strategy",The Coal Authority,01/08/2020,Mobiles Phones - Line Rent,Service Management,Daisy Corporate Services Trading Services Ltd,88234,"1,067.51"
"Department for Business, Energy and Industrial Strategy",The Coal Authority,09/07/2020,Mobiles Phones - Call Charges,Service Management,Daisy Corporate Services Trading Services Ltd,88244,"3,778.88"
"Department for Business, Energy and Industrial Strategy",The Coal Authority,09/07/2020,Mobiles Phones - Line Rent,Service Management,Daisy Corporate Services Trading Services Ltd,88244,"1,077.57"
"Department for Business, Energy and Industrial Strategy",The Coal Authority,15/09/2020,Mobiles Phones - Call Charges,Service Management,Daisy Corporate Services Trading Services Ltd,88245,"-3,715.75"
"Department for Business, Energy and Industrial Strategy",The Coal Authority,15/09/2020,Mobiles Phones - Call Charges,Service Management,Daisy Corporate Services Trading Services Ltd,88254,-57.01
"Department for Business, Energy and Industrial Strategy",The Coal Authority,15/09/2020,Mobiles Phones - Line Rent,Service Management,Daisy Corporate Services Trading Services Ltd,88254,-219.28
"Department for Business, Energy and Industrial Strategy",The Coal Authority,15/09/2020,Software Licenses - On Premise,Service Management,Daisy Corporate Services Trading Services Ltd,88254,-84.84
"Department for Business, Energy and Industrial Strategy",The Coal Authority,15/09/2020,Software Licenses - On Premise,Service Management,Daisy Corporate Services Trading Services Ltd,88254,-110.04
"Department for Business, Energy and Industrial Strategy",The Coal Authority,15/09/2020,Software Licenses - On Premise,Service Management,Daisy Corporate Services Trading Services Ltd,88254,-167.50
"Department for Business, Energy and Industrial Strategy",The Coal Authority,15/09/2020,Software Licenses - On Premise,Service Management,Daisy Corporate Services Trading Services Ltd,88254,-71.40
"Department for Business, Energy and Industrial Strategy",The Coal Authority,15/09/2020,Software Licenses - On Premise,Service Management,Daisy Corporate Services Trading Services Ltd,88254,-110.04
"Department for Business, Energy and Industrial Strategy",The Coal Authority,15/09/2020,Software Licenses - On Premise,Service Management,Daisy Corporate Services Trading Services Ltd,88254,-11.55
"Department for Business, Energy and Industrial Strategy",The Coal Authority,15/09/2020,Software Licenses - On Premise,Service Management,Daisy Corporate Services Trading Services Ltd,88254,-14.28
"Department for Business, Energy and Industrial Strategy",The Coal Authority,15/09/2020,Software Licenses - On Premise,Service Management,Daisy Corporate Services Trading Services Ltd,88254,-14.28
"Department for Business, Energy and Industrial Strategy",The Coal Authority,15/09/2020,Software Licenses - On Premise,Service Management,Daisy Corporate Services Trading Services Ltd,88254,"-4,645.62"
"Department for Business, Energy and Industrial Strategy",The Coal Authority,15/09/2020,Software Licenses - On Premise,Service Management,Daisy Corporate Services Trading Services Ltd,88254,"-1,808.05"
"Department for Business, Energy and Industrial Strategy",The Coal Authority,15/09/2020,Software Licenses - On Premise,Service Management,Daisy Corporate Services Trading Services Ltd,88254,-71.40
"Department for Business, Energy and Industrial Strategy",The Coal Authority,15/09/2020,Mobiles Phones - Call Charges,Service Management,Daisy Corporate Services Trading Services Ltd,88256,-57.01
"Department for Business, Energy and Industrial Strategy",The Coal Authority,15/09/2020,Mobiles Phones - Line Rent,Service Management,Daisy Corporate Services Trading Services Ltd,88256,-219.28
"Department for Business, Energy and Industrial Strategy",The Coal Authority,15/09/2020,Software Licenses - On Premise,Service Management,Daisy Corporate Services Trading Services Ltd,88256,-84.84
"Department for Business, Energy and Industrial Strategy",The Coal Authority,15/09/2020,Software Licenses - On Premise,Service Management,Daisy Corporate Services Trading Services Ltd,88256,-110.04
"Department for Business, Energy and Industrial Strategy",The Coal Authority,15/09/2020,Software Licenses - On Premise,Service Management,Daisy Corporate Services Trading Services Ltd,88256,-167.50
"Department for Business, Energy and Industrial Strategy",The Coal Authority,15/09/2020,Software Licenses - On Premise,Service Management,Daisy Corporate Services Trading Services Ltd,88256,-71.40
"Department for Business, Energy and Industrial Strategy",The Coal Authority,15/09/2020,Software Licenses - On Premise,Service Management,Daisy Corporate Services Trading Services Ltd,88256,-110.04
"Department for Business, Energy and Industrial Strategy",The Coal Authority,15/09/2020,Software Licenses - On Premise,Service Management,Daisy Corporate Services Trading Services Ltd,88256,-11.55
"Department for Business, Energy and Industrial Strategy",The Coal Authority,15/09/2020,Software Licenses - On Premise,Service Management,Daisy Corporate Services Trading Services Ltd,88256,-14.28
"Department for Business, Energy and Industrial Strategy",The Coal Authority,15/09/2020,Software Licenses - On Premise,Service Management,Daisy Corporate Services Trading Services Ltd,88256,-14.28
"Department for Business, Energy and Industrial Strategy",The Coal Authority,15/09/2020,Software Licenses - On Premise,Service Management,Daisy Corporate Services Trading Services Ltd,88256,"-4,645.62"
"Department for Business, Energy and Industrial Strategy",The Coal Authority,15/09/2020,Software Licenses - On Premise,Service Management,Daisy Corporate Services Trading Services Ltd,88256,"-1,808.05"
"Department for Business, Energy and Industrial Strategy",The Coal Authority,15/09/2020,Software Licenses - On Premise,Service Management,Daisy Corporate Services Trading Services Ltd,88256,-71.40
"Department for Business, Energy and Industrial Strategy",The Coal Authority,15/09/2020,Mobiles Phones - Call Charges,Service Management,Daisy Corporate Services Trading Services Ltd,88262,-114.02
"Department for Business, Energy and Industrial Strategy",The Coal Authority,15/09/2020,Mobiles Phones - Line Rent,Service Management,Daisy Corporate Services Trading Services Ltd,88262,-438.56
"Department for Business, Energy and Industrial Strategy",The Coal Authority,15/09/2020,Software Licenses - On Premise,Service Management,Daisy Corporate Services Trading Services Ltd,88262,-335.00
"Department for Business, Energy and Industrial Strategy",The Coal Authority,15/09/2020,Software Licenses - On Premise,Service Management,Daisy Corporate Services Trading Services Ltd,88262,-220.08
"Department for Business, Energy and Industrial Strategy",The Coal Authority,15/09/2020,Software Licenses - On Premise,Service Management,Daisy Corporate Services Trading Services Ltd,88262,"-3,616.10"
"Department for Business, Energy and Industrial Strategy",The Coal Authority,15/09/2020,Software Licenses - On Premise,Service Management,Daisy Corporate Services Trading Services Ltd,88262,-142.80
"Department for Business, Energy and Industrial Strategy",The Coal Authority,15/09/2020,Software Licenses - On Premise,Service Management,Daisy Corporate Services Trading Services Ltd,88262,-142.80
"Department for Business, Energy and Industrial Strategy",The Coal Authority,15/09/2020,Software Licenses - On Premise,Service Management,Daisy Corporate Services Trading Services Ltd,88262,-28.56
"Department for Business, Energy and Industrial Strategy",The Coal Authority,15/09/2020,Software Licenses - On Premise,Service Management,Daisy Corporate Services Trading Services Ltd,88262,-220.08
"Department for Business, Energy and Industrial Strategy",The Coal Authority,15/09/2020,Software Licenses - On Premise,Service Management,Daisy Corporate Services Trading Services Ltd,88262,-169.68
"Department for Business, Energy and Industrial Strategy",The Coal Authority,15/09/2020,Software Licenses - On Premise,Service Management,Daisy Corporate Services Trading Services Ltd,88262,-23.10
"Department for Business, Energy and Industrial Strategy",The Coal Authority,15/09/2020,Software Licenses - On Premise,Service Management,Daisy Corporate Services Trading Services Ltd,88262,"-9,291.24"
"Department for Business, Energy and Industrial Strategy",The Coal Authority,15/09/2020,Software Licenses - On Premise,Service Management,Daisy Corporate Services Trading Services Ltd,88262,-28.56
"Department for Business, Energy and Industrial Strategy",The Coal Authority,12/08/2020,CY - Minewater Scheme - Additions,Environment-Mine Prog Build Team (Coal&Metal),AECOM Ltd,88279,950.00
"Department for Business, Energy and Industrial Strategy",The Coal Authority,12/08/2020,CY - Minewater Scheme - Additions,Environment-Mine Prog Build Team (Coal&Metal),AECOM Ltd,88279,500.00
"Department for Business, Energy and Industrial Strategy",The Coal Authority,12/08/2020,CY - Minewater Scheme - Additions,Environment-Mine Prog Build Team (Coal&Metal),AECOM Ltd,88279,"1,150.00"
"Department for Business, Energy and Industrial Strategy",The Coal Authority,12/08/2020,CY - Minewater Scheme - Additions,Environment-Mine Prog Build Team (Coal&Metal),AECOM Ltd,88279,"7,100.00"
"Department for Business, Energy and Industrial Strategy",The Coal Authority,12/08/2020,CY - Minewater Scheme - Additions,Environment-Mine Prog Build Team (Coal&Metal),AECOM Ltd,88279,"1,825.00"
"Department for Business, Energy and Industrial Strategy",The Coal Authority,31/07/2020,CY - Minewater Scheme - Additions,Environment-Mine Prog Build Team (Coal&Metal),J N Bentley Limited,88284,"8,658.23"
"Department for Business, Energy and Industrial Strategy",The Coal Authority,10/09/2020,CY - Non-coal Minewater - Additions,Environment-Mine Prog Build Team (Coal&Metal),Severn Trent Serv Ops Uk Ltd,88293,"9,771.36"
"Department for Business, Energy and Industrial Strategy",The Coal Authority,10/09/2020,CY - Non-coal Minewater - Additions,Environment-Mine Prog Build Team (Coal&Metal),Severn Trent Serv Ops Uk Ltd,88293,"2,102.18"
"Department for Business, Energy and Industrial Strategy",The Coal Authority,10/09/2020,Minewater Contractor Maint. Visits - Ops Site,Environment - Contract Management,Severn Trent Serv Ops Uk Ltd,88293,183.76
"Department for Business, Energy and Industrial Strategy",The Coal Authority,10/09/2020,Minewater Contractor Maint. Visits - Ops Site,Environment - Contract Management,Severn Trent Serv Ops Uk Ltd,88293,"323,920.78"
"Department for Business, Energy and Industrial Strategy",The Coal Authority,10/09/2020,Minewater Sampling - Operational Sites,Environment - Contract Management,Severn Trent Serv Ops Uk Ltd,88293,29.29
"Department for Business, Energy and Industrial Strategy",The Coal Authority,10/09/2020,Research & Development (BEIS Funded),Environment - Technical,Severn Trent Serv Ops Uk Ltd,88294,"1,209.43"
"Department for Business, Energy and Industrial Strategy",The Coal Authority,10/09/2020,Research & Development (BEIS Funded),Environment - Technical,Severn Trent Serv Ops Uk Ltd,88294,"4,204.67"
"Department for Business, Energy and Industrial Strategy",The Coal Authority,01/09/2020,Research & Development (BEIS Funded),Environment - Innovation Programme Delivery,SUEZ Advanced Solutions UK Ltd,88308,"2,122.73"
"Department for Business, Energy and Industrial Strategy",The Coal Authority,01/09/2020,Innovation Costs,Environment - Innovation Programme Delivery,SUEZ Advanced Solutions UK Ltd,88309,258.00
"Department for Business, Energy and Industrial Strategy",The Coal Authority,01/09/2020,Research & Development (Non BEIS Funded),Environment - DEFRA - EA Programme,SUEZ Advanced Solutions UK Ltd,88310,361.38
"Department for Business, Energy and Industrial Strategy",The Coal Authority,01/09/2020,Research & Development (BEIS Funded),Environment - Technical,SUEZ Advanced Solutions UK Ltd,88311,278.13
"Department for Business, Energy and Industrial Strategy",The Coal Authority,31/08/2020,Innovation Costs,Environment - Innovation Programme Delivery,Carter Jonas,88312,"1,270.00"
"Department for Business, Energy and Industrial Strategy",The Coal Authority,10/09/2020,Minewater Contractor Maint. Visits - Ops Site,Environment - Contract Management,Severn Trent Serv Ops Uk Ltd,88325,"1,587.94"
"Department for Business, Energy and Industrial Strategy",The Coal Authority,10/09/2020,Minewater Chemicals - Operational Sites,Environment - Contract Management,Severn Trent Serv Ops Uk Ltd,88326,100.70
"Department for Business, Energy and Industrial Strategy",The Coal Authority,10/09/2020,Minewater Contractor Add. Task Order - Ops Site,Environment - Contract Management,Severn Trent Serv Ops Uk Ltd,88327,"1,063.02"
"Department for Business, Energy and Industrial Strategy",The Coal Authority,10/09/2020,CY - Minewater Scheme - Additions,Environment - Contract Management,Severn Trent Serv Ops Uk Ltd,88328,294.23
"Department for Business, Energy and Industrial Strategy",The Coal Authority,10/09/2020,CY - Minewater Scheme - Additions,Environment - Contract Management,Severn Trent Serv Ops Uk Ltd,88329,69.57
"Department for Business, Energy and Industrial Strategy",The Coal Authority,10/09/2020,Minewater Site Investigations,Environment-Mine Prog Build Team (Coal&Metal),Severn Trent Serv Ops Uk Ltd,88330,"7,853.35"
"Department for Business, Energy and Industrial Strategy",The Coal Authority,10/09/2020,CY - Minewater Scheme - Additions,Environment - Contract Management,Severn Trent Serv Ops Uk Ltd,88331,554.02
"Department for Business, Energy and Industrial Strategy",The Coal Authority,10/09/2020,CY - Minewater Scheme - Additions,Environment - Contract Management,Severn Trent Serv Ops Uk Ltd,88332,"7,855.48"
"Department for Business, Energy and Industrial Strategy",The Coal Authority,10/09/2020,CY - Minewater Scheme - Additions,Environment - Contract Management,Severn Trent Serv Ops Uk Ltd,88333,"11,882.03"
"Department for Business, Energy and Industrial Strategy",The Coal Authority,10/09/2020,CY - Minewater Scheme - Additions,Environment - Contract Management,Severn Trent Serv Ops Uk Ltd,88334,"3,327.41"
"Department for Business, Energy and Industrial Strategy",The Coal Authority,10/09/2020,Subsidence Pumping Maintenance - Power,Environment - Contract Management,Severn Trent Serv Ops Uk Ltd,88335,"3,169.86"
"Department for Business, Energy and Industrial Strategy",The Coal Authority,10/09/2020,CY - Non-coal Minewater - Additions,Environment-Mine Prog Build Team (Coal&Metal),Severn Trent Serv Ops Uk Ltd,88336,"4,815.37"
"Department for Business, Energy and Industrial Strategy",The Coal Authority,10/09/2020,Minewater Sludge Disposal,Environment - Contract Management,Severn Trent Serv Ops Uk Ltd,88337,"50,601.19"
"Department for Business, Energy and Industrial Strategy",The Coal Authority,10/09/2020,CY - Minewater Scheme - Additions,Environment - Contract Management,Severn Trent Serv Ops Uk Ltd,88346,436.65
"Department for Business, Energy and Industrial Strategy",The Coal Authority,10/09/2020,CY - Minewater Scheme - Additions,Environment - Contract Management,Severn Trent Serv Ops Uk Ltd,88346,"1,047.21"
"Department for Business, Energy and Industrial Strategy",The Coal Authority,10/09/2020,CY - Minewater Scheme - Additions,Environment - Contract Management,Severn Trent Serv Ops Uk Ltd,88347,"1,003.89"
"Department for Business, Energy and Industrial Strategy",The Coal Authority,10/09/2020,CY - Minewater Scheme - Additions,Environment - Contract Management,Severn Trent Serv Ops Uk Ltd,88348,114.89
"Department for Business, Energy and Industrial Strategy",The Coal Authority,10/09/2020,CY - Minewater Scheme - Additions,Environment - Contract Management,Severn Trent Serv Ops Uk Ltd,88349,"49,721.15"
"Department for Business, Energy and Industrial Strategy",The Coal Authority,10/09/2020,Minewater Remediation,Environment - Contract Management,Severn Trent Serv Ops Uk Ltd,88350,"1,952.45"
"Department for Business, Energy and Industrial Strategy",The Coal Authority,09/10/2020,Minewater Pumping Tests,Environment - Contract Management,Severn Trent Serv Ops Uk Ltd,88358,"6,814.61"
"Department for Business, Energy and Industrial Strategy",The Coal Authority,10/09/2020,Subsidence Pumping Maintenance - Ad Hoc,Environment - Contract Management,Severn Trent Serv Ops Uk Ltd,88359,"4,019.75"
"Department for Business, Energy and Industrial Strategy",The Coal Authority,10/09/2020,CY - Minewater Scheme - Additions,Environment - Contract Management,Severn Trent Serv Ops Uk Ltd,88360,131.30
"Department for Business, Energy and Industrial Strategy",The Coal Authority,10/09/2020,Works Projects,Facilities,Severn Trent Serv Ops Uk Ltd,88361,382.68
"Department for Business, Energy and Industrial Strategy",The Coal Authority,10/09/2020,CY - Minewater Scheme - Additions,Environment - Contract Management,Severn Trent Serv Ops Uk Ltd,88362,131.30
"Department for Business, Energy and Industrial Strategy",The Coal Authority,10/09/2020,CY - Plant & Machinery - Additions,Environment - Contract Management,Severn Trent Serv Ops Uk Ltd,88363,"5,331.11"
"Department for Business, Energy and Industrial Strategy",The Coal Authority,10/09/2020,CY - Minewater Scheme - Additions,Environment - Contract Management,Severn Trent Serv Ops Uk Ltd,88364,231.23
"Department for Business, Energy and Industrial Strategy",The Coal Authority,10/09/2020,CY - Minewater Scheme - Additions,Environment - Contract Management,Severn Trent Serv Ops Uk Ltd,88365,"1,133.56"
"Department for Business, Energy and Industrial Strategy",The Coal Authority,10/09/2020,Minewater Contractor Add. Task Order - Ops Site,Environment - Contract Management,Severn Trent Serv Ops Uk Ltd,88373,130.32
"Department for Business, Energy and Industrial Strategy",The Coal Authority,10/09/2020,CY - Minewater Scheme - Additions,Environment - Contract Management,Severn Trent Serv Ops Uk Ltd,88374,164.12
"Department for Business, Energy and Industrial Strategy",The Coal Authority,10/09/2020,Minewater Contractor Add. Task Order - Ops Site,Environment - Contract Management,Severn Trent Serv Ops Uk Ltd,88375,36.21
"Department for Business, Energy and Industrial Strategy",The Coal Authority,10/09/2020,CY - Minewater Scheme - Additions,Environment - Contract Management,Severn Trent Serv Ops Uk Ltd,88376,328.60
"Department for Business, Energy and Industrial Strategy",The Coal Authority,10/09/2020,CY - Minewater Scheme - Additions,Environment - Contract Management,Severn Trent Serv Ops Uk Ltd,88377,"1,072.70"
"Department for Business, Energy and Industrial Strategy",The Coal Authority,10/09/2020,Innovation Costs,Environment - Innovation Programme Delivery,Severn Trent Serv Ops Uk Ltd,88382,135.52
"Department for Business, Energy and Industrial Strategy",The Coal Authority,10/09/2020,Innovation Costs,Environment - Innovation Concept & Feasibility,Severn Trent Serv Ops Uk Ltd,88383,39.85
"Department for Business, Energy and Industrial Strategy",The Coal Authority,10/09/2020,Minewater Landscaping,Environment - Contract Management,Severn Trent Serv Ops Uk Ltd,88384,79.43
"Department for Business, Energy and Industrial Strategy",The Coal Authority,10/09/2020,CY - Minewater Scheme - Additions,Environment - Contract Management,Severn Trent Serv Ops Uk Ltd,88385,262.88
"Department for Business, Energy and Industrial Strategy",The Coal Authority,10/09/2020,Minewater Pump Overhauls,Environment - Contract Management,Severn Trent Serv Ops Uk Ltd,88386,108.63
"Department for Business, Energy and Industrial Strategy",The Coal Authority,10/09/2020,Minewater Sludge Disposal,Environment - Contract Management,Severn Trent Serv Ops Uk Ltd,88387,657.19
"Department for Business, Energy and Industrial Strategy",The Coal Authority,10/09/2020,CY - Minewater Scheme - Additions,Environment - Contract Management,Severn Trent Serv Ops Uk Ltd,88396,492.37
"Department for Business, Energy and Industrial Strategy",The Coal Authority,10/09/2020,Minewater Contractor Add. Task Order - Ops Site,Environment - Contract Management,Severn Trent Serv Ops Uk Ltd,88397,795.35
"Department for Business, Energy and Industrial Strategy",The Coal Authority,10/09/2020,CY - Minewater Scheme - Additions,Environment - Contract Management,Severn Trent Serv Ops Uk Ltd,88398,144.83
"Department for Business, Energy and Industrial Strategy",The Coal Authority,10/09/2020,Minewater Contractor Add. Task Order - Ops Site,Environment - Contract Management,Severn Trent Serv Ops Uk Ltd,88399,79.43
"Department for Business, Energy and Industrial Strategy",The Coal Authority,10/09/2020,CY - Minewater Scheme - Additions,Environment - Contract Management,Severn Trent Serv Ops Uk Ltd,88400,158.87
"Department for Business, Energy and Industrial Strategy",The Coal Authority,31/08/2020,CY - Land - Additions,Environment-Mine Prog Build Team (Coal&Metal),Savills (Uk) Ltd,88403,"4,939.57"
"Department for Business, Energy and Industrial Strategy",The Coal Authority,14/09/2020,Temporary Contractors,ICT Development,94 Group Limited,88406,"9,587.50"
"Department for Business, Energy and Industrial Strategy",The Coal Authority,31/07/2020,Temporary Contractors,Consultancy-Developers-Landowners,Geoterra,88407,"3,450.00"
"Department for Business, Energy and Industrial Strategy",The Coal Authority,07/09/2020,Innovation Costs,Environment - Innovation Programme Delivery,Sibert Solar Ltd,88413,255.00
"Department for Business, Energy and Industrial Strategy",The Coal Authority,07/09/2020,Innovation Costs,Environment - Innovation Programme Delivery,Sibert Solar Ltd,88414,255.00
"Department for Business, Energy and Industrial Strategy",The Coal Authority,16/09/2020,Surface Hazards - Contractor Costs,PS&S - General Claims,Thomas Menzies Builders Ltd,88415,123.83
"Department for Business, Energy and Industrial Strategy",The Coal Authority,16/09/2020,Surface Hazards - Contractor Costs,PS&S - General Claims,Thomas Menzies Builders Ltd,88415,147.00
"Department for Business, Energy and Industrial Strategy",The Coal Authority,16/09/2020,Surface Hazards - Contractor Costs,PS&S - General Claims,Thomas Menzies Builders Ltd,88415,16.00
"Department for Business, Energy and Industrial Strategy",The Coal Authority,16/09/2020,Surface Hazards - Contractor Costs,PS&S - General Claims,Thomas Menzies Builders Ltd,88415,360.00
"Department for Business, Energy and Industrial Strategy",The Coal Authority,16/09/2020,Surface Hazards - Contractor Costs,PS&S - General Claims,Thomas Menzies Builders Ltd,88415,96.00
"Department for Business, Energy and Industrial Strategy",The Coal Authority,16/09/2020,Surface Hazards - Contractor Costs,PS&S - General Claims,Thomas Menzies Builders Ltd,88415,10.00
"Department for Business, Energy and Industrial Strategy",The Coal Authority,31/08/2020,Subsidence - Contractor Costs,PS&S - Kellingley,Ray Holt Land Drainage Ltd,88420,"7,233.78"
"Department for Business, Energy and Industrial Strategy",The Coal Authority,10/09/2020,Minewater Pump Overhauls,Environment - Contract Management,Severn Trent Serv Ops Uk Ltd,88421,79.40
"Department for Business, Energy and Industrial Strategy",The Coal Authority,16/06/2020,Subsidence - Contractor Costs,PS&S - General Claims,WSP UK Ltd,88426,"3,785.26"
"Department for Business, Energy and Industrial Strategy",The Coal Authority,28/08/2020,Subsidence - Contractor Costs,PS&S - General Claims,WSP UK Ltd,88427,"6,606.35"
"Department for Business, Energy and Industrial Strategy",The Coal Authority,15/09/2020,Surface Hazards - Contractor Costs,PS&S - General Claims,Cornerstone  Projects Ltd,88430,80.00
"Department for Business, Energy and Industrial Strategy",The Coal Authority,15/09/2020,Surface Hazards - Contractor Costs,PS&S - General Claims,Cornerstone  Projects Ltd,88431,108.24
"Department for Business, Energy and Industrial Strategy",The Coal Authority,16/09/2020,Surface Hazards - Contractor Costs,PS&S - General Claims,Cornerstone  Projects Ltd,88432,124.00
"Department for Business, Energy and Industrial Strategy",The Coal Authority,17/09/2020,Surface Hazards - Contractor Costs,PS&S - General Claims,Cornerstone  Projects Ltd,88433,260.70
"Department for Business, Energy and Industrial Strategy",The Coal Authority,03/09/2020,Staff Events,Safety Health & Environment,Ubm Information Limited,88439,800.00
"Department for Business, Energy and Industrial Strategy",The Coal Authority,11/08/2020,Temporary Contractors,Environment - Innovation Concept & Feasibility,Key Personnel Solutions Ltd,88441,"1,489.60"
"Department for Business, Energy and Industrial Strategy",The Coal Authority,15/09/2020,Surface Hazards - Contractor Costs,PS&S - General Claims,Alliance Contracting Solutions Ltd,88446,235.04
"Department for Business, Energy and Industrial Strategy",The Coal Authority,15/09/2020,Surface Hazards - Contractor Costs,PS&S - General Claims,Alliance Contracting Solutions Ltd,88446,382.40
"Department for Business, Energy and Industrial Strategy",The Coal Authority,15/09/2020,Surface Hazards - Contractor Costs,PS&S - General Claims,Alliance Contracting Solutions Ltd,88446,126.40
"Department for Business, Energy and Industrial Strategy",The Coal Authority,15/09/2020,Surface Hazards - Contractor Costs,PS&S - General Claims,Alliance Contracting Solutions Ltd,88446,111.55
"Department for Business, Energy and Industrial Strategy",The Coal Authority,15/09/2020,Surface Hazards - Contractor Costs,PS&S - General Claims,Alliance Contracting Solutions Ltd,88446,485.00
"Department for Business, Energy and Industrial Strategy",The Coal Authority,15/09/2020,Surface Hazards - Contractor Costs,PS&S - General Claims,Alliance Contracting Solutions Ltd,88446,110.75
"Department for Business, Energy and Industrial Strategy",The Coal Authority,15/09/2020,Surface Hazards - Contractor Costs,PS&S - General Claims,Alliance Contracting Solutions Ltd,88446,460.32
"Department for Business, Energy and Industrial Strategy",The Coal Authority,15/09/2020,Surface Hazards - Contractor Costs,PS&S - General Claims,Alliance Contracting Solutions Ltd,88446,200.00
"Department for Business, Energy and Industrial Strategy",The Coal Authority,15/09/2020,Surface Hazards - Contractor Costs,PS&S - General Claims,Alliance Contracting Solutions Ltd,88446,460.32
"Department for Business, Energy and Industrial Strategy",The Coal Authority,15/09/2020,Surface Hazards - Contractor Costs,PS&S - General Claims,Alliance Contracting Solutions Ltd,88446,130.00
"Department for Business, Energy and Industrial Strategy",The Coal Authority,15/09/2020,Subsidence - Contractor Costs,PS&S - General Claims,Alliance Contracting Solutions Ltd,88447,"11,488.92"
"Department for Business, Energy and Industrial Strategy",The Coal Authority,16/09/2020,Surface Hazards - Contractor Costs,PS&S - General Claims,Alliance Contracting Solutions Ltd,88448,20.00
"Department for Business, Energy and Industrial Strategy",The Coal Authority,16/09/2020,Surface Hazards - Contractor Costs,PS&S - General Claims,Alliance Contracting Solutions Ltd,88448,137.93
"Department for Business, Energy and Industrial Strategy",The Coal Authority,16/09/2020,Surface Hazards - Contractor Costs,PS&S - General Claims,Alliance Contracting Solutions Ltd,88448,460.32
"Department for Business, Energy and Industrial Strategy",The Coal Authority,16/09/2020,Surface Hazards - Contractor Costs,PS&S - General Claims,Alliance Contracting Solutions Ltd,88448,140.00
"Department for Business, Energy and Industrial Strategy",The Coal Authority,16/09/2020,Surface Hazards - Contractor Costs,PS&S - General Claims,Alliance Contracting Solutions Ltd,88448,382.40
"Department for Business, Energy and Industrial Strategy",The Coal Authority,16/09/2020,Surface Hazards - Contractor Costs,PS&S - General Claims,Alliance Contracting Solutions Ltd,88448,194.80
"Department for Business, Energy and Industrial Strategy",The Coal Authority,16/09/2020,Surface Hazards - Contractor Costs,PS&S - General Claims,Alliance Contracting Solutions Ltd,88448,110.75
"Department for Business, Energy and Industrial Strategy",The Coal Authority,16/09/2020,Surface Hazards - Contractor Costs,PS&S - General Claims,Alliance Contracting Solutions Ltd,88448,470.08
"Department for Business, Energy and Industrial Strategy",The Coal Authority,16/09/2020,Surface Hazards - Contractor Costs,PS&S - General Claims,Alliance Contracting Solutions Ltd,88448,108.56
"Department for Business, Energy and Industrial Strategy",The Coal Authority,16/09/2020,Surface Hazards - Contractor Costs,PS&S - General Claims,Alliance Contracting Solutions Ltd,88448,75.65
"Department for Business, Energy and Industrial Strategy",The Coal Authority,16/09/2020,Surface Hazards - Contractor Costs,PS&S - General Claims,Alliance Contracting Solutions Ltd,88448,134.45
"Department for Business, Energy and Industrial Strategy",The Coal Authority,16/09/2020,Surface Hazards - Contractor Costs,PS&S - General Claims,Alliance Contracting Solutions Ltd,88448,36.46
"Department for Business, Energy and Industrial Strategy",The Coal Authority,16/09/2020,Surface Hazards - Contractor Costs,PS&S - General Claims,Alliance Contracting Solutions Ltd,88448,24.24
"Department for Business, Energy and Industrial Strategy",The Coal Authority,16/09/2020,Surface Hazards - Contractor Costs,PS&S - General Claims,Alliance Contracting Solutions Ltd,88448,460.32
"Department for Business, Energy and Industrial Strategy",The Coal Authority,19/08/2020,Contract Hire Vehicles,Facilities,eDriving Ltd,88449,423.50
"Department for Business, Energy and Industrial Strategy",The Coal Authority,14/09/2020,Property Site Maintenance,Development - Historic Property Liabilities,A R Thompson Landscapes,88452,834.00
"Department for Business, Energy and Industrial Strategy",The Coal Authority,31/08/2020,Minewater Power Costs,Environment - Contract Management,National Coal Mining Museum,88455,201.00
"Department for Business, Energy and Industrial Strategy",The Coal Authority,17/09/2020,Minewater Power Costs,Environment - Contract Management,National Coal Mining Museum,88456,"13,923.88"
"Department for Business, Energy and Industrial Strategy",The Coal Authority,17/09/2020,Surface Hazards - Contractor Costs,PS&S - General Claims,Alliance Contracting Solutions Ltd,88459,460.32
"Department for Business, Energy and Industrial Strategy",The Coal Authority,17/09/2020,Surface Hazards - Contractor Costs,PS&S - General Claims,Alliance Contracting Solutions Ltd,88459,764.80
"Department for Business, Energy and Industrial Strategy",The Coal Authority,17/09/2020,Surface Hazards - Contractor Costs,PS&S - General Claims,Alliance Contracting Solutions Ltd,88459,460.32
"Department for Business, Energy and Industrial Strategy",The Coal Authority,17/09/2020,Surface Hazards - Contractor Costs,PS&S - General Claims,Alliance Contracting Solutions Ltd,88459,354.40
"Department for Business, Energy and Industrial Strategy",The Coal Authority,17/09/2020,Surface Hazards - Contractor Costs,PS&S - General Claims,Alliance Contracting Solutions Ltd,88459,200.00
"Department for Business, Energy and Industrial Strategy",The Coal Authority,17/09/2020,Surface Hazards - Contractor Costs,PS&S - General Claims,Alliance Contracting Solutions Ltd,88459,45.50
"Department for Business, Energy and Industrial Strategy",The Coal Authority,17/09/2020,Surface Hazards - Contractor Costs,PS&S - General Claims,Alliance Contracting Solutions Ltd,88459,10.47
"Department for Business, Energy and Industrial Strategy",The Coal Authority,15/07/2020,Consultancy - Branding & Marketing Advice&#10;,Mining Reports Retail,Assemble Media Group Limited,88460,"2,000.00"
"Department for Business, Energy and Industrial Strategy",The Coal Authority,16/09/2020,Bridgewater - Contractor Costs,PS&S - General Claims,The Bridgewater Canal Co Ltd,88465,"1,690.03"
"Department for Business, Energy and Industrial Strategy",The Coal Authority,18/09/2020,Minewater Contractor Maint. Visits - Ops Site,Environment - DEFRA - EA Programme,Veolia ES UK Ltd,88473,"-3,664.20"
"Department for Business, Energy and Industrial Strategy",The Coal Authority,18/09/2020,Minewater Power Costs,Environment - DEFRA - EA Programme,Veolia ES UK Ltd,88473,"-5,000.00"
"Department for Business, Energy and Industrial Strategy",The Coal Authority,15/09/2020,Minewater Chemicals - Operational Sites,Environment - DEFRA - EA Programme,Veolia ES UK Ltd,88474,"8,014.69"
"Department for Business, Energy and Industrial Strategy",The Coal Authority,15/09/2020,Minewater Contractor Maint. Visits - Ops Site,Environment - DEFRA - EA Programme,Veolia ES UK Ltd,88474,"37,137.21"
"Department for Business, Energy and Industrial Strategy",The Coal Authority,15/09/2020,Minewater Power Costs,Environment - DEFRA - EA Programme,Veolia ES UK Ltd,88474,327.43
"Department for Business, Energy and Industrial Strategy",The Coal Authority,15/09/2020,Minewater Power Costs,Environment - DEFRA - EA Programme,Veolia ES UK Ltd,88474,583.06
"Department for Business, Energy and Industrial Strategy",The Coal Authority,15/09/2020,Minewater Power Costs,Environment - DEFRA - EA Programme,Veolia ES UK Ltd,88474,205.98
"Department for Business, Energy and Industrial Strategy",The Coal Authority,15/09/2020,Minewater Power Costs,Environment - DEFRA - EA Programme,Veolia ES UK Ltd,88474,"7,793.47"
"Department for Business, Energy and Industrial Strategy",The Coal Authority,15/09/2020,Minewater Sludge Disposal,Environment - DEFRA - EA Programme,Veolia ES UK Ltd,88474,"29,022.50"
"Department for Business, Energy and Industrial Strategy",The Coal Authority,11/09/2020,Training & Education,Environment-Mine Prog Build Team (Coal&Metal),West Nottinghamshire College,88475,"3,610.00"
"Department for Business, Energy and Industrial Strategy",The Coal Authority,16/09/2020,Surface Hazards - Contractor Costs,PS&S - General Claims,Soil Engineering Geoservices L,88478,"13,384.44"
"Department for Business, Energy and Industrial Strategy",The Coal Authority,12/08/2020,CY - Minewater Scheme - Additions,Environment-Mine Prog Build Team (Coal&Metal),AECOM Ltd,88482,"1,800.00"
"Department for Business, Energy and Industrial Strategy",The Coal Authority,12/08/2020,CY - Minewater Scheme - Additions,Environment-Mine Prog Build Team (Coal&Metal),AECOM Ltd,88482,"2,000.00"
"Department for Business, Energy and Industrial Strategy",The Coal Authority,12/08/2020,CY - Minewater Scheme - Additions,Environment-Mine Prog Build Team (Coal&Metal),AECOM Ltd,88482,"8,832.50"
"Department for Business, Energy and Industrial Strategy",The Coal Authority,12/08/2020,CY - Minewater Scheme - Additions,Environment-Mine Prog Build Team (Coal&Metal),AECOM Ltd,88482,"1,717.50"
"Department for Business, Energy and Industrial Strategy",The Coal Authority,18/09/2020,Surface Hazards - Contractor Costs,PS&S - General Claims,Cornerstone  Projects Ltd,88484,217.70
"Department for Business, Energy and Industrial Strategy",The Coal Authority,16/09/2020,Software Support & Maintenance - On Premise,Infrastructure Management,LogMeIn Technologies UK Limited,88497,"9,999.00"
"Department for Business, Energy and Industrial Strategy",The Coal Authority,11/09/2020,Business Meetings,Environment - Management,Ransomwood Estates Ltd,88498,127.00
"Department for Business, Energy and Industrial Strategy",The Coal Authority,17/09/2020,Training & Education,Environment-Mine Prog Build Team (Coal&Metal),AquaEnviro,88499,95.00
"Department for Business, Energy and Industrial Strategy",The Coal Authority,17/09/2020,Temporary Contractors,Development - Property Management,Hays Specialist Recruitment,88500,"1,142.95"
"Department for Business, Energy and Industrial Strategy",The Coal Authority,14/09/2020,Stationery,Customer Strategy,Imprint,88501,38.00
"Department for Business, Energy and Industrial Strategy",The Coal Authority,07/08/2020,Subsidence Pumping Maintenance - Power,Environment - Contract Management,Methley Estates Holdings Ltd,88503,920.42
"Department for Business, Energy and Industrial Strategy",The Coal Authority,30/07/2020,Research & Development (BEIS Funded),Environment - Technical,Socotec,88505,61.42
"Department for Business, Energy and Industrial Strategy",The Coal Authority,16/09/2020,Mileage Payments,Environment - DEFRA - LEP Programme,Staff Expenses Control,88511,68.09
"Department for Business, Energy and Industrial Strategy",The Coal Authority,16/09/2020,Mileage Payments,Environment - DEFRA - LEP Programme,Staff Expenses Control,88511,2.93
"Department for Business, Energy and Industrial Strategy",The Coal Authority,16/09/2020,Mileage Payments,Environment - DEFRA - LEP Programme,Staff Expenses Control,88511,67.02
"Department for Business, Energy and Industrial Strategy",The Coal Authority,17/09/2020,Minewater Land Agents (Acquisitions),Environment - DEFRA - LEP Programme,Staff Expenses Control,88511,136.83
"Department for Business, Energy and Industrial Strategy",The Coal Authority,12/08/2020,Subsistence Allowances,NRW Programme,Staff Expenses Control,88511,8.60
"Department for Business, Energy and Industrial Strategy",The Coal Authority,12/08/2020,Subsistence Allowances,NRW Programme,Staff Expenses Control,88511,8.60
"Department for Business, Energy and Industrial Strategy",The Coal Authority,16/09/2020,Minewater Site Surveys,Environment - Technical,Cornerstone  Projects Ltd,88515,234.68
"Department for Business, Energy and Industrial Strategy",The Coal Authority,05/08/2020,Surface Hazards - Contractor Costs,PS&S - General Claims,Mines Rescue Service Limited,88526,"17,666.67"
"Department for Business, Energy and Industrial Strategy",The Coal Authority,04/09/2020,Surface Hazards - Contractor Costs,PS&S - General Claims,Mines Rescue Service Limited,88527,"17,666.66"
"Department for Business, Energy and Industrial Strategy",The Coal Authority,14/08/2020,Research & Development (BEIS Funded),Environment - Technical,Socotec,88531,82.13
"Department for Business, Energy and Industrial Strategy",The Coal Authority,29/07/2020,Tips - Maintenance,PS&S - Commercial Delivery,Jacobs UK Limited,88537,405.00
"Department for Business, Energy and Industrial Strategy",The Coal Authority,08/09/2020,Information  Security software license,Infrastructure Management,Gradian Systems Ltd.,88538,"5,500.00"
"Department for Business, Energy and Industrial Strategy",The Coal Authority,18/09/2020,Surface Hazards - Contractor Costs,PS&S - General Claims,Llettyshenkin Cons Co Ltd,88540,75.00
"Department for Business, Energy and Industrial Strategy",The Coal Authority,18/09/2020,Surface Hazards - Contractor Costs,PS&S - General Claims,Llettyshenkin Cons Co Ltd,88540,332.50
"Department for Business, Energy and Industrial Strategy",The Coal Authority,21/09/2020,Surface Hazards - Contractor Costs,PS&S - General Claims,Cornerstone  Projects Ltd,88543,230.70
"Department for Business, Energy and Industrial Strategy",The Coal Authority,17/09/2020,CY - Non-coal Minewater - Additions,Environment - DEFRA - LEP Programme,I & H Brown Limited,88544,215.96
"Department for Business, Energy and Industrial Strategy",The Coal Authority,15/09/2020,Subsidence - Contractor Costs,PS&S - Thoresby,Savills Client Account,88550,"1,500.00"
"Department for Business, Energy and Industrial Strategy",The Coal Authority,15/09/2020,Subsidence - Contractor Costs,PS&S - General Claims,Compensation Payment,88551,33.99
"Department for Business, Energy and Industrial Strategy",The Coal Authority,15/09/2020,Subsidence - Contractor Costs,PS&S - General Claims,Compensation Payment,88551,55.20
"Department for Business, Energy and Industrial Strategy",The Coal Authority,21/09/2020,Subsidence - Contractor Costs,PS&S - General Claims,Compensation Payment,88552,770.00
"Department for Business, Energy and Industrial Strategy",The Coal Authority,07/09/2020,Subsidence - Contractor Costs,PS&S - Thoresby,Pierrepont Estate Management Ltd,88553,"1,375.74"
"Department for Business, Energy and Industrial Strategy",The Coal Authority,07/09/2020,Subsidence - Contractor Costs,PS&S - Thoresby,Pierrepont Estate Management Ltd,88554,"2,213.51"
"Department for Business, Energy and Industrial Strategy",The Coal Authority,07/09/2020,Subsidence - Contractor Costs,PS&S - Thoresby,Pierrepont Estate Management Ltd,88560,553.58
"Department for Business, Energy and Industrial Strategy",The Coal Authority,07/09/2020,Subsidence - Contractor Costs,PS&S - Thoresby,Pierrepont Estate Management Ltd,88561,827.65
"Department for Business, Energy and Industrial Strategy",The Coal Authority,07/09/2020,Subsidence - Contractor Costs,PS&S - Thoresby,Pierrepont Estate Management Ltd,88562,453.08
"Department for Business, Energy and Industrial Strategy",The Coal Authority,07/09/2020,Subsidence - Contractor Costs,PS&S - Thoresby,Pierrepont Estate Management Ltd,88563,693.89
"Department for Business, Energy and Industrial Strategy",The Coal Authority,01/09/2020,Short Term Vehicle Hire,Facilities,Edan Holding Ltd,88564,597.00
"Department for Business, Energy and Industrial Strategy",The Coal Authority,31/08/2020,CY - Minewater Scheme - Additions,Environment-Mine Prog Build Team (Coal&Metal),Alliance Contracting Solutions Ltd,88566,"2,487.38"
"Department for Business, Energy and Industrial Strategy",The Coal Authority,31/08/2020,CY - Minewater Scheme - Additions,Environment-Mine Prog Build Team (Coal&Metal),Alliance Contracting Solutions Ltd,88566,"8,991.76"
"Department for Business, Energy and Industrial Strategy",The Coal Authority,31/08/2020,CY - Minewater Scheme - Additions,Environment-Mine Prog Build Team (Coal&Metal),Alliance Contracting Solutions Ltd,88566,"83,121.69"
"Department for Business, Energy and Industrial Strategy",The Coal Authority,28/08/2020,Minewater Pumping Tests,Environment-Mine Prog Build Team (Coal&Metal),Cornerstone  Projects Ltd,88575,106.25
"Department for Business, Energy and Industrial Strategy",The Coal Authority,31/08/2020,CY - Minewater Scheme - Additions,Environment-Mine Prog Build Team (Coal&Metal),Alliance Contracting Solutions Ltd,88576,"2,323.64"
"Department for Business, Energy and Industrial Strategy",The Coal Authority,21/08/2020,Minewater Site Investigations,Environment-Mine Prog Build Team (Coal&Metal),Peak Ecology Ltd,88577,345.20
"Department for Business, Energy and Industrial Strategy",The Coal Authority,21/08/2020,Minewater Site Investigations,Environment-Mine Prog Build Team (Coal&Metal),Peak Ecology Ltd,88577,810.00
"Department for Business, Energy and Industrial Strategy",The Coal Authority,01/09/2020,CY - Minewater Scheme - Additions,Environment - Technical,Northern Powergrid (Yorkshire) Plc,88578,150.00
"Department for Business, Energy and Industrial Strategy",The Coal Authority,01/09/2020,Advertising Expenses,Mining Reports Retail,Charlton Grant Ltd,88579,250.00
"Department for Business, Energy and Industrial Strategy",The Coal Authority,31/07/2020,Public Relations,Communications & Brand,Cision Group Limited,88580,151.23
"Department for Business, Energy and Industrial Strategy",The Coal Authority,31/08/2020,Public Relations,Communications & Brand,Cision Group Limited,88581,149.67
"Department for Business, Energy and Industrial Strategy",The Coal Authority,01/08/2020,eCommerce Commission Charges,Mining Reports Retail,Worldpay,88582,159.01
"Department for Business, Energy and Industrial Strategy",The Coal Authority,18/09/2020,Surface Hazards - Equipment,PS&S - General Claims,Simple Storage Solutions T/A Gateshead,88585,83.34
"Department for Business, Energy and Industrial Strategy",The Coal Authority,18/09/2020,Surface Hazards - Equipment,PS&S - General Claims,Simple Storage Solutions T/A Gateshead,88585,-0.01
"Department for Business, Energy and Industrial Strategy",The Coal Authority,18/09/2020,Subsidence - Contractor Costs,PS&S - General Claims,Cornerstone  Projects Ltd,88586,133.00
"Department for Business, Energy and Industrial Strategy",The Coal Authority,28/08/2020,Mine Entry Inspection - Outsourced Management,PS&S - Commercial Delivery,Interlocks Surveys,88588,"7,289.50"
"Department for Business, Energy and Industrial Strategy",The Coal Authority,21/09/2020,CY - Land - Additions,Environment-Mine Prog Build Team (Coal&Metal),87956 Legal Fees for Bilston Glen land Purchase,88589,"10,312.71"
"Department for Business, Energy and Industrial Strategy",The Coal Authority,21/09/2020,CY - Minewater Scheme - Additions,Environment - Contract Management,1800002661 - STSL,88589,"-1,072.70"
"Department for Business, Energy and Industrial Strategy",The Coal Authority,21/09/2020,CY - Minewater Scheme - Additions,Environment-Mine Prog Build Team (Coal&Metal),87956 Legal Fees for Bilston Glen land Purchase,88589,"-10,312.71"
